{"text_format":"1","workbook":"xlsx","n_sheets":3,"sheets":["График","10.1","ФИО"],"not_rendered":{"charts":0,"images":0,"macros":1,"external_links":2,"defined_names":11,"comments":0,"pivot_tables":0},"unopened":[],"bounds":{"document_bytes":16777216,"sheet_cells":100000,"rows_first":2000,"rows_last":500,"rows_between":2000,"halvings":0,"cell_chars":16384,"cell_head_chars":4096},"cells_cut":0,"cells_raw":0,"read":"whole","date_system":"1900"}

{"sheet":"График","index":0,"n_rows":63,"n_cols":16,"rows_kept":63,"cut":false,"hidden":false,"merged":[[48,2,48,4],[0,5,0,9],[0,2,0,4],[47,2,47,4],[47,5,47,9],[1,2,1,4]]}
[null,1,"График подготовки",null,null,"проектной документации"]
[null,null,"Реконструкция и техническое перевооружение участка малогабаритных изделий здания ФГУП \"ЗИМ\" зд.752 и 026"]
[]
[]
[null,"№","Базовый номер","Объект строительства","Здание","Вид документа (стадия)","Наименование задания (по Перечню)","№ формы","Отдел, выдающий исходные данные","Отдел - разработчик документации","Плановое начало работ","Плановое окончание работ","Примечание","% выполнения",null,"ФИО лица, составившего График"]
["1.1",1,6339,900,null,"П","Задание на антикоррозионную защиту полов и надземной части фундаментов","074-09","4","12","2015-06-24","2015-06-30"]
[null,2,6339,900,null,"П","Задание на антикоррозионную защиту полов и надземной части фундаментов","074-09","4","17","2015-06-24","2015-06-30"]
[null,3,6339,900,null,"П","Задание на связь и сигнализацию","011-09","16","20","2015-07-23","2015-07-24"]
[null,4,6339,900,null,"П","Задание на выбросы (на период строительства)","075-09","16","10","2015-06-16","2015-06-17"]
[null,5,6339,900,null,"П","Задание на выбросы (на период эксплуатации)","075-09","14","10","2015-06-16","2015-06-18"]
[null,6,6339,900,null,"П","Задание на численность","Служебная записка","4","26","2015-06-24","2015-06-24"]
[null,7,6339,900,null,"П","Задание на численность","Служебная записка","16","26","2015-06-24","2015-06-24"]
["1.2",8,6339,900,null,"П","Задание на численность","Служебная записка","18","26","2015-06-24","2015-06-24"]
[null,9,6339,900,null,"П","Задание на численность","Служебная записка","20","26","2015-06-24","2015-06-24"]
[null,{"$f":"B14+1","v":10},6339,900,null,"П","Задание на численность","Служебная записка","21","26","2015-06-24","2015-06-24"]
[null,{"$f":"B15+1","v":11},6339,900,null,"П","Задание на численность","Служебная записка","23","26","2015-06-24","2015-06-24"]
[null,12,6339,900,null,"П","Задание на бытовые помещения","005-09","26","17","2015-06-30","2015-06-30"]
[null,13,6339,900,null,"П","ОСР 1 (фундаменты и приямки)","Служебная записка","4","12","2015-08-24","2015-08-28"]
[null,14,6339,900,null,"П","ОСР 1 (фундаменты и приямки)","Служебная записка","4","17","2015-08-24","2015-08-28"]
[null,15,6339,900,null,"П","ОСР 1 (фундаменты и приямки)","Служебная записка","16","12","2015-08-13","2015-08-19"]
[null,16,6339,900,null,"П","ОСР 1 (фундаменты и приямки)","Служебная записка","16","17","2015-08-13","2015-08-19"]
[null,17,6339,900,null,"П","ОСР 1 (фундаменты и приямки)","Служебная записка","20","12","2015-08-18","2015-08-24"]
[null,18,6339,900,null,"П","ОСР 1 (фундаменты и приямки)","Служебная записка","20","17","2015-08-18","2015-08-24"]
[null,19,6339,900,null,"П","ОСР 1 (фундаменты и приямки)","Служебная записка","21","12","2015-08-10","2015-08-14"]
[null,20,6339,900,null,"П","ОСР 1 (фундаменты и приямки)","Служебная записка","21","17","2015-08-10","2015-08-14"]
[null,21,6339,900,null,"П","ОСР 2 (крепления, отверстия)","Служебная записка","4","12","2015-08-24","2015-08-28"]
[null,22,6339,900,null,"П","ОСР 2 (крепления, отверстия)","Служебная записка","4","17","2015-08-24","2015-08-28"]
[null,23,6339,900,null,"П","ОСР 2 (крепления, отверстия)","Служебная записка","16","12","2015-08-20","2015-08-26"]
[null,24,6339,900,null,"П","ОСР 2 (крепления, отверстия)","Служебная записка","16","17","2015-08-20","2015-08-26"]
[null,25,6339,900,null,"П","ОСР 2 (крепления, отверстия)","Служебная записка","20","12","2015-08-26","2015-09-01"]
[null,26,6339,900,null,"П","ОСР 2 (крепления, отверстия)","Служебная записка","20","17","2015-08-26","2015-09-01"]
[null,27,6339,900,null,"П","ОСР 2 (крепления, отверстия)","Служебная записка","21","12","2015-08-24","2015-08-28"]
[null,28,6339,900,null,"П","ОСР 2 (крепления, отверстия)","Служебная записка","21","17","2015-08-24","2015-08-28"]
[null,29,6339,900,null,"П","Задание на разработку подраздела Охрана поверхностных вод (в случае проектирования локальных очистных сооружений, входящих в состав технологического процесса) (на период эксплуатации)","109-08","4","10","2015-08-27","2015-08-28"]
[null,30,6339,900,null,"П","Характеристика водопотребления и водоотведения (на период строительства)","108-08","14","10","2015-09-18","2015-09-18"]
[null,31,6339,900,null,"П","Задание на размещение отходов","080-09","16","10","2015-08-24","2015-08-25"]
[null,32,6339,900,null,"П","Задание на размещение отходов","080-09","20","10","2015-08-31","2015-09-01"]
[null,33,6339,900,null,"П","Задание на размещение отходов","080-09","21","10","2015-08-20","2015-08-21"]
[null,34,6339,900,null,"П","Задание на строительные отходы и загрязненный грунт (на период строительства)","080-09","14","10","2015-09-18","2015-09-18"]
[null,35,6339,900,null,"П","Задание на разработку подраздела Охрана поверхностных вод","109-08","21","10","2015-08-21","2015-08-21"]
[null,36,6339,900,null,"П","Выдача задания на условия строительства (разработка грунта в карьере, характеристики, лицензии, стестенные условия труда, информация об удаленности поставщиков местных материалов и т.д.)","Служебная записка","14","19","2015-09-22","2015-09-22"]
[null,37,6339,900,null,"П","Ситуационный план с указанием санитарно-защитной зоны","Чертеж","14","10","2015-06-29","2015-06-29"]
[null,38,6339,900,null,"П","Ситуационный план с указанием санитарно-защитной зоны","Чертеж","14","16","2015-06-29","2015-06-29"]
[null,39,6339,900,null,"П","Ситуационный план с указанием санитарно-защитной зоны","Чертеж","14","21","2015-06-29","2015-06-29"]
[null,40,6339,900,null,"П","Горизонтальная и вертикальная привязка зданий и сооружений","Чертеж","14","4","2015-06-29","2015-06-29"]
[]
[]
[null,2,"График подготовки",null,null,"проектной документации"]
[null,null,"Техническое перевооружение производства из высокоэффетивных СТТ. ФГУП \"ФЦДТ \"Союз\""]
[]
[]
[null,"№","Базовый номер","Объект строительства","Здание","Вид документа (стадия)","Наименование задания (по Перечню)","№ формы","Отдел, выдающий исходные данные","Отдел - разработчик документации","Плановое начало работ","Плановое окончание работ","Примечание","% выполнения",null,"ФИО лица, составившего График"]
["1.1",1,7077,"СОЮЗ",null,"П","Выдача справки о наличии системы оповещения и готовности сооружения ГО к приему укрываемых","Текстовая часть","2","23","2015-01-12","2015-01-12"]
[null,2,7077,"СОЮЗ",null,"П","Выдача исходных данных о наличии рабочей силы","Текстовая часть","2","14","2015-01-12","2015-01-12"]
[null,3,7077,"СОЮЗ",null,"П","Выдача исходных данных о наличии квалифицированной силы","Текстовая часть","2","14","2015-01-12","2015-01-12"]
[null,4,7077,"СОЮЗ",null,"П","Задание на составление титульного списка зданий","018-09","4","14","2015-06-08","2015-06-09"]
[null,5,7077,"СОЮЗ",null,"П","Задание на составление титульного списка зданий","018-09","9","14","2015-06-08","2015-06-09"]
[null,6,7077,"СОЮЗ",null,"П","Задание на антикоррозионную защиту полов и надземной части фундаментов","074-09","4","11","2015-06-05","2015-06-11"]
[null,7,7077,"СОЮЗ",null,"П","Задание на антикоррозионную защиту полов и надземной части фундаментов","074-09","4","17","2015-06-05","2015-06-11"]
[null,8,7077,"СОЮЗ",null,"П","Задание на антикоррозионную защиту полов и надземной части фундаментов","074-09","9","11","2015-06-05","2015-06-11"]
[null,9,7077,"СОЮЗ",null,"П","Задание на антикоррозионную защиту полов и надземной части фундаментов","074-09","9","17","2015-06-05","2015-06-11"]
[null,10,7077,"СОЮЗ",null,"П","Задание на антикоррозионную защиту ограждающих конструкций","076-09","9","11","2015-06-05","2015-06-11"]
[null,11,7077,"СОЮЗ",null,"П","Задание на антикоррозионную защиту ограждающих конструкций","076-09","9","17","2015-06-05","2015-06-11"]

{"sheet":"10.1","index":1,"n_rows":127,"n_cols":18,"rows_kept":127,"cut":false,"hidden":false,"merged":[[6,1,6,5],[10,1,10,9],[0,1,0,3],[4,1,4,5],[2,1,2,5],[3,1,3,5],[5,1,5,5]]}
[null,"Форма №10.1"]
[null,null,null,null,null,null,null,null,null,null,null,null,null,null,null,"4","№ отдела"]
[null,"Объект",null,null,null,null,null,null,null,null,null,null,null,null,null,"август",{"$f":"IF($P$3=ФИО!$M$2,ФИО!O2,IF($P$3=ФИО!$M$3,ФИО!O3,IF($P$3=ФИО!$M$4,ФИО!O4,IF($P$3=ФИО!$M$5,ФИО!O5,IF($P$3=ФИО!$M$6,ФИО!O6,IF($P$3=ФИО!$M$7,ФИО!O7,IF($P$3=ФИО!$M$8,ФИО!O8,IF($P$3=ФИО!$M$9,ФИО!O9,IF($P$3=ФИО!$M$10,ФИО!O10,IF($P$3=ФИО!$M$11,ФИО!O11,IF($P$3=ФИО!$M$12,ФИО!O12,\"ОШИБКА ДАТЫ\")))))))))))","v":"2015-08-01"},{"$f":"IF($P$3=ФИО!$M$2,ФИО!P2,IF($P$3=ФИО!$M$3,ФИО!P3,IF($P$3=ФИО!$M$4,ФИО!P4,IF($P$3=ФИО!$M$5,ФИО!P5,IF($P$3=ФИО!$M$6,ФИО!P6,IF($P$3=ФИО!$M$7,ФИО!P7,IF($P$3=ФИО!$M$8,ФИО!P8,IF($P$3=ФИО!$M$9,ФИО!P9,IF($P$3=ФИО!$M$10,ФИО!P10,IF($P$3=ФИО!$M$11,ФИО!P11,IF($P$3=ФИО!$M$12,ФИО!P12,\"ОШИБКА ДАТЫ\")))))))))))","v":"2015-08-31"}]
[null,"Вид документа (стадия)"]
[null,"Стоимость работ (без НДС), тыс. руб. "]
[null,"Сроки выполнения работ по договору"]
[null,"ГИП"]
[]
[]
[]
[null,"Предварительный производственный план на текущий месяц отдела № ",null,null,null,null,null,null,null,null,{"$f":"P2","v":"4"}]
[]
[null,"№","Базовый номер","Объект строительства","Здание","Вид документа (стадия)","Наименование задания (по Графику)","№ формы","Отдел – разработчик документации","Плановое начало работ","Плановое окончание работ","Объем, %","Сумма, руб.","ФИО лица -исполнителя работ",null,"ФИО лица, составившего 10.1"]
["1.1",null,{"$f":"IF(OR(График!K6>=$Q$3,$I6<=$R$3,График!$I6=$P$2,График!$N7=0),График!C6,\"ОШИБКА ДАТЫ ИЛИ №ОТДЕЛА\")","v":6339},{"$f":"IF(OR(График!L6>=$Q$3,$I6<=$R$3,График!$I6=$P$2,График!$N7=0),График!D6,\"ОШИБКА ДАТЫ ИЛИ №ОТДЕЛА\")","v":900},{"$f":"IF(OR(График!M6>=$Q$3,$I6<=$R$3,График!$I6=$P$2,График!$N7=0),График!E6,\"ОШИБКА ДАТЫ ИЛИ №ОТДЕЛА\")","v":0},{"$f":"IF(OR(График!N6>=$Q$3,$I6<=$R$3,График!$I6=$P$2,График!$N7=0),График!F6,\"ОШИБКА ДАТЫ ИЛИ №ОТДЕЛА\")","v":"П"},{"$f":"IF(OR(График!O6>=$Q$3,$I6<=$R$3,График!$I6=$P$2,График!$N7=0),График!G6,\"ОШИБКА ДАТЫ ИЛИ №ОТДЕЛА\")","v":"Задание на антикоррозионную защиту полов и надземной части фундаментов"},{"$f":"IF(OR(График!P6>=$Q$3,$I6<=$R$3,График!$I6=$P$2,График!$N7=0),График!H6,\"ОШИБКА ДАТЫ ИЛИ №ОТДЕЛА\")","v":"074-09"},{"$f":"IF(OR(График!Q6>=$Q$3,$I6<=$R$3,График!$I6=$P$2,График!$N7=0),График!J6,\"ОШИБКА ДАТЫ ИЛИ №ОТДЕЛА\")","v":"12"},{"$f":"IF(OR(График!R6>=$Q$3,$I6<=$R$3,График!$I6=$P$2,График!$N7=0),График!K6,\"ОШИБКА ДАТЫ ИЛИ №ОТДЕЛА\")","v":"2015-06-24"},{"$f":"IF(OR(График!S6>=$Q$3,$I6<=$R$3,График!$I6=$P$2,График!$N7=0),График!L6,\"ОШИБКА ДАТЫ ИЛИ №ОТДЕЛА\")","v":"2015-06-30"}]
["1.2",null,{"$f":"IF(OR(График!K7>=$Q$3,$I7<=$R$3,График!$I7=$P$2,График!$N8=0),График!C7,\"ОШИБКА ДАТЫ ИЛИ №ОТДЕЛА\")","v":6339},{"$f":"IF(OR(График!L7>=$Q$3,$I7<=$R$3,График!$I7=$P$2,График!$N8=0),График!D7,\"ОШИБКА ДАТЫ ИЛИ №ОТДЕЛА\")","v":900},{"$f":"IF(OR(График!M7>=$Q$3,$I7<=$R$3,График!$I7=$P$2,График!$N8=0),График!E7,\"ОШИБКА ДАТЫ ИЛИ №ОТДЕЛА\")","v":0},{"$f":"IF(OR(График!N7>=$Q$3,$I7<=$R$3,График!$I7=$P$2,График!$N8=0),График!F7,\"ОШИБКА ДАТЫ ИЛИ №ОТДЕЛА\")","v":"П"},{"$f":"IF(OR(График!O7>=$Q$3,$I7<=$R$3,График!$I7=$P$2,График!$N8=0),График!G7,\"ОШИБКА ДАТЫ ИЛИ №ОТДЕЛА\")","v":"Задание на антикоррозионную защиту полов и надземной части фундаментов"},{"$f":"IF(OR(График!P7>=$Q$3,$I7<=$R$3,График!$I7=$P$2,График!$N8=0),График!H7,\"ОШИБКА ДАТЫ ИЛИ №ОТДЕЛА\")","v":"074-09"},{"$f":"IF(OR(График!Q7>=$Q$3,$I7<=$R$3,График!$I7=$P$2,График!$N8=0),График!J7,\"ОШИБКА ДАТЫ ИЛИ №ОТДЕЛА\")","v":"17"},{"$f":"IF(OR(График!R7>=$Q$3,$I7<=$R$3,График!$I7=$P$2,График!$N8=0),График!K7,\"ОШИБКА ДАТЫ ИЛИ №ОТДЕЛА\")","v":"2015-06-24"},{"$f":"IF(OR(График!S7>=$Q$3,$I7<=$R$3,График!$I7=$P$2,График!$N8=0),График!L7,\"ОШИБКА ДАТЫ ИЛИ №ОТДЕЛА\")","v":"2015-06-30"}]
["1.3",null,{"$f":"IF(OR(График!K8>=$Q$3,$I8<=$R$3,График!$I8=$P$2,График!$N9=0),График!C8,\"ОШИБКА ДАТЫ ИЛИ №ОТДЕЛА\")","v":6339},{"$f":"IF(OR(График!L8>=$Q$3,$I8<=$R$3,График!$I8=$P$2,График!$N9=0),График!D8,\"ОШИБКА ДАТЫ ИЛИ №ОТДЕЛА\")","v":900},{"$f":"IF(OR(График!M8>=$Q$3,$I8<=$R$3,График!$I8=$P$2,График!$N9=0),График!E8,\"ОШИБКА ДАТЫ ИЛИ №ОТДЕЛА\")","v":0},{"$f":"IF(OR(График!N8>=$Q$3,$I8<=$R$3,График!$I8=$P$2,График!$N9=0),График!F8,\"ОШИБКА ДАТЫ ИЛИ №ОТДЕЛА\")","v":"П"},{"$f":"IF(OR(График!O8>=$Q$3,$I8<=$R$3,График!$I8=$P$2,График!$N9=0),График!G8,\"ОШИБКА ДАТЫ ИЛИ №ОТДЕЛА\")","v":"Задание на связь и сигнализацию"},{"$f":"IF(OR(График!P8>=$Q$3,$I8<=$R$3,График!$I8=$P$2,График!$N9=0),График!H8,\"ОШИБКА ДАТЫ ИЛИ №ОТДЕЛА\")","v":"011-09"},{"$f":"IF(OR(График!Q8>=$Q$3,$I8<=$R$3,График!$I8=$P$2,График!$N9=0),График!J8,\"ОШИБКА ДАТЫ ИЛИ №ОТДЕЛА\")","v":"20"},{"$f":"IF(OR(График!R8>=$Q$3,$I8<=$R$3,График!$I8=$P$2,График!$N9=0),График!K8,\"ОШИБКА ДАТЫ ИЛИ №ОТДЕЛА\")","v":"2015-07-23"},{"$f":"IF(OR(График!S8>=$Q$3,$I8<=$R$3,График!$I8=$P$2,График!$N9=0),График!L8,\"ОШИБКА ДАТЫ ИЛИ №ОТДЕЛА\")","v":"2015-07-24"}]
["1.4",null,{"$f":"IF(OR(График!K9>=$Q$3,$I9<=$R$3,График!$I9=$P$2,График!$N10=0),График!C9,\"ОШИБКА ДАТЫ ИЛИ №ОТДЕЛА\")","v":6339},{"$f":"IF(OR(График!L9>=$Q$3,$I9<=$R$3,График!$I9=$P$2,График!$N10=0),График!D9,\"ОШИБКА ДАТЫ ИЛИ №ОТДЕЛА\")","v":900},{"$f":"IF(OR(График!M9>=$Q$3,$I9<=$R$3,График!$I9=$P$2,График!$N10=0),График!E9,\"ОШИБКА ДАТЫ ИЛИ №ОТДЕЛА\")","v":0},{"$f":"IF(OR(График!N9>=$Q$3,$I9<=$R$3,График!$I9=$P$2,График!$N10=0),График!F9,\"ОШИБКА ДАТЫ ИЛИ №ОТДЕЛА\")","v":"П"},{"$f":"IF(OR(График!O9>=$Q$3,$I9<=$R$3,График!$I9=$P$2,График!$N10=0),График!G9,\"ОШИБКА ДАТЫ ИЛИ №ОТДЕЛА\")","v":"Задание на выбросы (на период строительства)"},{"$f":"IF(OR(График!P9>=$Q$3,$I9<=$R$3,График!$I9=$P$2,График!$N10=0),График!H9,\"ОШИБКА ДАТЫ ИЛИ №ОТДЕЛА\")","v":"075-09"},{"$f":"IF(OR(График!Q9>=$Q$3,$I9<=$R$3,График!$I9=$P$2,График!$N10=0),График!J9,\"ОШИБКА ДАТЫ ИЛИ №ОТДЕЛА\")","v":"10"},{"$f":"IF(OR(График!R9>=$Q$3,$I9<=$R$3,График!$I9=$P$2,График!$N10=0),График!K9,\"ОШИБКА ДАТЫ ИЛИ №ОТДЕЛА\")","v":"2015-06-16"},{"$f":"IF(OR(График!S9>=$Q$3,$I9<=$R$3,График!$I9=$P$2,График!$N10=0),График!L9,\"ОШИБКА ДАТЫ ИЛИ №ОТДЕЛА\")","v":"2015-06-17"}]
["1.5",null,{"$f":"IF(OR(График!K10>=$Q$3,$I10<=$R$3,График!$I10=$P$2,График!$N11=0),График!C10,\"ОШИБКА ДАТЫ ИЛИ №ОТДЕЛА\")","v":6339},{"$f":"IF(OR(График!L10>=$Q$3,$I10<=$R$3,График!$I10=$P$2,График!$N11=0),График!D10,\"ОШИБКА ДАТЫ ИЛИ №ОТДЕЛА\")","v":900},{"$f":"IF(OR(График!M10>=$Q$3,$I10<=$R$3,График!$I10=$P$2,График!$N11=0),График!E10,\"ОШИБКА ДАТЫ ИЛИ №ОТДЕЛА\")","v":0},{"$f":"IF(OR(График!N10>=$Q$3,$I10<=$R$3,График!$I10=$P$2,График!$N11=0),График!F10,\"ОШИБКА ДАТЫ ИЛИ №ОТДЕЛА\")","v":"П"},{"$f":"IF(OR(График!O10>=$Q$3,$I10<=$R$3,График!$I10=$P$2,График!$N11=0),График!G10,\"ОШИБКА ДАТЫ ИЛИ №ОТДЕЛА\")","v":"Задание на выбросы (на период эксплуатации)"},{"$f":"IF(OR(График!P10>=$Q$3,$I10<=$R$3,График!$I10=$P$2,График!$N11=0),График!H10,\"ОШИБКА ДАТЫ ИЛИ №ОТДЕЛА\")","v":"075-09"},{"$f":"IF(OR(График!Q10>=$Q$3,$I10<=$R$3,График!$I10=$P$2,График!$N11=0),График!J10,\"ОШИБКА ДАТЫ ИЛИ №ОТДЕЛА\")","v":"10"},{"$f":"IF(OR(График!R10>=$Q$3,$I10<=$R$3,График!$I10=$P$2,График!$N11=0),График!K10,\"ОШИБКА ДАТЫ ИЛИ №ОТДЕЛА\")","v":"2015-06-16"},{"$f":"IF(OR(График!S10>=$Q$3,$I10<=$R$3,График!$I10=$P$2,График!$N11=0),График!L10,\"ОШИБКА ДАТЫ ИЛИ №ОТДЕЛА\")","v":"2015-06-18"}]
["1.6",null,{"$f":"IF(OR(График!K11>=$Q$3,$I11<=$R$3,График!$I11=$P$2,График!$N12=0),График!C11,\"ОШИБКА ДАТЫ ИЛИ №ОТДЕЛА\")","v":6339},{"$f":"IF(OR(График!L11>=$Q$3,$I11<=$R$3,График!$I11=$P$2,График!$N12=0),График!D11,\"ОШИБКА ДАТЫ ИЛИ №ОТДЕЛА\")","v":900},{"$f":"IF(OR(График!M11>=$Q$3,$I11<=$R$3,График!$I11=$P$2,График!$N12=0),График!E11,\"ОШИБКА ДАТЫ ИЛИ №ОТДЕЛА\")","v":0},{"$f":"IF(OR(График!N11>=$Q$3,$I11<=$R$3,График!$I11=$P$2,График!$N12=0),График!F11,\"ОШИБКА ДАТЫ ИЛИ №ОТДЕЛА\")","v":"П"},{"$f":"IF(OR(График!O11>=$Q$3,$I11<=$R$3,График!$I11=$P$2,График!$N12=0),График!G11,\"ОШИБКА ДАТЫ ИЛИ №ОТДЕЛА\")","v":"Задание на численность"},{"$f":"IF(OR(График!P11>=$Q$3,$I11<=$R$3,График!$I11=$P$2,График!$N12=0),График!H11,\"ОШИБКА ДАТЫ ИЛИ №ОТДЕЛА\")","v":"Служебная записка"},{"$f":"IF(OR(График!Q11>=$Q$3,$I11<=$R$3,График!$I11=$P$2,График!$N12=0),График!J11,\"ОШИБКА ДАТЫ ИЛИ №ОТДЕЛА\")","v":"26"},{"$f":"IF(OR(График!R11>=$Q$3,$I11<=$R$3,График!$I11=$P$2,График!$N12=0),График!K11,\"ОШИБКА ДАТЫ ИЛИ №ОТДЕЛА\")","v":"2015-06-24"},{"$f":"IF(OR(График!S11>=$Q$3,$I11<=$R$3,График!$I11=$P$2,График!$N12=0),График!L11,\"ОШИБКА ДАТЫ ИЛИ №ОТДЕЛА\")","v":"2015-06-24"}]
["1.7",null,{"$f":"IF(OR(График!K12>=$Q$3,$I12<=$R$3,График!$I12=$P$2,График!$N13=0),График!C12,\"ОШИБКА ДАТЫ ИЛИ №ОТДЕЛА\")","v":6339},{"$f":"IF(OR(График!L12>=$Q$3,$I12<=$R$3,График!$I12=$P$2,График!$N13=0),График!D12,\"ОШИБКА ДАТЫ ИЛИ №ОТДЕЛА\")","v":900},{"$f":"IF(OR(График!M12>=$Q$3,$I12<=$R$3,График!$I12=$P$2,График!$N13=0),График!E12,\"ОШИБКА ДАТЫ ИЛИ №ОТДЕЛА\")","v":0},{"$f":"IF(OR(График!N12>=$Q$3,$I12<=$R$3,График!$I12=$P$2,График!$N13=0),График!F12,\"ОШИБКА ДАТЫ ИЛИ №ОТДЕЛА\")","v":"П"},{"$f":"IF(OR(График!O12>=$Q$3,$I12<=$R$3,График!$I12=$P$2,График!$N13=0),График!G12,\"ОШИБКА ДАТЫ ИЛИ №ОТДЕЛА\")","v":"Задание на численность"},{"$f":"IF(OR(График!P12>=$Q$3,$I12<=$R$3,График!$I12=$P$2,График!$N13=0),График!H12,\"ОШИБКА ДАТЫ ИЛИ №ОТДЕЛА\")","v":"Служебная записка"},{"$f":"IF(OR(График!Q12>=$Q$3,$I12<=$R$3,График!$I12=$P$2,График!$N13=0),График!J12,\"ОШИБКА ДАТЫ ИЛИ №ОТДЕЛА\")","v":"26"},{"$f":"IF(OR(График!R12>=$Q$3,$I12<=$R$3,График!$I12=$P$2,График!$N13=0),График!K12,\"ОШИБКА ДАТЫ ИЛИ №ОТДЕЛА\")","v":"2015-06-24"},{"$f":"IF(OR(График!S12>=$Q$3,$I12<=$R$3,График!$I12=$P$2,График!$N13=0),График!L12,\"ОШИБКА ДАТЫ ИЛИ №ОТДЕЛА\")","v":"2015-06-24"}]
["1.8",null,{"$f":"IF(OR(График!K13>=$Q$3,$I13<=$R$3,График!$I13=$P$2,График!$N14=0),График!C13,\"ОШИБКА ДАТЫ ИЛИ №ОТДЕЛА\")","v":6339},{"$f":"IF(OR(График!L13>=$Q$3,$I13<=$R$3,График!$I13=$P$2,График!$N14=0),График!D13,\"ОШИБКА ДАТЫ ИЛИ №ОТДЕЛА\")","v":900},{"$f":"IF(OR(График!M13>=$Q$3,$I13<=$R$3,График!$I13=$P$2,График!$N14=0),График!E13,\"ОШИБКА ДАТЫ ИЛИ №ОТДЕЛА\")","v":0},{"$f":"IF(OR(График!N13>=$Q$3,$I13<=$R$3,График!$I13=$P$2,График!$N14=0),График!F13,\"ОШИБКА ДАТЫ ИЛИ №ОТДЕЛА\")","v":"П"},{"$f":"IF(OR(График!O13>=$Q$3,$I13<=$R$3,График!$I13=$P$2,График!$N14=0),График!G13,\"ОШИБКА ДАТЫ ИЛИ №ОТДЕЛА\")","v":"Задание на численность"},{"$f":"IF(OR(График!P13>=$Q$3,$I13<=$R$3,График!$I13=$P$2,График!$N14=0),График!H13,\"ОШИБКА ДАТЫ ИЛИ №ОТДЕЛА\")","v":"Служебная записка"},{"$f":"IF(OR(График!Q13>=$Q$3,$I13<=$R$3,График!$I13=$P$2,График!$N14=0),График!J13,\"ОШИБКА ДАТЫ ИЛИ №ОТДЕЛА\")","v":"26"},{"$f":"IF(OR(График!R13>=$Q$3,$I13<=$R$3,График!$I13=$P$2,График!$N14=0),График!K13,\"ОШИБКА ДАТЫ ИЛИ №ОТДЕЛА\")","v":"2015-06-24"},{"$f":"IF(OR(График!S13>=$Q$3,$I13<=$R$3,График!$I13=$P$2,График!$N14=0),График!L13,\"ОШИБКА ДАТЫ ИЛИ №ОТДЕЛА\")","v":"2015-06-24"}]
["1.9",null,{"$f":"IF(OR(График!K14>=$Q$3,$I14<=$R$3,График!$I14=$P$2,График!$N15=0),График!C14,\"ОШИБКА ДАТЫ ИЛИ №ОТДЕЛА\")","v":6339},{"$f":"IF(OR(График!L14>=$Q$3,$I14<=$R$3,График!$I14=$P$2,График!$N15=0),График!D14,\"ОШИБКА ДАТЫ ИЛИ №ОТДЕЛА\")","v":900},{"$f":"IF(OR(График!M14>=$Q$3,$I14<=$R$3,График!$I14=$P$2,График!$N15=0),График!E14,\"ОШИБКА ДАТЫ ИЛИ №ОТДЕЛА\")","v":0},{"$f":"IF(OR(График!N14>=$Q$3,$I14<=$R$3,График!$I14=$P$2,График!$N15=0),График!F14,\"ОШИБКА ДАТЫ ИЛИ №ОТДЕЛА\")","v":"П"},{"$f":"IF(OR(График!O14>=$Q$3,$I14<=$R$3,График!$I14=$P$2,График!$N15=0),График!G14,\"ОШИБКА ДАТЫ ИЛИ №ОТДЕЛА\")","v":"Задание на численность"},{"$f":"IF(OR(График!P14>=$Q$3,$I14<=$R$3,График!$I14=$P$2,График!$N15=0),График!H14,\"ОШИБКА ДАТЫ ИЛИ №ОТДЕЛА\")","v":"Служебная записка"},{"$f":"IF(OR(График!Q14>=$Q$3,$I14<=$R$3,График!$I14=$P$2,График!$N15=0),График!J14,\"ОШИБКА ДАТЫ ИЛИ №ОТДЕЛА\")","v":"26"},{"$f":"IF(OR(График!R14>=$Q$3,$I14<=$R$3,График!$I14=$P$2,График!$N15=0),График!K14,\"ОШИБКА ДАТЫ ИЛИ №ОТДЕЛА\")","v":"2015-06-24"},{"$f":"IF(OR(График!S14>=$Q$3,$I14<=$R$3,График!$I14=$P$2,График!$N15=0),График!L14,\"ОШИБКА ДАТЫ ИЛИ №ОТДЕЛА\")","v":"2015-06-24"}]
["1.10",null,{"$f":"IF(OR(График!K15>=$Q$3,$I15<=$R$3,График!$I15=$P$2,График!$N16=0),График!C15,\"ОШИБКА ДАТЫ ИЛИ №ОТДЕЛА\")","v":6339},{"$f":"IF(OR(График!L15>=$Q$3,$I15<=$R$3,График!$I15=$P$2,График!$N16=0),График!D15,\"ОШИБКА ДАТЫ ИЛИ №ОТДЕЛА\")","v":900},{"$f":"IF(OR(График!M15>=$Q$3,$I15<=$R$3,График!$I15=$P$2,График!$N16=0),График!E15,\"ОШИБКА ДАТЫ ИЛИ №ОТДЕЛА\")","v":0},{"$f":"IF(OR(График!N15>=$Q$3,$I15<=$R$3,График!$I15=$P$2,График!$N16=0),График!F15,\"ОШИБКА ДАТЫ ИЛИ №ОТДЕЛА\")","v":"П"},{"$f":"IF(OR(График!O15>=$Q$3,$I15<=$R$3,График!$I15=$P$2,График!$N16=0),График!G15,\"ОШИБКА ДАТЫ ИЛИ №ОТДЕЛА\")","v":"Задание на численность"},{"$f":"IF(OR(График!P15>=$Q$3,$I15<=$R$3,График!$I15=$P$2,График!$N16=0),График!H15,\"ОШИБКА ДАТЫ ИЛИ №ОТДЕЛА\")","v":"Служебная записка"},{"$f":"IF(OR(График!Q15>=$Q$3,$I15<=$R$3,График!$I15=$P$2,График!$N16=0),График!J15,\"ОШИБКА ДАТЫ ИЛИ №ОТДЕЛА\")","v":"26"},{"$f":"IF(OR(График!R15>=$Q$3,$I15<=$R$3,График!$I15=$P$2,График!$N16=0),График!K15,\"ОШИБКА ДАТЫ ИЛИ №ОТДЕЛА\")","v":"2015-06-24"},{"$f":"IF(OR(График!S15>=$Q$3,$I15<=$R$3,График!$I15=$P$2,График!$N16=0),График!L15,\"ОШИБКА ДАТЫ ИЛИ №ОТДЕЛА\")","v":"2015-06-24"}]
["1.11",null,{"$f":"IF(OR(График!K16>=$Q$3,$I16<=$R$3,График!$I16=$P$2,График!$N17=0),График!C16,\"ОШИБКА ДАТЫ ИЛИ №ОТДЕЛА\")","v":6339},{"$f":"IF(OR(График!L16>=$Q$3,$I16<=$R$3,График!$I16=$P$2,График!$N17=0),График!D16,\"ОШИБКА ДАТЫ ИЛИ №ОТДЕЛА\")","v":900},{"$f":"IF(OR(График!M16>=$Q$3,$I16<=$R$3,График!$I16=$P$2,График!$N17=0),График!E16,\"ОШИБКА ДАТЫ ИЛИ №ОТДЕЛА\")","v":0},{"$f":"IF(OR(График!N16>=$Q$3,$I16<=$R$3,График!$I16=$P$2,График!$N17=0),График!F16,\"ОШИБКА ДАТЫ ИЛИ №ОТДЕЛА\")","v":"П"},{"$f":"IF(OR(График!O16>=$Q$3,$I16<=$R$3,График!$I16=$P$2,График!$N17=0),График!G16,\"ОШИБКА ДАТЫ ИЛИ №ОТДЕЛА\")","v":"Задание на численность"},{"$f":"IF(OR(График!P16>=$Q$3,$I16<=$R$3,График!$I16=$P$2,График!$N17=0),График!H16,\"ОШИБКА ДАТЫ ИЛИ №ОТДЕЛА\")","v":"Служебная записка"},{"$f":"IF(OR(График!Q16>=$Q$3,$I16<=$R$3,График!$I16=$P$2,График!$N17=0),График!J16,\"ОШИБКА ДАТЫ ИЛИ №ОТДЕЛА\")","v":"26"},{"$f":"IF(OR(График!R16>=$Q$3,$I16<=$R$3,График!$I16=$P$2,График!$N17=0),График!K16,\"ОШИБКА ДАТЫ ИЛИ №ОТДЕЛА\")","v":"2015-06-24"},{"$f":"IF(OR(График!S16>=$Q$3,$I16<=$R$3,График!$I16=$P$2,График!$N17=0),График!L16,\"ОШИБКА ДАТЫ ИЛИ №ОТДЕЛА\")","v":"2015-06-24"}]
["1.12",null,{"$f":"IF(OR(График!K17>=$Q$3,$I17<=$R$3,График!$I17=$P$2,График!$N18=0),График!C17,\"ОШИБКА ДАТЫ ИЛИ №ОТДЕЛА\")","v":6339},{"$f":"IF(OR(График!L17>=$Q$3,$I17<=$R$3,График!$I17=$P$2,График!$N18=0),График!D17,\"ОШИБКА ДАТЫ ИЛИ №ОТДЕЛА\")","v":900},{"$f":"IF(OR(График!M17>=$Q$3,$I17<=$R$3,График!$I17=$P$2,График!$N18=0),График!E17,\"ОШИБКА ДАТЫ ИЛИ №ОТДЕЛА\")","v":0},{"$f":"IF(OR(График!N17>=$Q$3,$I17<=$R$3,График!$I17=$P$2,График!$N18=0),График!F17,\"ОШИБКА ДАТЫ ИЛИ №ОТДЕЛА\")","v":"П"},{"$f":"IF(OR(График!O17>=$Q$3,$I17<=$R$3,График!$I17=$P$2,График!$N18=0),График!G17,\"ОШИБКА ДАТЫ ИЛИ №ОТДЕЛА\")","v":"Задание на бытовые помещения"},{"$f":"IF(OR(График!P17>=$Q$3,$I17<=$R$3,График!$I17=$P$2,График!$N18=0),График!H17,\"ОШИБКА ДАТЫ ИЛИ №ОТДЕЛА\")","v":"005-09"},{"$f":"IF(OR(График!Q17>=$Q$3,$I17<=$R$3,График!$I17=$P$2,График!$N18=0),График!J17,\"ОШИБКА ДАТЫ ИЛИ №ОТДЕЛА\")","v":"17"},{"$f":"IF(OR(График!R17>=$Q$3,$I17<=$R$3,График!$I17=$P$2,График!$N18=0),График!K17,\"ОШИБКА ДАТЫ ИЛИ №ОТДЕЛА\")","v":"2015-06-30"},{"$f":"IF(OR(График!S17>=$Q$3,$I17<=$R$3,График!$I17=$P$2,График!$N18=0),График!L17,\"ОШИБКА ДАТЫ ИЛИ №ОТДЕЛА\")","v":"2015-06-30"}]
["1.13",null,{"$f":"IF(OR(График!K18>=$Q$3,$I18<=$R$3,График!$I18=$P$2,График!$N19=0),График!C18,\"ОШИБКА ДАТЫ ИЛИ №ОТДЕЛА\")","v":6339},{"$f":"IF(OR(График!L18>=$Q$3,$I18<=$R$3,График!$I18=$P$2,График!$N19=0),График!D18,\"ОШИБКА ДАТЫ ИЛИ №ОТДЕЛА\")","v":900},{"$f":"IF(OR(График!M18>=$Q$3,$I18<=$R$3,График!$I18=$P$2,График!$N19=0),График!E18,\"ОШИБКА ДАТЫ ИЛИ №ОТДЕЛА\")","v":0},{"$f":"IF(OR(График!N18>=$Q$3,$I18<=$R$3,График!$I18=$P$2,График!$N19=0),График!F18,\"ОШИБКА ДАТЫ ИЛИ №ОТДЕЛА\")","v":"П"},{"$f":"IF(OR(График!O18>=$Q$3,$I18<=$R$3,График!$I18=$P$2,График!$N19=0),График!G18,\"ОШИБКА ДАТЫ ИЛИ №ОТДЕЛА\")","v":"ОСР 1 (фундаменты и приямки)"},{"$f":"IF(OR(График!P18>=$Q$3,$I18<=$R$3,График!$I18=$P$2,График!$N19=0),График!H18,\"ОШИБКА ДАТЫ ИЛИ №ОТДЕЛА\")","v":"Служебная записка"},{"$f":"IF(OR(График!Q18>=$Q$3,$I18<=$R$3,График!$I18=$P$2,График!$N19=0),График!J18,\"ОШИБКА ДАТЫ ИЛИ №ОТДЕЛА\")","v":"12"},{"$f":"IF(OR(График!R18>=$Q$3,$I18<=$R$3,График!$I18=$P$2,График!$N19=0),График!K18,\"ОШИБКА ДАТЫ ИЛИ №ОТДЕЛА\")","v":"2015-08-24"},{"$f":"IF(OR(График!S18>=$Q$3,$I18<=$R$3,График!$I18=$P$2,График!$N19=0),График!L18,\"ОШИБКА ДАТЫ ИЛИ №ОТДЕЛА\")","v":"2015-08-28"}]
["1.14",null,{"$f":"IF(OR(График!K19>=$Q$3,$I19<=$R$3,График!$I19=$P$2,График!$N20=0),График!C19,\"ОШИБКА ДАТЫ ИЛИ №ОТДЕЛА\")","v":6339},{"$f":"IF(OR(График!L19>=$Q$3,$I19<=$R$3,График!$I19=$P$2,График!$N20=0),График!D19,\"ОШИБКА ДАТЫ ИЛИ №ОТДЕЛА\")","v":900},{"$f":"IF(OR(График!M19>=$Q$3,$I19<=$R$3,График!$I19=$P$2,График!$N20=0),График!E19,\"ОШИБКА ДАТЫ ИЛИ №ОТДЕЛА\")","v":0},{"$f":"IF(OR(График!N19>=$Q$3,$I19<=$R$3,График!$I19=$P$2,График!$N20=0),График!F19,\"ОШИБКА ДАТЫ ИЛИ №ОТДЕЛА\")","v":"П"},{"$f":"IF(OR(График!O19>=$Q$3,$I19<=$R$3,График!$I19=$P$2,График!$N20=0),График!G19,\"ОШИБКА ДАТЫ ИЛИ №ОТДЕЛА\")","v":"ОСР 1 (фундаменты и приямки)"},{"$f":"IF(OR(График!P19>=$Q$3,$I19<=$R$3,График!$I19=$P$2,График!$N20=0),График!H19,\"ОШИБКА ДАТЫ ИЛИ №ОТДЕЛА\")","v":"Служебная записка"},{"$f":"IF(OR(График!Q19>=$Q$3,$I19<=$R$3,График!$I19=$P$2,График!$N20=0),График!J19,\"ОШИБКА ДАТЫ ИЛИ №ОТДЕЛА\")","v":"17"},{"$f":"IF(OR(График!R19>=$Q$3,$I19<=$R$3,График!$I19=$P$2,График!$N20=0),График!K19,\"ОШИБКА ДАТЫ ИЛИ №ОТДЕЛА\")","v":"2015-08-24"},{"$f":"IF(OR(График!S19>=$Q$3,$I19<=$R$3,График!$I19=$P$2,График!$N20=0),График!L19,\"ОШИБКА ДАТЫ ИЛИ №ОТДЕЛА\")","v":"2015-08-28"}]
["1.15",null,{"$f":"IF(OR(График!K20>=$Q$3,$I20<=$R$3,График!$I20=$P$2,График!$N21=0),График!C20,\"ОШИБКА ДАТЫ ИЛИ №ОТДЕЛА\")","v":6339},{"$f":"IF(OR(График!L20>=$Q$3,$I20<=$R$3,График!$I20=$P$2,График!$N21=0),График!D20,\"ОШИБКА ДАТЫ ИЛИ №ОТДЕЛА\")","v":900},{"$f":"IF(OR(График!M20>=$Q$3,$I20<=$R$3,График!$I20=$P$2,График!$N21=0),График!E20,\"ОШИБКА ДАТЫ ИЛИ №ОТДЕЛА\")","v":0},{"$f":"IF(OR(График!N20>=$Q$3,$I20<=$R$3,График!$I20=$P$2,График!$N21=0),График!F20,\"ОШИБКА ДАТЫ ИЛИ №ОТДЕЛА\")","v":"П"},{"$f":"IF(OR(График!O20>=$Q$3,$I20<=$R$3,График!$I20=$P$2,График!$N21=0),График!G20,\"ОШИБКА ДАТЫ ИЛИ №ОТДЕЛА\")","v":"ОСР 1 (фундаменты и приямки)"},{"$f":"IF(OR(График!P20>=$Q$3,$I20<=$R$3,График!$I20=$P$2,График!$N21=0),График!H20,\"ОШИБКА ДАТЫ ИЛИ №ОТДЕЛА\")","v":"Служебная записка"},{"$f":"IF(OR(График!Q20>=$Q$3,$I20<=$R$3,График!$I20=$P$2,График!$N21=0),График!J20,\"ОШИБКА ДАТЫ ИЛИ №ОТДЕЛА\")","v":"12"},{"$f":"IF(OR(График!R20>=$Q$3,$I20<=$R$3,График!$I20=$P$2,График!$N21=0),График!K20,\"ОШИБКА ДАТЫ ИЛИ №ОТДЕЛА\")","v":"2015-08-13"},{"$f":"IF(OR(График!S20>=$Q$3,$I20<=$R$3,График!$I20=$P$2,График!$N21=0),График!L20,\"ОШИБКА ДАТЫ ИЛИ №ОТДЕЛА\")","v":"2015-08-19"}]
["1.16",null,{"$f":"IF(OR(График!K21>=$Q$3,$I21<=$R$3,График!$I21=$P$2,График!$N22=0),График!C21,\"ОШИБКА ДАТЫ ИЛИ №ОТДЕЛА\")","v":6339},{"$f":"IF(OR(График!L21>=$Q$3,$I21<=$R$3,График!$I21=$P$2,График!$N22=0),График!D21,\"ОШИБКА ДАТЫ ИЛИ №ОТДЕЛА\")","v":900},{"$f":"IF(OR(График!M21>=$Q$3,$I21<=$R$3,График!$I21=$P$2,График!$N22=0),График!E21,\"ОШИБКА ДАТЫ ИЛИ №ОТДЕЛА\")","v":0},{"$f":"IF(OR(График!N21>=$Q$3,$I21<=$R$3,График!$I21=$P$2,График!$N22=0),График!F21,\"ОШИБКА ДАТЫ ИЛИ №ОТДЕЛА\")","v":"П"},{"$f":"IF(OR(График!O21>=$Q$3,$I21<=$R$3,График!$I21=$P$2,График!$N22=0),График!G21,\"ОШИБКА ДАТЫ ИЛИ №ОТДЕЛА\")","v":"ОСР 1 (фундаменты и приямки)"},{"$f":"IF(OR(График!P21>=$Q$3,$I21<=$R$3,График!$I21=$P$2,График!$N22=0),График!H21,\"ОШИБКА ДАТЫ ИЛИ №ОТДЕЛА\")","v":"Служебная записка"},{"$f":"IF(OR(График!Q21>=$Q$3,$I21<=$R$3,График!$I21=$P$2,График!$N22=0),График!J21,\"ОШИБКА ДАТЫ ИЛИ №ОТДЕЛА\")","v":"17"},{"$f":"IF(OR(График!R21>=$Q$3,$I21<=$R$3,График!$I21=$P$2,График!$N22=0),График!K21,\"ОШИБКА ДАТЫ ИЛИ №ОТДЕЛА\")","v":"2015-08-13"},{"$f":"IF(OR(График!S21>=$Q$3,$I21<=$R$3,График!$I21=$P$2,График!$N22=0),График!L21,\"ОШИБКА ДАТЫ ИЛИ №ОТДЕЛА\")","v":"2015-08-19"}]
["1.17",null,{"$f":"IF(OR(График!K22>=$Q$3,$I22<=$R$3,График!$I22=$P$2,График!$N23=0),График!C22,\"ОШИБКА ДАТЫ ИЛИ №ОТДЕЛА\")","v":6339},{"$f":"IF(OR(График!L22>=$Q$3,$I22<=$R$3,График!$I22=$P$2,График!$N23=0),График!D22,\"ОШИБКА ДАТЫ ИЛИ №ОТДЕЛА\")","v":900},{"$f":"IF(OR(График!M22>=$Q$3,$I22<=$R$3,График!$I22=$P$2,График!$N23=0),График!E22,\"ОШИБКА ДАТЫ ИЛИ №ОТДЕЛА\")","v":0},{"$f":"IF(OR(График!N22>=$Q$3,$I22<=$R$3,График!$I22=$P$2,График!$N23=0),График!F22,\"ОШИБКА ДАТЫ ИЛИ №ОТДЕЛА\")","v":"П"},{"$f":"IF(OR(График!O22>=$Q$3,$I22<=$R$3,График!$I22=$P$2,График!$N23=0),График!G22,\"ОШИБКА ДАТЫ ИЛИ №ОТДЕЛА\")","v":"ОСР 1 (фундаменты и приямки)"},{"$f":"IF(OR(График!P22>=$Q$3,$I22<=$R$3,График!$I22=$P$2,График!$N23=0),График!H22,\"ОШИБКА ДАТЫ ИЛИ №ОТДЕЛА\")","v":"Служебная записка"},{"$f":"IF(OR(График!Q22>=$Q$3,$I22<=$R$3,График!$I22=$P$2,График!$N23=0),График!J22,\"ОШИБКА ДАТЫ ИЛИ №ОТДЕЛА\")","v":"12"},{"$f":"IF(OR(График!R22>=$Q$3,$I22<=$R$3,График!$I22=$P$2,График!$N23=0),График!K22,\"ОШИБКА ДАТЫ ИЛИ №ОТДЕЛА\")","v":"2015-08-18"},{"$f":"IF(OR(График!S22>=$Q$3,$I22<=$R$3,График!$I22=$P$2,График!$N23=0),График!L22,\"ОШИБКА ДАТЫ ИЛИ №ОТДЕЛА\")","v":"2015-08-24"}]
["1.18",null,{"$f":"IF(OR(График!K23>=$Q$3,$I23<=$R$3,График!$I23=$P$2,График!$N24=0),График!C23,\"ОШИБКА ДАТЫ ИЛИ №ОТДЕЛА\")","v":6339},{"$f":"IF(OR(График!L23>=$Q$3,$I23<=$R$3,График!$I23=$P$2,График!$N24=0),График!D23,\"ОШИБКА ДАТЫ ИЛИ №ОТДЕЛА\")","v":900},{"$f":"IF(OR(График!M23>=$Q$3,$I23<=$R$3,График!$I23=$P$2,График!$N24=0),График!E23,\"ОШИБКА ДАТЫ ИЛИ №ОТДЕЛА\")","v":0},{"$f":"IF(OR(График!N23>=$Q$3,$I23<=$R$3,График!$I23=$P$2,График!$N24=0),График!F23,\"ОШИБКА ДАТЫ ИЛИ №ОТДЕЛА\")","v":"П"},{"$f":"IF(OR(График!O23>=$Q$3,$I23<=$R$3,График!$I23=$P$2,График!$N24=0),График!G23,\"ОШИБКА ДАТЫ ИЛИ №ОТДЕЛА\")","v":"ОСР 1 (фундаменты и приямки)"},{"$f":"IF(OR(График!P23>=$Q$3,$I23<=$R$3,График!$I23=$P$2,График!$N24=0),График!H23,\"ОШИБКА ДАТЫ ИЛИ №ОТДЕЛА\")","v":"Служебная записка"},{"$f":"IF(OR(График!Q23>=$Q$3,$I23<=$R$3,График!$I23=$P$2,График!$N24=0),График!J23,\"ОШИБКА ДАТЫ ИЛИ №ОТДЕЛА\")","v":"17"},{"$f":"IF(OR(График!R23>=$Q$3,$I23<=$R$3,График!$I23=$P$2,График!$N24=0),График!K23,\"ОШИБКА ДАТЫ ИЛИ №ОТДЕЛА\")","v":"2015-08-18"},{"$f":"IF(OR(График!S23>=$Q$3,$I23<=$R$3,График!$I23=$P$2,График!$N24=0),График!L23,\"ОШИБКА ДАТЫ ИЛИ №ОТДЕЛА\")","v":"2015-08-24"}]
["1.19",null,{"$f":"IF(OR(График!K24>=$Q$3,$I24<=$R$3,График!$I24=$P$2,График!$N25=0),График!C24,\"ОШИБКА ДАТЫ ИЛИ №ОТДЕЛА\")","v":6339},{"$f":"IF(OR(График!L24>=$Q$3,$I24<=$R$3,График!$I24=$P$2,График!$N25=0),График!D24,\"ОШИБКА ДАТЫ ИЛИ №ОТДЕЛА\")","v":900},{"$f":"IF(OR(График!M24>=$Q$3,$I24<=$R$3,График!$I24=$P$2,График!$N25=0),График!E24,\"ОШИБКА ДАТЫ ИЛИ №ОТДЕЛА\")","v":0},{"$f":"IF(OR(График!N24>=$Q$3,$I24<=$R$3,График!$I24=$P$2,График!$N25=0),График!F24,\"ОШИБКА ДАТЫ ИЛИ №ОТДЕЛА\")","v":"П"},{"$f":"IF(OR(График!O24>=$Q$3,$I24<=$R$3,График!$I24=$P$2,График!$N25=0),График!G24,\"ОШИБКА ДАТЫ ИЛИ №ОТДЕЛА\")","v":"ОСР 1 (фундаменты и приямки)"},{"$f":"IF(OR(График!P24>=$Q$3,$I24<=$R$3,График!$I24=$P$2,График!$N25=0),График!H24,\"ОШИБКА ДАТЫ ИЛИ №ОТДЕЛА\")","v":"Служебная записка"},{"$f":"IF(OR(График!Q24>=$Q$3,$I24<=$R$3,График!$I24=$P$2,График!$N25=0),График!J24,\"ОШИБКА ДАТЫ ИЛИ №ОТДЕЛА\")","v":"12"},{"$f":"IF(OR(График!R24>=$Q$3,$I24<=$R$3,График!$I24=$P$2,График!$N25=0),График!K24,\"ОШИБКА ДАТЫ ИЛИ №ОТДЕЛА\")","v":"2015-08-10"},{"$f":"IF(OR(График!S24>=$Q$3,$I24<=$R$3,График!$I24=$P$2,График!$N25=0),График!L24,\"ОШИБКА ДАТЫ ИЛИ №ОТДЕЛА\")","v":"2015-08-14"}]
["1.20",null,{"$f":"IF(OR(График!K25>=$Q$3,$I25<=$R$3,График!$I25=$P$2,График!$N26=0),График!C25,\"ОШИБКА ДАТЫ ИЛИ №ОТДЕЛА\")","v":6339},{"$f":"IF(OR(График!L25>=$Q$3,$I25<=$R$3,График!$I25=$P$2,График!$N26=0),График!D25,\"ОШИБКА ДАТЫ ИЛИ №ОТДЕЛА\")","v":900},{"$f":"IF(OR(График!M25>=$Q$3,$I25<=$R$3,График!$I25=$P$2,График!$N26=0),График!E25,\"ОШИБКА ДАТЫ ИЛИ №ОТДЕЛА\")","v":0},{"$f":"IF(OR(График!N25>=$Q$3,$I25<=$R$3,График!$I25=$P$2,График!$N26=0),График!F25,\"ОШИБКА ДАТЫ ИЛИ №ОТДЕЛА\")","v":"П"},{"$f":"IF(OR(График!O25>=$Q$3,$I25<=$R$3,График!$I25=$P$2,График!$N26=0),График!G25,\"ОШИБКА ДАТЫ ИЛИ №ОТДЕЛА\")","v":"ОСР 1 (фундаменты и приямки)"},{"$f":"IF(OR(График!P25>=$Q$3,$I25<=$R$3,График!$I25=$P$2,График!$N26=0),График!H25,\"ОШИБКА ДАТЫ ИЛИ №ОТДЕЛА\")","v":"Служебная записка"},{"$f":"IF(OR(График!Q25>=$Q$3,$I25<=$R$3,График!$I25=$P$2,График!$N26=0),График!J25,\"ОШИБКА ДАТЫ ИЛИ №ОТДЕЛА\")","v":"17"},{"$f":"IF(OR(График!R25>=$Q$3,$I25<=$R$3,График!$I25=$P$2,График!$N26=0),График!K25,\"ОШИБКА ДАТЫ ИЛИ №ОТДЕЛА\")","v":"2015-08-10"},{"$f":"IF(OR(График!S25>=$Q$3,$I25<=$R$3,График!$I25=$P$2,График!$N26=0),График!L25,\"ОШИБКА ДАТЫ ИЛИ №ОТДЕЛА\")","v":"2015-08-14"}]
["1.21",null,{"$f":"IF(OR(График!K26>=$Q$3,$I26<=$R$3,График!$I26=$P$2,График!$N27=0),График!C26,\"ОШИБКА ДАТЫ ИЛИ №ОТДЕЛА\")","v":6339},{"$f":"IF(OR(График!L26>=$Q$3,$I26<=$R$3,График!$I26=$P$2,График!$N27=0),График!D26,\"ОШИБКА ДАТЫ ИЛИ №ОТДЕЛА\")","v":900},{"$f":"IF(OR(График!M26>=$Q$3,$I26<=$R$3,График!$I26=$P$2,График!$N27=0),График!E26,\"ОШИБКА ДАТЫ ИЛИ №ОТДЕЛА\")","v":0},{"$f":"IF(OR(График!N26>=$Q$3,$I26<=$R$3,График!$I26=$P$2,График!$N27=0),График!F26,\"ОШИБКА ДАТЫ ИЛИ №ОТДЕЛА\")","v":"П"},{"$f":"IF(OR(График!O26>=$Q$3,$I26<=$R$3,График!$I26=$P$2,График!$N27=0),График!G26,\"ОШИБКА ДАТЫ ИЛИ №ОТДЕЛА\")","v":"ОСР 2 (крепления, отверстия)"},{"$f":"IF(OR(График!P26>=$Q$3,$I26<=$R$3,График!$I26=$P$2,График!$N27=0),График!H26,\"ОШИБКА ДАТЫ ИЛИ №ОТДЕЛА\")","v":"Служебная записка"},{"$f":"IF(OR(График!Q26>=$Q$3,$I26<=$R$3,График!$I26=$P$2,График!$N27=0),График!J26,\"ОШИБКА ДАТЫ ИЛИ №ОТДЕЛА\")","v":"12"},{"$f":"IF(OR(График!R26>=$Q$3,$I26<=$R$3,График!$I26=$P$2,График!$N27=0),График!K26,\"ОШИБКА ДАТЫ ИЛИ №ОТДЕЛА\")","v":"2015-08-24"},{"$f":"IF(OR(График!S26>=$Q$3,$I26<=$R$3,График!$I26=$P$2,График!$N27=0),График!L26,\"ОШИБКА ДАТЫ ИЛИ №ОТДЕЛА\")","v":"2015-08-28"}]
["1.22",null,{"$f":"IF(OR(График!K27>=$Q$3,$I27<=$R$3,График!$I27=$P$2,График!$N28=0),График!C27,\"ОШИБКА ДАТЫ ИЛИ №ОТДЕЛА\")","v":6339},{"$f":"IF(OR(График!L27>=$Q$3,$I27<=$R$3,График!$I27=$P$2,График!$N28=0),График!D27,\"ОШИБКА ДАТЫ ИЛИ №ОТДЕЛА\")","v":900},{"$f":"IF(OR(График!M27>=$Q$3,$I27<=$R$3,График!$I27=$P$2,График!$N28=0),График!E27,\"ОШИБКА ДАТЫ ИЛИ №ОТДЕЛА\")","v":0},{"$f":"IF(OR(График!N27>=$Q$3,$I27<=$R$3,График!$I27=$P$2,График!$N28=0),График!F27,\"ОШИБКА ДАТЫ ИЛИ №ОТДЕЛА\")","v":"П"},{"$f":"IF(OR(График!O27>=$Q$3,$I27<=$R$3,График!$I27=$P$2,График!$N28=0),График!G27,\"ОШИБКА ДАТЫ ИЛИ №ОТДЕЛА\")","v":"ОСР 2 (крепления, отверстия)"},{"$f":"IF(OR(График!P27>=$Q$3,$I27<=$R$3,График!$I27=$P$2,График!$N28=0),График!H27,\"ОШИБКА ДАТЫ ИЛИ №ОТДЕЛА\")","v":"Служебная записка"},{"$f":"IF(OR(График!Q27>=$Q$3,$I27<=$R$3,График!$I27=$P$2,График!$N28=0),График!J27,\"ОШИБКА ДАТЫ ИЛИ №ОТДЕЛА\")","v":"17"},{"$f":"IF(OR(График!R27>=$Q$3,$I27<=$R$3,График!$I27=$P$2,График!$N28=0),График!K27,\"ОШИБКА ДАТЫ ИЛИ №ОТДЕЛА\")","v":"2015-08-24"},{"$f":"IF(OR(График!S27>=$Q$3,$I27<=$R$3,График!$I27=$P$2,График!$N28=0),График!L27,\"ОШИБКА ДАТЫ ИЛИ №ОТДЕЛА\")","v":"2015-08-28"}]
["1.23",null,{"$f":"IF(OR(График!K28>=$Q$3,$I28<=$R$3,График!$I28=$P$2,График!$N29=0),График!C28,\"ОШИБКА ДАТЫ ИЛИ №ОТДЕЛА\")","v":6339},{"$f":"IF(OR(График!L28>=$Q$3,$I28<=$R$3,График!$I28=$P$2,График!$N29=0),График!D28,\"ОШИБКА ДАТЫ ИЛИ №ОТДЕЛА\")","v":900},{"$f":"IF(OR(График!M28>=$Q$3,$I28<=$R$3,График!$I28=$P$2,График!$N29=0),График!E28,\"ОШИБКА ДАТЫ ИЛИ №ОТДЕЛА\")","v":0},{"$f":"IF(OR(График!N28>=$Q$3,$I28<=$R$3,График!$I28=$P$2,График!$N29=0),График!F28,\"ОШИБКА ДАТЫ ИЛИ №ОТДЕЛА\")","v":"П"},{"$f":"IF(OR(График!O28>=$Q$3,$I28<=$R$3,График!$I28=$P$2,График!$N29=0),График!G28,\"ОШИБКА ДАТЫ ИЛИ №ОТДЕЛА\")","v":"ОСР 2 (крепления, отверстия)"},{"$f":"IF(OR(График!P28>=$Q$3,$I28<=$R$3,График!$I28=$P$2,График!$N29=0),График!H28,\"ОШИБКА ДАТЫ ИЛИ №ОТДЕЛА\")","v":"Служебная записка"},{"$f":"IF(OR(График!Q28>=$Q$3,$I28<=$R$3,График!$I28=$P$2,График!$N29=0),График!J28,\"ОШИБКА ДАТЫ ИЛИ №ОТДЕЛА\")","v":"12"},{"$f":"IF(OR(График!R28>=$Q$3,$I28<=$R$3,График!$I28=$P$2,График!$N29=0),График!K28,\"ОШИБКА ДАТЫ ИЛИ №ОТДЕЛА\")","v":"2015-08-20"},{"$f":"IF(OR(График!S28>=$Q$3,$I28<=$R$3,График!$I28=$P$2,График!$N29=0),График!L28,\"ОШИБКА ДАТЫ ИЛИ №ОТДЕЛА\")","v":"2015-08-26"}]
["1.24",null,{"$f":"IF(OR(График!K29>=$Q$3,$I29<=$R$3,График!$I29=$P$2,График!$N30=0),График!C29,\"ОШИБКА ДАТЫ ИЛИ №ОТДЕЛА\")","v":6339},{"$f":"IF(OR(График!L29>=$Q$3,$I29<=$R$3,График!$I29=$P$2,График!$N30=0),График!D29,\"ОШИБКА ДАТЫ ИЛИ №ОТДЕЛА\")","v":900},{"$f":"IF(OR(График!M29>=$Q$3,$I29<=$R$3,График!$I29=$P$2,График!$N30=0),График!E29,\"ОШИБКА ДАТЫ ИЛИ №ОТДЕЛА\")","v":0},{"$f":"IF(OR(График!N29>=$Q$3,$I29<=$R$3,График!$I29=$P$2,График!$N30=0),График!F29,\"ОШИБКА ДАТЫ ИЛИ №ОТДЕЛА\")","v":"П"},{"$f":"IF(OR(График!O29>=$Q$3,$I29<=$R$3,График!$I29=$P$2,График!$N30=0),График!G29,\"ОШИБКА ДАТЫ ИЛИ №ОТДЕЛА\")","v":"ОСР 2 (крепления, отверстия)"},{"$f":"IF(OR(График!P29>=$Q$3,$I29<=$R$3,График!$I29=$P$2,График!$N30=0),График!H29,\"ОШИБКА ДАТЫ ИЛИ №ОТДЕЛА\")","v":"Служебная записка"},{"$f":"IF(OR(График!Q29>=$Q$3,$I29<=$R$3,График!$I29=$P$2,График!$N30=0),График!J29,\"ОШИБКА ДАТЫ ИЛИ №ОТДЕЛА\")","v":"17"},{"$f":"IF(OR(График!R29>=$Q$3,$I29<=$R$3,График!$I29=$P$2,График!$N30=0),График!K29,\"ОШИБКА ДАТЫ ИЛИ №ОТДЕЛА\")","v":"2015-08-20"},{"$f":"IF(OR(График!S29>=$Q$3,$I29<=$R$3,График!$I29=$P$2,График!$N30=0),График!L29,\"ОШИБКА ДАТЫ ИЛИ №ОТДЕЛА\")","v":"2015-08-26"}]
["1.25",null,{"$f":"IF(OR(График!K30>=$Q$3,$I30<=$R$3,График!$I30=$P$2,График!$N31=0),График!C30,\"ОШИБКА ДАТЫ ИЛИ №ОТДЕЛА\")","v":6339},{"$f":"IF(OR(График!L30>=$Q$3,$I30<=$R$3,График!$I30=$P$2,График!$N31=0),График!D30,\"ОШИБКА ДАТЫ ИЛИ №ОТДЕЛА\")","v":900},{"$f":"IF(OR(График!M30>=$Q$3,$I30<=$R$3,График!$I30=$P$2,График!$N31=0),График!E30,\"ОШИБКА ДАТЫ ИЛИ №ОТДЕЛА\")","v":0},{"$f":"IF(OR(График!N30>=$Q$3,$I30<=$R$3,График!$I30=$P$2,График!$N31=0),График!F30,\"ОШИБКА ДАТЫ ИЛИ №ОТДЕЛА\")","v":"П"},{"$f":"IF(OR(График!O30>=$Q$3,$I30<=$R$3,График!$I30=$P$2,График!$N31=0),График!G30,\"ОШИБКА ДАТЫ ИЛИ №ОТДЕЛА\")","v":"ОСР 2 (крепления, отверстия)"},{"$f":"IF(OR(График!P30>=$Q$3,$I30<=$R$3,График!$I30=$P$2,График!$N31=0),График!H30,\"ОШИБКА ДАТЫ ИЛИ №ОТДЕЛА\")","v":"Служебная записка"},{"$f":"IF(OR(График!Q30>=$Q$3,$I30<=$R$3,График!$I30=$P$2,График!$N31=0),График!J30,\"ОШИБКА ДАТЫ ИЛИ №ОТДЕЛА\")","v":"12"},{"$f":"IF(OR(График!R30>=$Q$3,$I30<=$R$3,График!$I30=$P$2,График!$N31=0),График!K30,\"ОШИБКА ДАТЫ ИЛИ №ОТДЕЛА\")","v":"2015-08-26"},{"$f":"IF(OR(График!S30>=$Q$3,$I30<=$R$3,График!$I30=$P$2,График!$N31=0),График!L30,\"ОШИБКА ДАТЫ ИЛИ №ОТДЕЛА\")","v":"2015-09-01"}]
["1.26",null,{"$f":"IF(OR(График!K31>=$Q$3,$I31<=$R$3,График!$I31=$P$2,График!$N32=0),График!C31,\"ОШИБКА ДАТЫ ИЛИ №ОТДЕЛА\")","v":6339},{"$f":"IF(OR(График!L31>=$Q$3,$I31<=$R$3,График!$I31=$P$2,График!$N32=0),График!D31,\"ОШИБКА ДАТЫ ИЛИ №ОТДЕЛА\")","v":900},{"$f":"IF(OR(График!M31>=$Q$3,$I31<=$R$3,График!$I31=$P$2,График!$N32=0),График!E31,\"ОШИБКА ДАТЫ ИЛИ №ОТДЕЛА\")","v":0},{"$f":"IF(OR(График!N31>=$Q$3,$I31<=$R$3,График!$I31=$P$2,График!$N32=0),График!F31,\"ОШИБКА ДАТЫ ИЛИ №ОТДЕЛА\")","v":"П"},{"$f":"IF(OR(График!O31>=$Q$3,$I31<=$R$3,График!$I31=$P$2,График!$N32=0),График!G31,\"ОШИБКА ДАТЫ ИЛИ №ОТДЕЛА\")","v":"ОСР 2 (крепления, отверстия)"},{"$f":"IF(OR(График!P31>=$Q$3,$I31<=$R$3,График!$I31=$P$2,График!$N32=0),График!H31,\"ОШИБКА ДАТЫ ИЛИ №ОТДЕЛА\")","v":"Служебная записка"},{"$f":"IF(OR(График!Q31>=$Q$3,$I31<=$R$3,График!$I31=$P$2,График!$N32=0),График!J31,\"ОШИБКА ДАТЫ ИЛИ №ОТДЕЛА\")","v":"17"},{"$f":"IF(OR(График!R31>=$Q$3,$I31<=$R$3,График!$I31=$P$2,График!$N32=0),График!K31,\"ОШИБКА ДАТЫ ИЛИ №ОТДЕЛА\")","v":"2015-08-26"},{"$f":"IF(OR(График!S31>=$Q$3,$I31<=$R$3,График!$I31=$P$2,График!$N32=0),График!L31,\"ОШИБКА ДАТЫ ИЛИ №ОТДЕЛА\")","v":"2015-09-01"}]
["1.27",null,{"$f":"IF(OR(График!K32>=$Q$3,$I32<=$R$3,График!$I32=$P$2,График!$N33=0),График!C32,\"ОШИБКА ДАТЫ ИЛИ №ОТДЕЛА\")","v":6339},{"$f":"IF(OR(График!L32>=$Q$3,$I32<=$R$3,График!$I32=$P$2,График!$N33=0),График!D32,\"ОШИБКА ДАТЫ ИЛИ №ОТДЕЛА\")","v":900},{"$f":"IF(OR(График!M32>=$Q$3,$I32<=$R$3,График!$I32=$P$2,График!$N33=0),График!E32,\"ОШИБКА ДАТЫ ИЛИ №ОТДЕЛА\")","v":0},{"$f":"IF(OR(График!N32>=$Q$3,$I32<=$R$3,График!$I32=$P$2,График!$N33=0),График!F32,\"ОШИБКА ДАТЫ ИЛИ №ОТДЕЛА\")","v":"П"},{"$f":"IF(OR(График!O32>=$Q$3,$I32<=$R$3,График!$I32=$P$2,График!$N33=0),График!G32,\"ОШИБКА ДАТЫ ИЛИ №ОТДЕЛА\")","v":"ОСР 2 (крепления, отверстия)"},{"$f":"IF(OR(График!P32>=$Q$3,$I32<=$R$3,График!$I32=$P$2,График!$N33=0),График!H32,\"ОШИБКА ДАТЫ ИЛИ №ОТДЕЛА\")","v":"Служебная записка"},{"$f":"IF(OR(График!Q32>=$Q$3,$I32<=$R$3,График!$I32=$P$2,График!$N33=0),График!J32,\"ОШИБКА ДАТЫ ИЛИ №ОТДЕЛА\")","v":"12"},{"$f":"IF(OR(График!R32>=$Q$3,$I32<=$R$3,График!$I32=$P$2,График!$N33=0),График!K32,\"ОШИБКА ДАТЫ ИЛИ №ОТДЕЛА\")","v":"2015-08-24"},{"$f":"IF(OR(График!S32>=$Q$3,$I32<=$R$3,График!$I32=$P$2,График!$N33=0),График!L32,\"ОШИБКА ДАТЫ ИЛИ №ОТДЕЛА\")","v":"2015-08-28"}]
["1.28",null,{"$f":"IF(OR(График!K33>=$Q$3,$I33<=$R$3,График!$I33=$P$2,График!$N34=0),График!C33,\"ОШИБКА ДАТЫ ИЛИ №ОТДЕЛА\")","v":6339},{"$f":"IF(OR(График!L33>=$Q$3,$I33<=$R$3,График!$I33=$P$2,График!$N34=0),График!D33,\"ОШИБКА ДАТЫ ИЛИ №ОТДЕЛА\")","v":900},{"$f":"IF(OR(График!M33>=$Q$3,$I33<=$R$3,График!$I33=$P$2,График!$N34=0),График!E33,\"ОШИБКА ДАТЫ ИЛИ №ОТДЕЛА\")","v":0},{"$f":"IF(OR(График!N33>=$Q$3,$I33<=$R$3,График!$I33=$P$2,График!$N34=0),График!F33,\"ОШИБКА ДАТЫ ИЛИ №ОТДЕЛА\")","v":"П"},{"$f":"IF(OR(График!O33>=$Q$3,$I33<=$R$3,График!$I33=$P$2,График!$N34=0),График!G33,\"ОШИБКА ДАТЫ ИЛИ №ОТДЕЛА\")","v":"ОСР 2 (крепления, отверстия)"},{"$f":"IF(OR(График!P33>=$Q$3,$I33<=$R$3,График!$I33=$P$2,График!$N34=0),График!H33,\"ОШИБКА ДАТЫ ИЛИ №ОТДЕЛА\")","v":"Служебная записка"},{"$f":"IF(OR(График!Q33>=$Q$3,$I33<=$R$3,График!$I33=$P$2,График!$N34=0),График!J33,\"ОШИБКА ДАТЫ ИЛИ №ОТДЕЛА\")","v":"17"},{"$f":"IF(OR(График!R33>=$Q$3,$I33<=$R$3,График!$I33=$P$2,График!$N34=0),График!K33,\"ОШИБКА ДАТЫ ИЛИ №ОТДЕЛА\")","v":"2015-08-24"},{"$f":"IF(OR(График!S33>=$Q$3,$I33<=$R$3,График!$I33=$P$2,График!$N34=0),График!L33,\"ОШИБКА ДАТЫ ИЛИ №ОТДЕЛА\")","v":"2015-08-28"}]
["1.29",null,{"$f":"IF(OR(График!K34>=$Q$3,$I34<=$R$3,График!$I34=$P$2,График!$N35=0),График!C34,\"ОШИБКА ДАТЫ ИЛИ №ОТДЕЛА\")","v":6339},{"$f":"IF(OR(График!L34>=$Q$3,$I34<=$R$3,График!$I34=$P$2,График!$N35=0),График!D34,\"ОШИБКА ДАТЫ ИЛИ №ОТДЕЛА\")","v":900},{"$f":"IF(OR(График!M34>=$Q$3,$I34<=$R$3,График!$I34=$P$2,График!$N35=0),График!E34,\"ОШИБКА ДАТЫ ИЛИ №ОТДЕЛА\")","v":0},{"$f":"IF(OR(График!N34>=$Q$3,$I34<=$R$3,График!$I34=$P$2,График!$N35=0),График!F34,\"ОШИБКА ДАТЫ ИЛИ №ОТДЕЛА\")","v":"П"},{"$f":"IF(OR(График!O34>=$Q$3,$I34<=$R$3,График!$I34=$P$2,График!$N35=0),График!G34,\"ОШИБКА ДАТЫ ИЛИ №ОТДЕЛА\")","v":"Задание на разработку подраздела Охрана поверхностных вод (в случае проектирования локальных очистных сооружений, входящих в состав технологического процесса) (на период эксплуатации)"},{"$f":"IF(OR(График!P34>=$Q$3,$I34<=$R$3,График!$I34=$P$2,График!$N35=0),График!H34,\"ОШИБКА ДАТЫ ИЛИ №ОТДЕЛА\")","v":"109-08"},{"$f":"IF(OR(График!Q34>=$Q$3,$I34<=$R$3,График!$I34=$P$2,График!$N35=0),График!J34,\"ОШИБКА ДАТЫ ИЛИ №ОТДЕЛА\")","v":"10"},{"$f":"IF(OR(График!R34>=$Q$3,$I34<=$R$3,График!$I34=$P$2,График!$N35=0),График!K34,\"ОШИБКА ДАТЫ ИЛИ №ОТДЕЛА\")","v":"2015-08-27"},{"$f":"IF(OR(График!S34>=$Q$3,$I34<=$R$3,График!$I34=$P$2,График!$N35=0),График!L34,\"ОШИБКА ДАТЫ ИЛИ №ОТДЕЛА\")","v":"2015-08-28"}]
["1.30",null,{"$f":"IF(OR(График!K35>=$Q$3,$I35<=$R$3,График!$I35=$P$2,График!$N36=0),График!C35,\"ОШИБКА ДАТЫ ИЛИ №ОТДЕЛА\")","v":6339},{"$f":"IF(OR(График!L35>=$Q$3,$I35<=$R$3,График!$I35=$P$2,График!$N36=0),График!D35,\"ОШИБКА ДАТЫ ИЛИ №ОТДЕЛА\")","v":900},{"$f":"IF(OR(График!M35>=$Q$3,$I35<=$R$3,График!$I35=$P$2,График!$N36=0),График!E35,\"ОШИБКА ДАТЫ ИЛИ №ОТДЕЛА\")","v":0},{"$f":"IF(OR(График!N35>=$Q$3,$I35<=$R$3,График!$I35=$P$2,График!$N36=0),График!F35,\"ОШИБКА ДАТЫ ИЛИ №ОТДЕЛА\")","v":"П"},{"$f":"IF(OR(График!O35>=$Q$3,$I35<=$R$3,График!$I35=$P$2,График!$N36=0),График!G35,\"ОШИБКА ДАТЫ ИЛИ №ОТДЕЛА\")","v":"Характеристика водопотребления и водоотведения (на период строительства)"},{"$f":"IF(OR(График!P35>=$Q$3,$I35<=$R$3,График!$I35=$P$2,График!$N36=0),График!H35,\"ОШИБКА ДАТЫ ИЛИ №ОТДЕЛА\")","v":"108-08"},{"$f":"IF(OR(График!Q35>=$Q$3,$I35<=$R$3,График!$I35=$P$2,График!$N36=0),График!J35,\"ОШИБКА ДАТЫ ИЛИ №ОТДЕЛА\")","v":"10"},{"$f":"IF(OR(График!R35>=$Q$3,$I35<=$R$3,График!$I35=$P$2,График!$N36=0),График!K35,\"ОШИБКА ДАТЫ ИЛИ №ОТДЕЛА\")","v":"2015-09-18"},{"$f":"IF(OR(График!S35>=$Q$3,$I35<=$R$3,График!$I35=$P$2,График!$N36=0),График!L35,\"ОШИБКА ДАТЫ ИЛИ №ОТДЕЛА\")","v":"2015-09-18"}]
["1.31",null,{"$f":"IF(OR(График!K36>=$Q$3,$I36<=$R$3,График!$I36=$P$2,График!$N37=0),График!C36,\"ОШИБКА ДАТЫ ИЛИ №ОТДЕЛА\")","v":6339},{"$f":"IF(OR(График!L36>=$Q$3,$I36<=$R$3,График!$I36=$P$2,График!$N37=0),График!D36,\"ОШИБКА ДАТЫ ИЛИ №ОТДЕЛА\")","v":900},{"$f":"IF(OR(График!M36>=$Q$3,$I36<=$R$3,График!$I36=$P$2,График!$N37=0),График!E36,\"ОШИБКА ДАТЫ ИЛИ №ОТДЕЛА\")","v":0},{"$f":"IF(OR(График!N36>=$Q$3,$I36<=$R$3,График!$I36=$P$2,График!$N37=0),График!F36,\"ОШИБКА ДАТЫ ИЛИ №ОТДЕЛА\")","v":"П"},{"$f":"IF(OR(График!O36>=$Q$3,$I36<=$R$3,График!$I36=$P$2,График!$N37=0),График!G36,\"ОШИБКА ДАТЫ ИЛИ №ОТДЕЛА\")","v":"Задание на размещение отходов"},{"$f":"IF(OR(График!P36>=$Q$3,$I36<=$R$3,График!$I36=$P$2,График!$N37=0),График!H36,\"ОШИБКА ДАТЫ ИЛИ №ОТДЕЛА\")","v":"080-09"},{"$f":"IF(OR(График!Q36>=$Q$3,$I36<=$R$3,График!$I36=$P$2,График!$N37=0),График!J36,\"ОШИБКА ДАТЫ ИЛИ №ОТДЕЛА\")","v":"10"},{"$f":"IF(OR(График!R36>=$Q$3,$I36<=$R$3,График!$I36=$P$2,График!$N37=0),График!K36,\"ОШИБКА ДАТЫ ИЛИ №ОТДЕЛА\")","v":"2015-08-24"},{"$f":"IF(OR(График!S36>=$Q$3,$I36<=$R$3,График!$I36=$P$2,График!$N37=0),График!L36,\"ОШИБКА ДАТЫ ИЛИ №ОТДЕЛА\")","v":"2015-08-25"}]
["1.32",null,{"$f":"IF(OR(График!K37>=$Q$3,$I37<=$R$3,График!$I37=$P$2,График!$N38=0),График!C37,\"ОШИБКА ДАТЫ ИЛИ №ОТДЕЛА\")","v":6339},{"$f":"IF(OR(График!L37>=$Q$3,$I37<=$R$3,График!$I37=$P$2,График!$N38=0),График!D37,\"ОШИБКА ДАТЫ ИЛИ №ОТДЕЛА\")","v":900},{"$f":"IF(OR(График!M37>=$Q$3,$I37<=$R$3,График!$I37=$P$2,График!$N38=0),График!E37,\"ОШИБКА ДАТЫ ИЛИ №ОТДЕЛА\")","v":0},{"$f":"IF(OR(График!N37>=$Q$3,$I37<=$R$3,График!$I37=$P$2,График!$N38=0),График!F37,\"ОШИБКА ДАТЫ ИЛИ №ОТДЕЛА\")","v":"П"},{"$f":"IF(OR(График!O37>=$Q$3,$I37<=$R$3,График!$I37=$P$2,График!$N38=0),График!G37,\"ОШИБКА ДАТЫ ИЛИ №ОТДЕЛА\")","v":"Задание на размещение отходов"},{"$f":"IF(OR(График!P37>=$Q$3,$I37<=$R$3,График!$I37=$P$2,График!$N38=0),График!H37,\"ОШИБКА ДАТЫ ИЛИ №ОТДЕЛА\")","v":"080-09"},{"$f":"IF(OR(График!Q37>=$Q$3,$I37<=$R$3,График!$I37=$P$2,График!$N38=0),График!J37,\"ОШИБКА ДАТЫ ИЛИ №ОТДЕЛА\")","v":"10"},{"$f":"IF(OR(График!R37>=$Q$3,$I37<=$R$3,График!$I37=$P$2,График!$N38=0),График!K37,\"ОШИБКА ДАТЫ ИЛИ №ОТДЕЛА\")","v":"2015-08-31"},{"$f":"IF(OR(График!S37>=$Q$3,$I37<=$R$3,График!$I37=$P$2,График!$N38=0),График!L37,\"ОШИБКА ДАТЫ ИЛИ №ОТДЕЛА\")","v":"2015-09-01"}]
["1.33",null,{"$f":"IF(OR(График!K38>=$Q$3,$I38<=$R$3,График!$I38=$P$2,График!$N39=0),График!C38,\"ОШИБКА ДАТЫ ИЛИ №ОТДЕЛА\")","v":6339},{"$f":"IF(OR(График!L38>=$Q$3,$I38<=$R$3,График!$I38=$P$2,График!$N39=0),График!D38,\"ОШИБКА ДАТЫ ИЛИ №ОТДЕЛА\")","v":900},{"$f":"IF(OR(График!M38>=$Q$3,$I38<=$R$3,График!$I38=$P$2,График!$N39=0),График!E38,\"ОШИБКА ДАТЫ ИЛИ №ОТДЕЛА\")","v":0},{"$f":"IF(OR(График!N38>=$Q$3,$I38<=$R$3,График!$I38=$P$2,График!$N39=0),График!F38,\"ОШИБКА ДАТЫ ИЛИ №ОТДЕЛА\")","v":"П"},{"$f":"IF(OR(График!O38>=$Q$3,$I38<=$R$3,График!$I38=$P$2,График!$N39=0),График!G38,\"ОШИБКА ДАТЫ ИЛИ №ОТДЕЛА\")","v":"Задание на размещение отходов"},{"$f":"IF(OR(График!P38>=$Q$3,$I38<=$R$3,График!$I38=$P$2,График!$N39=0),График!H38,\"ОШИБКА ДАТЫ ИЛИ №ОТДЕЛА\")","v":"080-09"},{"$f":"IF(OR(График!Q38>=$Q$3,$I38<=$R$3,График!$I38=$P$2,График!$N39=0),График!J38,\"ОШИБКА ДАТЫ ИЛИ №ОТДЕЛА\")","v":"10"},{"$f":"IF(OR(График!R38>=$Q$3,$I38<=$R$3,График!$I38=$P$2,График!$N39=0),График!K38,\"ОШИБКА ДАТЫ ИЛИ №ОТДЕЛА\")","v":"2015-08-20"},{"$f":"IF(OR(График!S38>=$Q$3,$I38<=$R$3,График!$I38=$P$2,График!$N39=0),График!L38,\"ОШИБКА ДАТЫ ИЛИ №ОТДЕЛА\")","v":"2015-08-21"}]
["1.34",null,{"$f":"IF(OR(График!K39>=$Q$3,$I39<=$R$3,График!$I39=$P$2,График!$N40=0),График!C39,\"ОШИБКА ДАТЫ ИЛИ №ОТДЕЛА\")","v":6339},{"$f":"IF(OR(График!L39>=$Q$3,$I39<=$R$3,График!$I39=$P$2,График!$N40=0),График!D39,\"ОШИБКА ДАТЫ ИЛИ №ОТДЕЛА\")","v":900},{"$f":"IF(OR(График!M39>=$Q$3,$I39<=$R$3,График!$I39=$P$2,График!$N40=0),График!E39,\"ОШИБКА ДАТЫ ИЛИ №ОТДЕЛА\")","v":0},{"$f":"IF(OR(График!N39>=$Q$3,$I39<=$R$3,График!$I39=$P$2,График!$N40=0),График!F39,\"ОШИБКА ДАТЫ ИЛИ №ОТДЕЛА\")","v":"П"},{"$f":"IF(OR(График!O39>=$Q$3,$I39<=$R$3,График!$I39=$P$2,График!$N40=0),График!G39,\"ОШИБКА ДАТЫ ИЛИ №ОТДЕЛА\")","v":"Задание на строительные отходы и загрязненный грунт (на период строительства)"},{"$f":"IF(OR(График!P39>=$Q$3,$I39<=$R$3,График!$I39=$P$2,График!$N40=0),График!H39,\"ОШИБКА ДАТЫ ИЛИ №ОТДЕЛА\")","v":"080-09"},{"$f":"IF(OR(График!Q39>=$Q$3,$I39<=$R$3,График!$I39=$P$2,График!$N40=0),График!J39,\"ОШИБКА ДАТЫ ИЛИ №ОТДЕЛА\")","v":"10"},{"$f":"IF(OR(График!R39>=$Q$3,$I39<=$R$3,График!$I39=$P$2,График!$N40=0),График!K39,\"ОШИБКА ДАТЫ ИЛИ №ОТДЕЛА\")","v":"2015-09-18"},{"$f":"IF(OR(График!S39>=$Q$3,$I39<=$R$3,График!$I39=$P$2,График!$N40=0),График!L39,\"ОШИБКА ДАТЫ ИЛИ №ОТДЕЛА\")","v":"2015-09-18"}]
["1.35",null,{"$f":"IF(OR(График!K40>=$Q$3,$I40<=$R$3,График!$I40=$P$2,График!$N41=0),График!C40,\"ОШИБКА ДАТЫ ИЛИ №ОТДЕЛА\")","v":6339},{"$f":"IF(OR(График!L40>=$Q$3,$I40<=$R$3,График!$I40=$P$2,График!$N41=0),График!D40,\"ОШИБКА ДАТЫ ИЛИ №ОТДЕЛА\")","v":900},{"$f":"IF(OR(График!M40>=$Q$3,$I40<=$R$3,График!$I40=$P$2,График!$N41=0),График!E40,\"ОШИБКА ДАТЫ ИЛИ №ОТДЕЛА\")","v":0},{"$f":"IF(OR(График!N40>=$Q$3,$I40<=$R$3,График!$I40=$P$2,График!$N41=0),График!F40,\"ОШИБКА ДАТЫ ИЛИ №ОТДЕЛА\")","v":"П"},{"$f":"IF(OR(График!O40>=$Q$3,$I40<=$R$3,График!$I40=$P$2,График!$N41=0),График!G40,\"ОШИБКА ДАТЫ ИЛИ №ОТДЕЛА\")","v":"Задание на разработку подраздела Охрана поверхностных вод"},{"$f":"IF(OR(График!P40>=$Q$3,$I40<=$R$3,График!$I40=$P$2,График!$N41=0),График!H40,\"ОШИБКА ДАТЫ ИЛИ №ОТДЕЛА\")","v":"109-08"},{"$f":"IF(OR(График!Q40>=$Q$3,$I40<=$R$3,График!$I40=$P$2,График!$N41=0),График!J40,\"ОШИБКА ДАТЫ ИЛИ №ОТДЕЛА\")","v":"10"},{"$f":"IF(OR(График!R40>=$Q$3,$I40<=$R$3,График!$I40=$P$2,График!$N41=0),График!K40,\"ОШИБКА ДАТЫ ИЛИ №ОТДЕЛА\")","v":"2015-08-21"},{"$f":"IF(OR(График!S40>=$Q$3,$I40<=$R$3,График!$I40=$P$2,График!$N41=0),График!L40,\"ОШИБКА ДАТЫ ИЛИ №ОТДЕЛА\")","v":"2015-08-21"}]
["1.36",null,{"$f":"IF(OR(График!K41>=$Q$3,$I41<=$R$3,График!$I41=$P$2,График!$N42=0),График!C41,\"ОШИБКА ДАТЫ ИЛИ №ОТДЕЛА\")","v":6339},{"$f":"IF(OR(График!L41>=$Q$3,$I41<=$R$3,График!$I41=$P$2,График!$N42=0),График!D41,\"ОШИБКА ДАТЫ ИЛИ №ОТДЕЛА\")","v":900},{"$f":"IF(OR(График!M41>=$Q$3,$I41<=$R$3,График!$I41=$P$2,График!$N42=0),График!E41,\"ОШИБКА ДАТЫ ИЛИ №ОТДЕЛА\")","v":0},{"$f":"IF(OR(График!N41>=$Q$3,$I41<=$R$3,График!$I41=$P$2,График!$N42=0),График!F41,\"ОШИБКА ДАТЫ ИЛИ №ОТДЕЛА\")","v":"П"},{"$f":"IF(OR(График!O41>=$Q$3,$I41<=$R$3,График!$I41=$P$2,График!$N42=0),График!G41,\"ОШИБКА ДАТЫ ИЛИ №ОТДЕЛА\")","v":"Выдача задания на условия строительства (разработка грунта в карьере, характеристики, лицензии, стестенные условия труда, информация об удаленности поставщиков местных материалов и т.д.)"},{"$f":"IF(OR(График!P41>=$Q$3,$I41<=$R$3,График!$I41=$P$2,График!$N42=0),График!H41,\"ОШИБКА ДАТЫ ИЛИ №ОТДЕЛА\")","v":"Служебная записка"},{"$f":"IF(OR(График!Q41>=$Q$3,$I41<=$R$3,График!$I41=$P$2,График!$N42=0),График!J41,\"ОШИБКА ДАТЫ ИЛИ №ОТДЕЛА\")","v":"19"},{"$f":"IF(OR(График!R41>=$Q$3,$I41<=$R$3,График!$I41=$P$2,График!$N42=0),График!K41,\"ОШИБКА ДАТЫ ИЛИ №ОТДЕЛА\")","v":"2015-09-22"},{"$f":"IF(OR(График!S41>=$Q$3,$I41<=$R$3,График!$I41=$P$2,График!$N42=0),График!L41,\"ОШИБКА ДАТЫ ИЛИ №ОТДЕЛА\")","v":"2015-09-22"}]
["1.37",null,{"$f":"IF(OR(График!K42>=$Q$3,$I42<=$R$3,График!$I42=$P$2,График!$N43=0),График!C42,\"ОШИБКА ДАТЫ ИЛИ №ОТДЕЛА\")","v":6339},{"$f":"IF(OR(График!L42>=$Q$3,$I42<=$R$3,График!$I42=$P$2,График!$N43=0),График!D42,\"ОШИБКА ДАТЫ ИЛИ №ОТДЕЛА\")","v":900},{"$f":"IF(OR(График!M42>=$Q$3,$I42<=$R$3,График!$I42=$P$2,График!$N43=0),График!E42,\"ОШИБКА ДАТЫ ИЛИ №ОТДЕЛА\")","v":0},{"$f":"IF(OR(График!N42>=$Q$3,$I42<=$R$3,График!$I42=$P$2,График!$N43=0),График!F42,\"ОШИБКА ДАТЫ ИЛИ №ОТДЕЛА\")","v":"П"},{"$f":"IF(OR(График!O42>=$Q$3,$I42<=$R$3,График!$I42=$P$2,График!$N43=0),График!G42,\"ОШИБКА ДАТЫ ИЛИ №ОТДЕЛА\")","v":"Ситуационный план с указанием санитарно-защитной зоны"},{"$f":"IF(OR(График!P42>=$Q$3,$I42<=$R$3,График!$I42=$P$2,График!$N43=0),График!H42,\"ОШИБКА ДАТЫ ИЛИ №ОТДЕЛА\")","v":"Чертеж"},{"$f":"IF(OR(График!Q42>=$Q$3,$I42<=$R$3,График!$I42=$P$2,График!$N43=0),График!J42,\"ОШИБКА ДАТЫ ИЛИ №ОТДЕЛА\")","v":"10"},{"$f":"IF(OR(График!R42>=$Q$3,$I42<=$R$3,График!$I42=$P$2,График!$N43=0),График!K42,\"ОШИБКА ДАТЫ ИЛИ №ОТДЕЛА\")","v":"2015-06-29"},{"$f":"IF(OR(График!S42>=$Q$3,$I42<=$R$3,График!$I42=$P$2,График!$N43=0),График!L42,\"ОШИБКА ДАТЫ ИЛИ №ОТДЕЛА\")","v":"2015-06-29"}]
["1.38",null,{"$f":"IF(OR(График!K43>=$Q$3,$I43<=$R$3,График!$I43=$P$2,График!$N44=0),График!C43,\"ОШИБКА ДАТЫ ИЛИ №ОТДЕЛА\")","v":6339},{"$f":"IF(OR(График!L43>=$Q$3,$I43<=$R$3,График!$I43=$P$2,График!$N44=0),График!D43,\"ОШИБКА ДАТЫ ИЛИ №ОТДЕЛА\")","v":900},{"$f":"IF(OR(График!M43>=$Q$3,$I43<=$R$3,График!$I43=$P$2,График!$N44=0),График!E43,\"ОШИБКА ДАТЫ ИЛИ №ОТДЕЛА\")","v":0},{"$f":"IF(OR(График!N43>=$Q$3,$I43<=$R$3,График!$I43=$P$2,График!$N44=0),График!F43,\"ОШИБКА ДАТЫ ИЛИ №ОТДЕЛА\")","v":"П"},{"$f":"IF(OR(График!O43>=$Q$3,$I43<=$R$3,График!$I43=$P$2,График!$N44=0),График!G43,\"ОШИБКА ДАТЫ ИЛИ №ОТДЕЛА\")","v":"Ситуационный план с указанием санитарно-защитной зоны"},{"$f":"IF(OR(График!P43>=$Q$3,$I43<=$R$3,График!$I43=$P$2,График!$N44=0),График!H43,\"ОШИБКА ДАТЫ ИЛИ №ОТДЕЛА\")","v":"Чертеж"},{"$f":"IF(OR(График!Q43>=$Q$3,$I43<=$R$3,График!$I43=$P$2,График!$N44=0),График!J43,\"ОШИБКА ДАТЫ ИЛИ №ОТДЕЛА\")","v":"16"},{"$f":"IF(OR(График!R43>=$Q$3,$I43<=$R$3,График!$I43=$P$2,График!$N44=0),График!K43,\"ОШИБКА ДАТЫ ИЛИ №ОТДЕЛА\")","v":"2015-06-29"},{"$f":"IF(OR(График!S43>=$Q$3,$I43<=$R$3,График!$I43=$P$2,График!$N44=0),График!L43,\"ОШИБКА ДАТЫ ИЛИ №ОТДЕЛА\")","v":"2015-06-29"}]
["1.39",null,{"$f":"IF(OR(График!K44>=$Q$3,$I44<=$R$3,График!$I44=$P$2,График!$N45=0),График!C44,\"ОШИБКА ДАТЫ ИЛИ №ОТДЕЛА\")","v":6339},{"$f":"IF(OR(График!L44>=$Q$3,$I44<=$R$3,График!$I44=$P$2,График!$N45=0),График!D44,\"ОШИБКА ДАТЫ ИЛИ №ОТДЕЛА\")","v":900},{"$f":"IF(OR(График!M44>=$Q$3,$I44<=$R$3,График!$I44=$P$2,График!$N45=0),График!E44,\"ОШИБКА ДАТЫ ИЛИ №ОТДЕЛА\")","v":0},{"$f":"IF(OR(График!N44>=$Q$3,$I44<=$R$3,График!$I44=$P$2,График!$N45=0),График!F44,\"ОШИБКА ДАТЫ ИЛИ №ОТДЕЛА\")","v":"П"},{"$f":"IF(OR(График!O44>=$Q$3,$I44<=$R$3,График!$I44=$P$2,График!$N45=0),График!G44,\"ОШИБКА ДАТЫ ИЛИ №ОТДЕЛА\")","v":"Ситуационный план с указанием санитарно-защитной зоны"},{"$f":"IF(OR(График!P44>=$Q$3,$I44<=$R$3,График!$I44=$P$2,График!$N45=0),График!H44,\"ОШИБКА ДАТЫ ИЛИ №ОТДЕЛА\")","v":"Чертеж"},{"$f":"IF(OR(График!Q44>=$Q$3,$I44<=$R$3,График!$I44=$P$2,График!$N45=0),График!J44,\"ОШИБКА ДАТЫ ИЛИ №ОТДЕЛА\")","v":"21"},{"$f":"IF(OR(График!R44>=$Q$3,$I44<=$R$3,График!$I44=$P$2,График!$N45=0),График!K44,\"ОШИБКА ДАТЫ ИЛИ №ОТДЕЛА\")","v":"2015-06-29"},{"$f":"IF(OR(График!S44>=$Q$3,$I44<=$R$3,График!$I44=$P$2,График!$N45=0),График!L44,\"ОШИБКА ДАТЫ ИЛИ №ОТДЕЛА\")","v":"2015-06-29"}]
["1.40",null,{"$f":"IF(OR(График!K45>=$Q$3,$I45<=$R$3,График!$I45=$P$2,График!#REF!=0),График!C45,\"ОШИБКА ДАТЫ ИЛИ №ОТДЕЛА\")","v":{"$error":"#REF!"}},{"$f":"IF(OR(График!L45>=$Q$3,$I45<=$R$3,График!$I45=$P$2,График!#REF!=0),График!D45,\"ОШИБКА ДАТЫ ИЛИ №ОТДЕЛА\")","v":{"$error":"#REF!"}},{"$f":"IF(OR(График!M45>=$Q$3,$I45<=$R$3,График!$I45=$P$2,График!#REF!=0),График!E45,\"ОШИБКА ДАТЫ ИЛИ №ОТДЕЛА\")","v":{"$error":"#REF!"}},{"$f":"IF(OR(График!N45>=$Q$3,$I45<=$R$3,График!$I45=$P$2,График!#REF!=0),График!F45,\"ОШИБКА ДАТЫ ИЛИ №ОТДЕЛА\")","v":{"$error":"#REF!"}},{"$f":"IF(OR(График!O45>=$Q$3,$I45<=$R$3,График!$I45=$P$2,График!#REF!=0),График!G45,\"ОШИБКА ДАТЫ ИЛИ №ОТДЕЛА\")","v":{"$error":"#REF!"}},{"$f":"IF(OR(График!P45>=$Q$3,$I45<=$R$3,График!$I45=$P$2,График!#REF!=0),График!H45,\"ОШИБКА ДАТЫ ИЛИ №ОТДЕЛА\")","v":{"$error":"#REF!"}},{"$f":"IF(OR(График!Q45>=$Q$3,$I45<=$R$3,График!$I45=$P$2,График!#REF!=0),График!J45,\"ОШИБКА ДАТЫ ИЛИ №ОТДЕЛА\")","v":{"$error":"#REF!"}},{"$f":"IF(OR(График!R45>=$Q$3,$I45<=$R$3,График!$I45=$P$2,График!#REF!=0),График!K45,\"ОШИБКА ДАТЫ ИЛИ №ОТДЕЛА\")","v":{"$error":"#REF!"}},{"$f":"IF(OR(График!S45>=$Q$3,$I45<=$R$3,График!$I45=$P$2,График!#REF!=0),График!L45,\"ОШИБКА ДАТЫ ИЛИ №ОТДЕЛА\")","v":{"$error":"#REF!"}}]
["1.41",null,{"$f":"IF(OR(График!#REF!>=$Q$3,$I46<=$R$3,График!#REF!=$P$2,График!#REF!=0),График!#REF!,\"ОШИБКА ДАТЫ ИЛИ №ОТДЕЛА\")","v":{"$error":"#REF!"}},{"$f":"IF(OR(График!#REF!>=$Q$3,$I46<=$R$3,График!#REF!=$P$2,График!#REF!=0),График!#REF!,\"ОШИБКА ДАТЫ ИЛИ №ОТДЕЛА\")","v":{"$error":"#REF!"}},{"$f":"IF(OR(График!#REF!>=$Q$3,$I46<=$R$3,График!#REF!=$P$2,График!#REF!=0),График!#REF!,\"ОШИБКА ДАТЫ ИЛИ №ОТДЕЛА\")","v":{"$error":"#REF!"}},{"$f":"IF(OR(График!#REF!>=$Q$3,$I46<=$R$3,График!#REF!=$P$2,График!#REF!=0),График!#REF!,\"ОШИБКА ДАТЫ ИЛИ №ОТДЕЛА\")","v":{"$error":"#REF!"}},{"$f":"IF(OR(График!#REF!>=$Q$3,$I46<=$R$3,График!#REF!=$P$2,График!#REF!=0),График!#REF!,\"ОШИБКА ДАТЫ ИЛИ №ОТДЕЛА\")","v":{"$error":"#REF!"}},{"$f":"IF(OR(График!#REF!>=$Q$3,$I46<=$R$3,График!#REF!=$P$2,График!#REF!=0),График!#REF!,\"ОШИБКА ДАТЫ ИЛИ №ОТДЕЛА\")","v":{"$error":"#REF!"}},{"$f":"IF(OR(График!#REF!>=$Q$3,$I46<=$R$3,График!#REF!=$P$2,График!#REF!=0),График!#REF!,\"ОШИБКА ДАТЫ ИЛИ №ОТДЕЛА\")","v":{"$error":"#REF!"}},{"$f":"IF(OR(График!#REF!>=$Q$3,$I46<=$R$3,График!#REF!=$P$2,График!#REF!=0),График!#REF!,\"ОШИБКА ДАТЫ ИЛИ №ОТДЕЛА\")","v":{"$error":"#REF!"}},{"$f":"IF(OR(График!#REF!>=$Q$3,$I46<=$R$3,График!#REF!=$P$2,График!#REF!=0),График!#REF!,\"ОШИБКА ДАТЫ ИЛИ №ОТДЕЛА\")","v":{"$error":"#REF!"}}]
["1.42",null,{"$f":"IF(OR(График!#REF!>=$Q$3,$I47<=$R$3,График!#REF!=$P$2,График!#REF!=0),График!#REF!,\"ОШИБКА ДАТЫ ИЛИ №ОТДЕЛА\")","v":{"$error":"#REF!"}},{"$f":"IF(OR(График!#REF!>=$Q$3,$I47<=$R$3,График!#REF!=$P$2,График!#REF!=0),График!#REF!,\"ОШИБКА ДАТЫ ИЛИ №ОТДЕЛА\")","v":{"$error":"#REF!"}},{"$f":"IF(OR(График!#REF!>=$Q$3,$I47<=$R$3,График!#REF!=$P$2,График!#REF!=0),График!#REF!,\"ОШИБКА ДАТЫ ИЛИ №ОТДЕЛА\")","v":{"$error":"#REF!"}},{"$f":"IF(OR(График!#REF!>=$Q$3,$I47<=$R$3,График!#REF!=$P$2,График!#REF!=0),График!#REF!,\"ОШИБКА ДАТЫ ИЛИ №ОТДЕЛА\")","v":{"$error":"#REF!"}},{"$f":"IF(OR(График!#REF!>=$Q$3,$I47<=$R$3,График!#REF!=$P$2,График!#REF!=0),График!#REF!,\"ОШИБКА ДАТЫ ИЛИ №ОТДЕЛА\")","v":{"$error":"#REF!"}},{"$f":"IF(OR(График!#REF!>=$Q$3,$I47<=$R$3,График!#REF!=$P$2,График!#REF!=0),График!#REF!,\"ОШИБКА ДАТЫ ИЛИ №ОТДЕЛА\")","v":{"$error":"#REF!"}},{"$f":"IF(OR(График!#REF!>=$Q$3,$I47<=$R$3,График!#REF!=$P$2,График!#REF!=0),График!#REF!,\"ОШИБКА ДАТЫ ИЛИ №ОТДЕЛА\")","v":{"$error":"#REF!"}},{"$f":"IF(OR(График!#REF!>=$Q$3,$I47<=$R$3,График!#REF!=$P$2,График!#REF!=0),График!#REF!,\"ОШИБКА ДАТЫ ИЛИ №ОТДЕЛА\")","v":{"$error":"#REF!"}},{"$f":"IF(OR(График!#REF!>=$Q$3,$I47<=$R$3,График!#REF!=$P$2,График!#REF!=0),График!#REF!,\"ОШИБКА ДАТЫ ИЛИ №ОТДЕЛА\")","v":{"$error":"#REF!"}}]
["1.43",null,{"$f":"IF(OR(График!#REF!>=$Q$3,$I48<=$R$3,График!#REF!=$P$2,График!#REF!=0),График!#REF!,\"ОШИБКА ДАТЫ ИЛИ №ОТДЕЛА\")","v":{"$error":"#REF!"}},{"$f":"IF(OR(График!#REF!>=$Q$3,$I48<=$R$3,График!#REF!=$P$2,График!#REF!=0),График!#REF!,\"ОШИБКА ДАТЫ ИЛИ №ОТДЕЛА\")","v":{"$error":"#REF!"}},{"$f":"IF(OR(График!#REF!>=$Q$3,$I48<=$R$3,График!#REF!=$P$2,График!#REF!=0),График!#REF!,\"ОШИБКА ДАТЫ ИЛИ №ОТДЕЛА\")","v":{"$error":"#REF!"}},{"$f":"IF(OR(График!#REF!>=$Q$3,$I48<=$R$3,График!#REF!=$P$2,График!#REF!=0),График!#REF!,\"ОШИБКА ДАТЫ ИЛИ №ОТДЕЛА\")","v":{"$error":"#REF!"}},{"$f":"IF(OR(График!#REF!>=$Q$3,$I48<=$R$3,График!#REF!=$P$2,График!#REF!=0),График!#REF!,\"ОШИБКА ДАТЫ ИЛИ №ОТДЕЛА\")","v":{"$error":"#REF!"}},{"$f":"IF(OR(График!#REF!>=$Q$3,$I48<=$R$3,График!#REF!=$P$2,График!#REF!=0),График!#REF!,\"ОШИБКА ДАТЫ ИЛИ №ОТДЕЛА\")","v":{"$error":"#REF!"}},{"$f":"IF(OR(График!#REF!>=$Q$3,$I48<=$R$3,График!#REF!=$P$2,График!#REF!=0),График!#REF!,\"ОШИБКА ДАТЫ ИЛИ №ОТДЕЛА\")","v":{"$error":"#REF!"}},{"$f":"IF(OR(График!#REF!>=$Q$3,$I48<=$R$3,График!#REF!=$P$2,График!#REF!=0),График!#REF!,\"ОШИБКА ДАТЫ ИЛИ №ОТДЕЛА\")","v":{"$error":"#REF!"}},{"$f":"IF(OR(График!#REF!>=$Q$3,$I48<=$R$3,График!#REF!=$P$2,График!#REF!=0),График!#REF!,\"ОШИБКА ДАТЫ ИЛИ №ОТДЕЛА\")","v":{"$error":"#REF!"}}]
["1.44",null,{"$f":"IF(OR(График!#REF!>=$Q$3,$I49<=$R$3,График!#REF!=$P$2,График!#REF!=0),График!#REF!,\"ОШИБКА ДАТЫ ИЛИ №ОТДЕЛА\")","v":{"$error":"#REF!"}},{"$f":"IF(OR(График!#REF!>=$Q$3,$I49<=$R$3,График!#REF!=$P$2,График!#REF!=0),График!#REF!,\"ОШИБКА ДАТЫ ИЛИ №ОТДЕЛА\")","v":{"$error":"#REF!"}},{"$f":"IF(OR(График!#REF!>=$Q$3,$I49<=$R$3,График!#REF!=$P$2,График!#REF!=0),График!#REF!,\"ОШИБКА ДАТЫ ИЛИ №ОТДЕЛА\")","v":{"$error":"#REF!"}},{"$f":"IF(OR(График!#REF!>=$Q$3,$I49<=$R$3,График!#REF!=$P$2,График!#REF!=0),График!#REF!,\"ОШИБКА ДАТЫ ИЛИ №ОТДЕЛА\")","v":{"$error":"#REF!"}},{"$f":"IF(OR(График!#REF!>=$Q$3,$I49<=$R$3,График!#REF!=$P$2,График!#REF!=0),График!#REF!,\"ОШИБКА ДАТЫ ИЛИ №ОТДЕЛА\")","v":{"$error":"#REF!"}},{"$f":"IF(OR(График!#REF!>=$Q$3,$I49<=$R$3,График!#REF!=$P$2,График!#REF!=0),График!#REF!,\"ОШИБКА ДАТЫ ИЛИ №ОТДЕЛА\")","v":{"$error":"#REF!"}},{"$f":"IF(OR(График!#REF!>=$Q$3,$I49<=$R$3,График!#REF!=$P$2,График!#REF!=0),График!#REF!,\"ОШИБКА ДАТЫ ИЛИ №ОТДЕЛА\")","v":{"$error":"#REF!"}},{"$f":"IF(OR(График!#REF!>=$Q$3,$I49<=$R$3,График!#REF!=$P$2,График!#REF!=0),График!#REF!,\"ОШИБКА ДАТЫ ИЛИ №ОТДЕЛА\")","v":{"$error":"#REF!"}},{"$f":"IF(OR(График!#REF!>=$Q$3,$I49<=$R$3,График!#REF!=$P$2,График!#REF!=0),График!#REF!,\"ОШИБКА ДАТЫ ИЛИ №ОТДЕЛА\")","v":{"$error":"#REF!"}}]
["1.45",null,{"$f":"IF(OR(График!#REF!>=$Q$3,$I50<=$R$3,График!#REF!=$P$2,График!#REF!=0),График!#REF!,\"ОШИБКА ДАТЫ ИЛИ №ОТДЕЛА\")","v":{"$error":"#REF!"}},{"$f":"IF(OR(График!#REF!>=$Q$3,$I50<=$R$3,График!#REF!=$P$2,График!#REF!=0),График!#REF!,\"ОШИБКА ДАТЫ ИЛИ №ОТДЕЛА\")","v":{"$error":"#REF!"}},{"$f":"IF(OR(График!#REF!>=$Q$3,$I50<=$R$3,График!#REF!=$P$2,График!#REF!=0),График!#REF!,\"ОШИБКА ДАТЫ ИЛИ №ОТДЕЛА\")","v":{"$error":"#REF!"}},{"$f":"IF(OR(График!#REF!>=$Q$3,$I50<=$R$3,График!#REF!=$P$2,График!#REF!=0),График!#REF!,\"ОШИБКА ДАТЫ ИЛИ №ОТДЕЛА\")","v":{"$error":"#REF!"}},{"$f":"IF(OR(График!#REF!>=$Q$3,$I50<=$R$3,График!#REF!=$P$2,График!#REF!=0),График!#REF!,\"ОШИБКА ДАТЫ ИЛИ №ОТДЕЛА\")","v":{"$error":"#REF!"}},{"$f":"IF(OR(График!#REF!>=$Q$3,$I50<=$R$3,График!#REF!=$P$2,График!#REF!=0),График!#REF!,\"ОШИБКА ДАТЫ ИЛИ №ОТДЕЛА\")","v":{"$error":"#REF!"}},{"$f":"IF(OR(График!#REF!>=$Q$3,$I50<=$R$3,График!#REF!=$P$2,График!#REF!=0),График!#REF!,\"ОШИБКА ДАТЫ ИЛИ №ОТДЕЛА\")","v":{"$error":"#REF!"}},{"$f":"IF(OR(График!#REF!>=$Q$3,$I50<=$R$3,График!#REF!=$P$2,График!#REF!=0),График!#REF!,\"ОШИБКА ДАТЫ ИЛИ №ОТДЕЛА\")","v":{"$error":"#REF!"}},{"$f":"IF(OR(График!#REF!>=$Q$3,$I50<=$R$3,График!#REF!=$P$2,График!#REF!=0),График!#REF!,\"ОШИБКА ДАТЫ ИЛИ №ОТДЕЛА\")","v":{"$error":"#REF!"}}]
["1.46",null,{"$f":"IF(OR(График!#REF!>=$Q$3,$I51<=$R$3,График!#REF!=$P$2,График!#REF!=0),График!#REF!,\"ОШИБКА ДАТЫ ИЛИ №ОТДЕЛА\")","v":{"$error":"#REF!"}},{"$f":"IF(OR(График!#REF!>=$Q$3,$I51<=$R$3,График!#REF!=$P$2,График!#REF!=0),График!#REF!,\"ОШИБКА ДАТЫ ИЛИ №ОТДЕЛА\")","v":{"$error":"#REF!"}},{"$f":"IF(OR(График!#REF!>=$Q$3,$I51<=$R$3,График!#REF!=$P$2,График!#REF!=0),График!#REF!,\"ОШИБКА ДАТЫ ИЛИ №ОТДЕЛА\")","v":{"$error":"#REF!"}},{"$f":"IF(OR(График!#REF!>=$Q$3,$I51<=$R$3,График!#REF!=$P$2,График!#REF!=0),График!#REF!,\"ОШИБКА ДАТЫ ИЛИ №ОТДЕЛА\")","v":{"$error":"#REF!"}},{"$f":"IF(OR(График!#REF!>=$Q$3,$I51<=$R$3,График!#REF!=$P$2,График!#REF!=0),График!#REF!,\"ОШИБКА ДАТЫ ИЛИ №ОТДЕЛА\")","v":{"$error":"#REF!"}},{"$f":"IF(OR(График!#REF!>=$Q$3,$I51<=$R$3,График!#REF!=$P$2,График!#REF!=0),График!#REF!,\"ОШИБКА ДАТЫ ИЛИ №ОТДЕЛА\")","v":{"$error":"#REF!"}},{"$f":"IF(OR(График!#REF!>=$Q$3,$I51<=$R$3,График!#REF!=$P$2,График!#REF!=0),График!#REF!,\"ОШИБКА ДАТЫ ИЛИ №ОТДЕЛА\")","v":{"$error":"#REF!"}},{"$f":"IF(OR(График!#REF!>=$Q$3,$I51<=$R$3,График!#REF!=$P$2,График!#REF!=0),График!#REF!,\"ОШИБКА ДАТЫ ИЛИ №ОТДЕЛА\")","v":{"$error":"#REF!"}},{"$f":"IF(OR(График!#REF!>=$Q$3,$I51<=$R$3,График!#REF!=$P$2,График!#REF!=0),График!#REF!,\"ОШИБКА ДАТЫ ИЛИ №ОТДЕЛА\")","v":{"$error":"#REF!"}}]
["1.47",null,{"$f":"IF(OR(График!#REF!>=$Q$3,$I52<=$R$3,График!#REF!=$P$2,График!#REF!=0),График!#REF!,\"ОШИБКА ДАТЫ ИЛИ №ОТДЕЛА\")","v":{"$error":"#REF!"}},{"$f":"IF(OR(График!#REF!>=$Q$3,$I52<=$R$3,График!#REF!=$P$2,График!#REF!=0),График!#REF!,\"ОШИБКА ДАТЫ ИЛИ №ОТДЕЛА\")","v":{"$error":"#REF!"}},{"$f":"IF(OR(График!#REF!>=$Q$3,$I52<=$R$3,График!#REF!=$P$2,График!#REF!=0),График!#REF!,\"ОШИБКА ДАТЫ ИЛИ №ОТДЕЛА\")","v":{"$error":"#REF!"}},{"$f":"IF(OR(График!#REF!>=$Q$3,$I52<=$R$3,График!#REF!=$P$2,График!#REF!=0),График!#REF!,\"ОШИБКА ДАТЫ ИЛИ №ОТДЕЛА\")","v":{"$error":"#REF!"}},{"$f":"IF(OR(График!#REF!>=$Q$3,$I52<=$R$3,График!#REF!=$P$2,График!#REF!=0),График!#REF!,\"ОШИБКА ДАТЫ ИЛИ №ОТДЕЛА\")","v":{"$error":"#REF!"}},{"$f":"IF(OR(График!#REF!>=$Q$3,$I52<=$R$3,График!#REF!=$P$2,График!#REF!=0),График!#REF!,\"ОШИБКА ДАТЫ ИЛИ №ОТДЕЛА\")","v":{"$error":"#REF!"}},{"$f":"IF(OR(График!#REF!>=$Q$3,$I52<=$R$3,График!#REF!=$P$2,График!#REF!=0),График!#REF!,\"ОШИБКА ДАТЫ ИЛИ №ОТДЕЛА\")","v":{"$error":"#REF!"}},{"$f":"IF(OR(График!#REF!>=$Q$3,$I52<=$R$3,График!#REF!=$P$2,График!#REF!=0),График!#REF!,\"ОШИБКА ДАТЫ ИЛИ №ОТДЕЛА\")","v":{"$error":"#REF!"}},{"$f":"IF(OR(График!#REF!>=$Q$3,$I52<=$R$3,График!#REF!=$P$2,График!#REF!=0),График!#REF!,\"ОШИБКА ДАТЫ ИЛИ №ОТДЕЛА\")","v":{"$error":"#REF!"}}]
["1.48",null,{"$f":"IF(OR(График!#REF!>=$Q$3,$I53<=$R$3,График!#REF!=$P$2,График!#REF!=0),График!#REF!,\"ОШИБКА ДАТЫ ИЛИ №ОТДЕЛА\")","v":{"$error":"#REF!"}},{"$f":"IF(OR(График!#REF!>=$Q$3,$I53<=$R$3,График!#REF!=$P$2,График!#REF!=0),График!#REF!,\"ОШИБКА ДАТЫ ИЛИ №ОТДЕЛА\")","v":{"$error":"#REF!"}},{"$f":"IF(OR(График!#REF!>=$Q$3,$I53<=$R$3,График!#REF!=$P$2,График!#REF!=0),График!#REF!,\"ОШИБКА ДАТЫ ИЛИ №ОТДЕЛА\")","v":{"$error":"#REF!"}},{"$f":"IF(OR(График!#REF!>=$Q$3,$I53<=$R$3,График!#REF!=$P$2,График!#REF!=0),График!#REF!,\"ОШИБКА ДАТЫ ИЛИ №ОТДЕЛА\")","v":{"$error":"#REF!"}},{"$f":"IF(OR(График!#REF!>=$Q$3,$I53<=$R$3,График!#REF!=$P$2,График!#REF!=0),График!#REF!,\"ОШИБКА ДАТЫ ИЛИ №ОТДЕЛА\")","v":{"$error":"#REF!"}},{"$f":"IF(OR(График!#REF!>=$Q$3,$I53<=$R$3,График!#REF!=$P$2,График!#REF!=0),График!#REF!,\"ОШИБКА ДАТЫ ИЛИ №ОТДЕЛА\")","v":{"$error":"#REF!"}},{"$f":"IF(OR(График!#REF!>=$Q$3,$I53<=$R$3,График!#REF!=$P$2,График!#REF!=0),График!#REF!,\"ОШИБКА ДАТЫ ИЛИ №ОТДЕЛА\")","v":{"$error":"#REF!"}},{"$f":"IF(OR(График!#REF!>=$Q$3,$I53<=$R$3,График!#REF!=$P$2,График!#REF!=0),График!#REF!,\"ОШИБКА ДАТЫ ИЛИ №ОТДЕЛА\")","v":{"$error":"#REF!"}},{"$f":"IF(OR(График!#REF!>=$Q$3,$I53<=$R$3,График!#REF!=$P$2,График!#REF!=0),График!#REF!,\"ОШИБКА ДАТЫ ИЛИ №ОТДЕЛА\")","v":{"$error":"#REF!"}}]
["1.49",null,{"$f":"IF(OR(График!#REF!>=$Q$3,$I54<=$R$3,График!#REF!=$P$2,График!#REF!=0),График!#REF!,\"ОШИБКА ДАТЫ ИЛИ №ОТДЕЛА\")","v":{"$error":"#REF!"}},{"$f":"IF(OR(График!#REF!>=$Q$3,$I54<=$R$3,График!#REF!=$P$2,График!#REF!=0),График!#REF!,\"ОШИБКА ДАТЫ ИЛИ №ОТДЕЛА\")","v":{"$error":"#REF!"}},{"$f":"IF(OR(График!#REF!>=$Q$3,$I54<=$R$3,График!#REF!=$P$2,График!#REF!=0),График!#REF!,\"ОШИБКА ДАТЫ ИЛИ №ОТДЕЛА\")","v":{"$error":"#REF!"}},{"$f":"IF(OR(График!#REF!>=$Q$3,$I54<=$R$3,График!#REF!=$P$2,График!#REF!=0),График!#REF!,\"ОШИБКА ДАТЫ ИЛИ №ОТДЕЛА\")","v":{"$error":"#REF!"}},{"$f":"IF(OR(График!#REF!>=$Q$3,$I54<=$R$3,График!#REF!=$P$2,График!#REF!=0),График!#REF!,\"ОШИБКА ДАТЫ ИЛИ №ОТДЕЛА\")","v":{"$error":"#REF!"}},{"$f":"IF(OR(График!#REF!>=$Q$3,$I54<=$R$3,График!#REF!=$P$2,График!#REF!=0),График!#REF!,\"ОШИБКА ДАТЫ ИЛИ №ОТДЕЛА\")","v":{"$error":"#REF!"}},{"$f":"IF(OR(График!#REF!>=$Q$3,$I54<=$R$3,График!#REF!=$P$2,График!#REF!=0),График!#REF!,\"ОШИБКА ДАТЫ ИЛИ №ОТДЕЛА\")","v":{"$error":"#REF!"}},{"$f":"IF(OR(График!#REF!>=$Q$3,$I54<=$R$3,График!#REF!=$P$2,График!#REF!=0),График!#REF!,\"ОШИБКА ДАТЫ ИЛИ №ОТДЕЛА\")","v":{"$error":"#REF!"}},{"$f":"IF(OR(График!#REF!>=$Q$3,$I54<=$R$3,График!#REF!=$P$2,График!#REF!=0),График!#REF!,\"ОШИБКА ДАТЫ ИЛИ №ОТДЕЛА\")","v":{"$error":"#REF!"}}]
["1.50",null,{"$f":"IF(OR(График!#REF!>=$Q$3,$I55<=$R$3,График!#REF!=$P$2,График!#REF!=0),График!#REF!,\"ОШИБКА ДАТЫ ИЛИ №ОТДЕЛА\")","v":{"$error":"#REF!"}},{"$f":"IF(OR(График!#REF!>=$Q$3,$I55<=$R$3,График!#REF!=$P$2,График!#REF!=0),График!#REF!,\"ОШИБКА ДАТЫ ИЛИ №ОТДЕЛА\")","v":{"$error":"#REF!"}},{"$f":"IF(OR(График!#REF!>=$Q$3,$I55<=$R$3,График!#REF!=$P$2,График!#REF!=0),График!#REF!,\"ОШИБКА ДАТЫ ИЛИ №ОТДЕЛА\")","v":{"$error":"#REF!"}},{"$f":"IF(OR(График!#REF!>=$Q$3,$I55<=$R$3,График!#REF!=$P$2,График!#REF!=0),График!#REF!,\"ОШИБКА ДАТЫ ИЛИ №ОТДЕЛА\")","v":{"$error":"#REF!"}},{"$f":"IF(OR(График!#REF!>=$Q$3,$I55<=$R$3,График!#REF!=$P$2,График!#REF!=0),График!#REF!,\"ОШИБКА ДАТЫ ИЛИ №ОТДЕЛА\")","v":{"$error":"#REF!"}},{"$f":"IF(OR(График!#REF!>=$Q$3,$I55<=$R$3,График!#REF!=$P$2,График!#REF!=0),График!#REF!,\"ОШИБКА ДАТЫ ИЛИ №ОТДЕЛА\")","v":{"$error":"#REF!"}},{"$f":"IF(OR(График!#REF!>=$Q$3,$I55<=$R$3,График!#REF!=$P$2,График!#REF!=0),График!#REF!,\"ОШИБКА ДАТЫ ИЛИ №ОТДЕЛА\")","v":{"$error":"#REF!"}},{"$f":"IF(OR(График!#REF!>=$Q$3,$I55<=$R$3,График!#REF!=$P$2,График!#REF!=0),График!#REF!,\"ОШИБКА ДАТЫ ИЛИ №ОТДЕЛА\")","v":{"$error":"#REF!"}},{"$f":"IF(OR(График!#REF!>=$Q$3,$I55<=$R$3,График!#REF!=$P$2,График!#REF!=0),График!#REF!,\"ОШИБКА ДАТЫ ИЛИ №ОТДЕЛА\")","v":{"$error":"#REF!"}}]
["1.51",null,{"$f":"IF(OR(График!#REF!>=$Q$3,$I56<=$R$3,График!#REF!=$P$2,График!#REF!=0),График!#REF!,\"ОШИБКА ДАТЫ ИЛИ №ОТДЕЛА\")","v":{"$error":"#REF!"}},{"$f":"IF(OR(График!#REF!>=$Q$3,$I56<=$R$3,График!#REF!=$P$2,График!#REF!=0),График!#REF!,\"ОШИБКА ДАТЫ ИЛИ №ОТДЕЛА\")","v":{"$error":"#REF!"}},{"$f":"IF(OR(График!#REF!>=$Q$3,$I56<=$R$3,График!#REF!=$P$2,График!#REF!=0),График!#REF!,\"ОШИБКА ДАТЫ ИЛИ №ОТДЕЛА\")","v":{"$error":"#REF!"}},{"$f":"IF(OR(График!#REF!>=$Q$3,$I56<=$R$3,График!#REF!=$P$2,График!#REF!=0),График!#REF!,\"ОШИБКА ДАТЫ ИЛИ №ОТДЕЛА\")","v":{"$error":"#REF!"}},{"$f":"IF(OR(График!#REF!>=$Q$3,$I56<=$R$3,График!#REF!=$P$2,График!#REF!=0),График!#REF!,\"ОШИБКА ДАТЫ ИЛИ №ОТДЕЛА\")","v":{"$error":"#REF!"}},{"$f":"IF(OR(График!#REF!>=$Q$3,$I56<=$R$3,График!#REF!=$P$2,График!#REF!=0),График!#REF!,\"ОШИБКА ДАТЫ ИЛИ №ОТДЕЛА\")","v":{"$error":"#REF!"}},{"$f":"IF(OR(График!#REF!>=$Q$3,$I56<=$R$3,График!#REF!=$P$2,График!#REF!=0),График!#REF!,\"ОШИБКА ДАТЫ ИЛИ №ОТДЕЛА\")","v":{"$error":"#REF!"}},{"$f":"IF(OR(График!#REF!>=$Q$3,$I56<=$R$3,График!#REF!=$P$2,График!#REF!=0),График!#REF!,\"ОШИБКА ДАТЫ ИЛИ №ОТДЕЛА\")","v":{"$error":"#REF!"}},{"$f":"IF(OR(График!#REF!>=$Q$3,$I56<=$R$3,График!#REF!=$P$2,График!#REF!=0),График!#REF!,\"ОШИБКА ДАТЫ ИЛИ №ОТДЕЛА\")","v":{"$error":"#REF!"}}]
["1.52",null,{"$f":"IF(OR(График!#REF!>=$Q$3,$I57<=$R$3,График!#REF!=$P$2,График!#REF!=0),График!#REF!,\"ОШИБКА ДАТЫ ИЛИ №ОТДЕЛА\")","v":{"$error":"#REF!"}},{"$f":"IF(OR(График!#REF!>=$Q$3,$I57<=$R$3,График!#REF!=$P$2,График!#REF!=0),График!#REF!,\"ОШИБКА ДАТЫ ИЛИ №ОТДЕЛА\")","v":{"$error":"#REF!"}},{"$f":"IF(OR(График!#REF!>=$Q$3,$I57<=$R$3,График!#REF!=$P$2,График!#REF!=0),График!#REF!,\"ОШИБКА ДАТЫ ИЛИ №ОТДЕЛА\")","v":{"$error":"#REF!"}},{"$f":"IF(OR(График!#REF!>=$Q$3,$I57<=$R$3,График!#REF!=$P$2,График!#REF!=0),График!#REF!,\"ОШИБКА ДАТЫ ИЛИ №ОТДЕЛА\")","v":{"$error":"#REF!"}},{"$f":"IF(OR(График!#REF!>=$Q$3,$I57<=$R$3,График!#REF!=$P$2,График!#REF!=0),График!#REF!,\"ОШИБКА ДАТЫ ИЛИ №ОТДЕЛА\")","v":{"$error":"#REF!"}},{"$f":"IF(OR(График!#REF!>=$Q$3,$I57<=$R$3,График!#REF!=$P$2,График!#REF!=0),График!#REF!,\"ОШИБКА ДАТЫ ИЛИ №ОТДЕЛА\")","v":{"$error":"#REF!"}},{"$f":"IF(OR(График!#REF!>=$Q$3,$I57<=$R$3,График!#REF!=$P$2,График!#REF!=0),График!#REF!,\"ОШИБКА ДАТЫ ИЛИ №ОТДЕЛА\")","v":{"$error":"#REF!"}},{"$f":"IF(OR(График!#REF!>=$Q$3,$I57<=$R$3,График!#REF!=$P$2,График!#REF!=0),График!#REF!,\"ОШИБКА ДАТЫ ИЛИ №ОТДЕЛА\")","v":{"$error":"#REF!"}},{"$f":"IF(OR(График!#REF!>=$Q$3,$I57<=$R$3,График!#REF!=$P$2,График!#REF!=0),График!#REF!,\"ОШИБКА ДАТЫ ИЛИ №ОТДЕЛА\")","v":{"$error":"#REF!"}}]
["1.53",null,{"$f":"IF(OR(График!#REF!>=$Q$3,$I58<=$R$3,График!#REF!=$P$2,График!#REF!=0),График!#REF!,\"ОШИБКА ДАТЫ ИЛИ №ОТДЕЛА\")","v":{"$error":"#REF!"}},{"$f":"IF(OR(График!#REF!>=$Q$3,$I58<=$R$3,График!#REF!=$P$2,График!#REF!=0),График!#REF!,\"ОШИБКА ДАТЫ ИЛИ №ОТДЕЛА\")","v":{"$error":"#REF!"}},{"$f":"IF(OR(График!#REF!>=$Q$3,$I58<=$R$3,График!#REF!=$P$2,График!#REF!=0),График!#REF!,\"ОШИБКА ДАТЫ ИЛИ №ОТДЕЛА\")","v":{"$error":"#REF!"}},{"$f":"IF(OR(График!#REF!>=$Q$3,$I58<=$R$3,График!#REF!=$P$2,График!#REF!=0),График!#REF!,\"ОШИБКА ДАТЫ ИЛИ №ОТДЕЛА\")","v":{"$error":"#REF!"}},{"$f":"IF(OR(График!#REF!>=$Q$3,$I58<=$R$3,График!#REF!=$P$2,График!#REF!=0),График!#REF!,\"ОШИБКА ДАТЫ ИЛИ №ОТДЕЛА\")","v":{"$error":"#REF!"}},{"$f":"IF(OR(График!#REF!>=$Q$3,$I58<=$R$3,График!#REF!=$P$2,График!#REF!=0),График!#REF!,\"ОШИБКА ДАТЫ ИЛИ №ОТДЕЛА\")","v":{"$error":"#REF!"}},{"$f":"IF(OR(График!#REF!>=$Q$3,$I58<=$R$3,График!#REF!=$P$2,График!#REF!=0),График!#REF!,\"ОШИБКА ДАТЫ ИЛИ №ОТДЕЛА\")","v":{"$error":"#REF!"}},{"$f":"IF(OR(График!#REF!>=$Q$3,$I58<=$R$3,График!#REF!=$P$2,График!#REF!=0),График!#REF!,\"ОШИБКА ДАТЫ ИЛИ №ОТДЕЛА\")","v":{"$error":"#REF!"}},{"$f":"IF(OR(График!#REF!>=$Q$3,$I58<=$R$3,График!#REF!=$P$2,График!#REF!=0),График!#REF!,\"ОШИБКА ДАТЫ ИЛИ №ОТДЕЛА\")","v":{"$error":"#REF!"}}]
["1.54",null,{"$f":"IF(OR(График!#REF!>=$Q$3,$I59<=$R$3,График!#REF!=$P$2,График!#REF!=0),График!#REF!,\"ОШИБКА ДАТЫ ИЛИ №ОТДЕЛА\")","v":{"$error":"#REF!"}},{"$f":"IF(OR(График!#REF!>=$Q$3,$I59<=$R$3,График!#REF!=$P$2,График!#REF!=0),График!#REF!,\"ОШИБКА ДАТЫ ИЛИ №ОТДЕЛА\")","v":{"$error":"#REF!"}},{"$f":"IF(OR(График!#REF!>=$Q$3,$I59<=$R$3,График!#REF!=$P$2,График!#REF!=0),График!#REF!,\"ОШИБКА ДАТЫ ИЛИ №ОТДЕЛА\")","v":{"$error":"#REF!"}},{"$f":"IF(OR(График!#REF!>=$Q$3,$I59<=$R$3,График!#REF!=$P$2,График!#REF!=0),График!#REF!,\"ОШИБКА ДАТЫ ИЛИ №ОТДЕЛА\")","v":{"$error":"#REF!"}},{"$f":"IF(OR(График!#REF!>=$Q$3,$I59<=$R$3,График!#REF!=$P$2,График!#REF!=0),График!#REF!,\"ОШИБКА ДАТЫ ИЛИ №ОТДЕЛА\")","v":{"$error":"#REF!"}},{"$f":"IF(OR(График!#REF!>=$Q$3,$I59<=$R$3,График!#REF!=$P$2,График!#REF!=0),График!#REF!,\"ОШИБКА ДАТЫ ИЛИ №ОТДЕЛА\")","v":{"$error":"#REF!"}},{"$f":"IF(OR(График!#REF!>=$Q$3,$I59<=$R$3,График!#REF!=$P$2,График!#REF!=0),График!#REF!,\"ОШИБКА ДАТЫ ИЛИ №ОТДЕЛА\")","v":{"$error":"#REF!"}},{"$f":"IF(OR(График!#REF!>=$Q$3,$I59<=$R$3,График!#REF!=$P$2,График!#REF!=0),График!#REF!,\"ОШИБКА ДАТЫ ИЛИ №ОТДЕЛА\")","v":{"$error":"#REF!"}},{"$f":"IF(OR(График!#REF!>=$Q$3,$I59<=$R$3,График!#REF!=$P$2,График!#REF!=0),График!#REF!,\"ОШИБКА ДАТЫ ИЛИ №ОТДЕЛА\")","v":{"$error":"#REF!"}}]
["1.55",null,{"$f":"IF(OR(График!#REF!>=$Q$3,$I60<=$R$3,График!#REF!=$P$2,График!#REF!=0),График!#REF!,\"ОШИБКА ДАТЫ ИЛИ №ОТДЕЛА\")","v":{"$error":"#REF!"}},{"$f":"IF(OR(График!#REF!>=$Q$3,$I60<=$R$3,График!#REF!=$P$2,График!#REF!=0),График!#REF!,\"ОШИБКА ДАТЫ ИЛИ №ОТДЕЛА\")","v":{"$error":"#REF!"}},{"$f":"IF(OR(График!#REF!>=$Q$3,$I60<=$R$3,График!#REF!=$P$2,График!#REF!=0),График!#REF!,\"ОШИБКА ДАТЫ ИЛИ №ОТДЕЛА\")","v":{"$error":"#REF!"}},{"$f":"IF(OR(График!#REF!>=$Q$3,$I60<=$R$3,График!#REF!=$P$2,График!#REF!=0),График!#REF!,\"ОШИБКА ДАТЫ ИЛИ №ОТДЕЛА\")","v":{"$error":"#REF!"}},{"$f":"IF(OR(График!#REF!>=$Q$3,$I60<=$R$3,График!#REF!=$P$2,График!#REF!=0),График!#REF!,\"ОШИБКА ДАТЫ ИЛИ №ОТДЕЛА\")","v":{"$error":"#REF!"}},{"$f":"IF(OR(График!#REF!>=$Q$3,$I60<=$R$3,График!#REF!=$P$2,График!#REF!=0),График!#REF!,\"ОШИБКА ДАТЫ ИЛИ №ОТДЕЛА\")","v":{"$error":"#REF!"}},{"$f":"IF(OR(График!#REF!>=$Q$3,$I60<=$R$3,График!#REF!=$P$2,График!#REF!=0),График!#REF!,\"ОШИБКА ДАТЫ ИЛИ №ОТДЕЛА\")","v":{"$error":"#REF!"}},{"$f":"IF(OR(График!#REF!>=$Q$3,$I60<=$R$3,График!#REF!=$P$2,График!#REF!=0),График!#REF!,\"ОШИБКА ДАТЫ ИЛИ №ОТДЕЛА\")","v":{"$error":"#REF!"}},{"$f":"IF(OR(График!#REF!>=$Q$3,$I60<=$R$3,График!#REF!=$P$2,График!#REF!=0),График!#REF!,\"ОШИБКА ДАТЫ ИЛИ №ОТДЕЛА\")","v":{"$error":"#REF!"}}]
["1.56",null,{"$f":"IF(OR(График!#REF!>=$Q$3,$I61<=$R$3,График!#REF!=$P$2,График!#REF!=0),График!#REF!,\"ОШИБКА ДАТЫ ИЛИ №ОТДЕЛА\")","v":{"$error":"#REF!"}},{"$f":"IF(OR(График!#REF!>=$Q$3,$I61<=$R$3,График!#REF!=$P$2,График!#REF!=0),График!#REF!,\"ОШИБКА ДАТЫ ИЛИ №ОТДЕЛА\")","v":{"$error":"#REF!"}},{"$f":"IF(OR(График!#REF!>=$Q$3,$I61<=$R$3,График!#REF!=$P$2,График!#REF!=0),График!#REF!,\"ОШИБКА ДАТЫ ИЛИ №ОТДЕЛА\")","v":{"$error":"#REF!"}},{"$f":"IF(OR(График!#REF!>=$Q$3,$I61<=$R$3,График!#REF!=$P$2,График!#REF!=0),График!#REF!,\"ОШИБКА ДАТЫ ИЛИ №ОТДЕЛА\")","v":{"$error":"#REF!"}},{"$f":"IF(OR(График!#REF!>=$Q$3,$I61<=$R$3,График!#REF!=$P$2,График!#REF!=0),График!#REF!,\"ОШИБКА ДАТЫ ИЛИ №ОТДЕЛА\")","v":{"$error":"#REF!"}},{"$f":"IF(OR(График!#REF!>=$Q$3,$I61<=$R$3,График!#REF!=$P$2,График!#REF!=0),График!#REF!,\"ОШИБКА ДАТЫ ИЛИ №ОТДЕЛА\")","v":{"$error":"#REF!"}},{"$f":"IF(OR(График!#REF!>=$Q$3,$I61<=$R$3,График!#REF!=$P$2,График!#REF!=0),График!#REF!,\"ОШИБКА ДАТЫ ИЛИ №ОТДЕЛА\")","v":{"$error":"#REF!"}},{"$f":"IF(OR(График!#REF!>=$Q$3,$I61<=$R$3,График!#REF!=$P$2,График!#REF!=0),График!#REF!,\"ОШИБКА ДАТЫ ИЛИ №ОТДЕЛА\")","v":{"$error":"#REF!"}},{"$f":"IF(OR(График!#REF!>=$Q$3,$I61<=$R$3,График!#REF!=$P$2,График!#REF!=0),График!#REF!,\"ОШИБКА ДАТЫ ИЛИ №ОТДЕЛА\")","v":{"$error":"#REF!"}}]
["1.57",null,{"$f":"IF(OR(График!#REF!>=$Q$3,$I62<=$R$3,График!#REF!=$P$2,График!#REF!=0),График!#REF!,\"ОШИБКА ДАТЫ ИЛИ №ОТДЕЛА\")","v":{"$error":"#REF!"}},{"$f":"IF(OR(График!#REF!>=$Q$3,$I62<=$R$3,График!#REF!=$P$2,График!#REF!=0),График!#REF!,\"ОШИБКА ДАТЫ ИЛИ №ОТДЕЛА\")","v":{"$error":"#REF!"}},{"$f":"IF(OR(График!#REF!>=$Q$3,$I62<=$R$3,График!#REF!=$P$2,График!#REF!=0),График!#REF!,\"ОШИБКА ДАТЫ ИЛИ №ОТДЕЛА\")","v":{"$error":"#REF!"}},{"$f":"IF(OR(График!#REF!>=$Q$3,$I62<=$R$3,График!#REF!=$P$2,График!#REF!=0),График!#REF!,\"ОШИБКА ДАТЫ ИЛИ №ОТДЕЛА\")","v":{"$error":"#REF!"}},{"$f":"IF(OR(График!#REF!>=$Q$3,$I62<=$R$3,График!#REF!=$P$2,График!#REF!=0),График!#REF!,\"ОШИБКА ДАТЫ ИЛИ №ОТДЕЛА\")","v":{"$error":"#REF!"}},{"$f":"IF(OR(График!#REF!>=$Q$3,$I62<=$R$3,График!#REF!=$P$2,График!#REF!=0),График!#REF!,\"ОШИБКА ДАТЫ ИЛИ №ОТДЕЛА\")","v":{"$error":"#REF!"}},{"$f":"IF(OR(График!#REF!>=$Q$3,$I62<=$R$3,График!#REF!=$P$2,График!#REF!=0),График!#REF!,\"ОШИБКА ДАТЫ ИЛИ №ОТДЕЛА\")","v":{"$error":"#REF!"}},{"$f":"IF(OR(График!#REF!>=$Q$3,$I62<=$R$3,График!#REF!=$P$2,График!#REF!=0),График!#REF!,\"ОШИБКА ДАТЫ ИЛИ №ОТДЕЛА\")","v":{"$error":"#REF!"}},{"$f":"IF(OR(График!#REF!>=$Q$3,$I62<=$R$3,График!#REF!=$P$2,График!#REF!=0),График!#REF!,\"ОШИБКА ДАТЫ ИЛИ №ОТДЕЛА\")","v":{"$error":"#REF!"}}]
["1.58",null,{"$f":"IF(OR(График!#REF!>=$Q$3,$I63<=$R$3,График!#REF!=$P$2,График!#REF!=0),График!#REF!,\"ОШИБКА ДАТЫ ИЛИ №ОТДЕЛА\")","v":{"$error":"#REF!"}},{"$f":"IF(OR(График!#REF!>=$Q$3,$I63<=$R$3,График!#REF!=$P$2,График!#REF!=0),График!#REF!,\"ОШИБКА ДАТЫ ИЛИ №ОТДЕЛА\")","v":{"$error":"#REF!"}},{"$f":"IF(OR(График!#REF!>=$Q$3,$I63<=$R$3,График!#REF!=$P$2,График!#REF!=0),График!#REF!,\"ОШИБКА ДАТЫ ИЛИ №ОТДЕЛА\")","v":{"$error":"#REF!"}},{"$f":"IF(OR(График!#REF!>=$Q$3,$I63<=$R$3,График!#REF!=$P$2,График!#REF!=0),График!#REF!,\"ОШИБКА ДАТЫ ИЛИ №ОТДЕЛА\")","v":{"$error":"#REF!"}},{"$f":"IF(OR(График!#REF!>=$Q$3,$I63<=$R$3,График!#REF!=$P$2,График!#REF!=0),График!#REF!,\"ОШИБКА ДАТЫ ИЛИ №ОТДЕЛА\")","v":{"$error":"#REF!"}},{"$f":"IF(OR(График!#REF!>=$Q$3,$I63<=$R$3,График!#REF!=$P$2,График!#REF!=0),График!#REF!,\"ОШИБКА ДАТЫ ИЛИ №ОТДЕЛА\")","v":{"$error":"#REF!"}},{"$f":"IF(OR(График!#REF!>=$Q$3,$I63<=$R$3,График!#REF!=$P$2,График!#REF!=0),График!#REF!,\"ОШИБКА ДАТЫ ИЛИ №ОТДЕЛА\")","v":{"$error":"#REF!"}},{"$f":"IF(OR(График!#REF!>=$Q$3,$I63<=$R$3,График!#REF!=$P$2,График!#REF!=0),График!#REF!,\"ОШИБКА ДАТЫ ИЛИ №ОТДЕЛА\")","v":{"$error":"#REF!"}},{"$f":"IF(OR(График!#REF!>=$Q$3,$I63<=$R$3,График!#REF!=$P$2,График!#REF!=0),График!#REF!,\"ОШИБКА ДАТЫ ИЛИ №ОТДЕЛА\")","v":{"$error":"#REF!"}}]
["1.59",null,{"$f":"IF(OR(График!#REF!>=$Q$3,$I64<=$R$3,График!#REF!=$P$2,График!#REF!=0),График!#REF!,\"ОШИБКА ДАТЫ ИЛИ №ОТДЕЛА\")","v":{"$error":"#REF!"}},{"$f":"IF(OR(График!#REF!>=$Q$3,$I64<=$R$3,График!#REF!=$P$2,График!#REF!=0),График!#REF!,\"ОШИБКА ДАТЫ ИЛИ №ОТДЕЛА\")","v":{"$error":"#REF!"}},{"$f":"IF(OR(График!#REF!>=$Q$3,$I64<=$R$3,График!#REF!=$P$2,График!#REF!=0),График!#REF!,\"ОШИБКА ДАТЫ ИЛИ №ОТДЕЛА\")","v":{"$error":"#REF!"}},{"$f":"IF(OR(График!#REF!>=$Q$3,$I64<=$R$3,График!#REF!=$P$2,График!#REF!=0),График!#REF!,\"ОШИБКА ДАТЫ ИЛИ №ОТДЕЛА\")","v":{"$error":"#REF!"}},{"$f":"IF(OR(График!#REF!>=$Q$3,$I64<=$R$3,График!#REF!=$P$2,График!#REF!=0),График!#REF!,\"ОШИБКА ДАТЫ ИЛИ №ОТДЕЛА\")","v":{"$error":"#REF!"}},{"$f":"IF(OR(График!#REF!>=$Q$3,$I64<=$R$3,График!#REF!=$P$2,График!#REF!=0),График!#REF!,\"ОШИБКА ДАТЫ ИЛИ №ОТДЕЛА\")","v":{"$error":"#REF!"}},{"$f":"IF(OR(График!#REF!>=$Q$3,$I64<=$R$3,График!#REF!=$P$2,График!#REF!=0),График!#REF!,\"ОШИБКА ДАТЫ ИЛИ №ОТДЕЛА\")","v":{"$error":"#REF!"}},{"$f":"IF(OR(График!#REF!>=$Q$3,$I64<=$R$3,График!#REF!=$P$2,График!#REF!=0),График!#REF!,\"ОШИБКА ДАТЫ ИЛИ №ОТДЕЛА\")","v":{"$error":"#REF!"}},{"$f":"IF(OR(График!#REF!>=$Q$3,$I64<=$R$3,График!#REF!=$P$2,График!#REF!=0),График!#REF!,\"ОШИБКА ДАТЫ ИЛИ №ОТДЕЛА\")","v":{"$error":"#REF!"}}]
["1.60",null,{"$f":"IF(OR(График!#REF!>=$Q$3,$I65<=$R$3,График!#REF!=$P$2,График!#REF!=0),График!#REF!,\"ОШИБКА ДАТЫ ИЛИ №ОТДЕЛА\")","v":{"$error":"#REF!"}},{"$f":"IF(OR(График!#REF!>=$Q$3,$I65<=$R$3,График!#REF!=$P$2,График!#REF!=0),График!#REF!,\"ОШИБКА ДАТЫ ИЛИ №ОТДЕЛА\")","v":{"$error":"#REF!"}},{"$f":"IF(OR(График!#REF!>=$Q$3,$I65<=$R$3,График!#REF!=$P$2,График!#REF!=0),График!#REF!,\"ОШИБКА ДАТЫ ИЛИ №ОТДЕЛА\")","v":{"$error":"#REF!"}},{"$f":"IF(OR(График!#REF!>=$Q$3,$I65<=$R$3,График!#REF!=$P$2,График!#REF!=0),График!#REF!,\"ОШИБКА ДАТЫ ИЛИ №ОТДЕЛА\")","v":{"$error":"#REF!"}},{"$f":"IF(OR(График!#REF!>=$Q$3,$I65<=$R$3,График!#REF!=$P$2,График!#REF!=0),График!#REF!,\"ОШИБКА ДАТЫ ИЛИ №ОТДЕЛА\")","v":{"$error":"#REF!"}},{"$f":"IF(OR(График!#REF!>=$Q$3,$I65<=$R$3,График!#REF!=$P$2,График!#REF!=0),График!#REF!,\"ОШИБКА ДАТЫ ИЛИ №ОТДЕЛА\")","v":{"$error":"#REF!"}},{"$f":"IF(OR(График!#REF!>=$Q$3,$I65<=$R$3,График!#REF!=$P$2,График!#REF!=0),График!#REF!,\"ОШИБКА ДАТЫ ИЛИ №ОТДЕЛА\")","v":{"$error":"#REF!"}},{"$f":"IF(OR(График!#REF!>=$Q$3,$I65<=$R$3,График!#REF!=$P$2,График!#REF!=0),График!#REF!,\"ОШИБКА ДАТЫ ИЛИ №ОТДЕЛА\")","v":{"$error":"#REF!"}},{"$f":"IF(OR(График!#REF!>=$Q$3,$I65<=$R$3,График!#REF!=$P$2,График!#REF!=0),График!#REF!,\"ОШИБКА ДАТЫ ИЛИ №ОТДЕЛА\")","v":{"$error":"#REF!"}}]
["1.61",null,{"$f":"IF(OR(График!#REF!>=$Q$3,$I66<=$R$3,График!#REF!=$P$2,График!#REF!=0),График!#REF!,\"ОШИБКА ДАТЫ ИЛИ №ОТДЕЛА\")","v":{"$error":"#REF!"}},{"$f":"IF(OR(График!#REF!>=$Q$3,$I66<=$R$3,График!#REF!=$P$2,График!#REF!=0),График!#REF!,\"ОШИБКА ДАТЫ ИЛИ №ОТДЕЛА\")","v":{"$error":"#REF!"}},{"$f":"IF(OR(График!#REF!>=$Q$3,$I66<=$R$3,График!#REF!=$P$2,График!#REF!=0),График!#REF!,\"ОШИБКА ДАТЫ ИЛИ №ОТДЕЛА\")","v":{"$error":"#REF!"}},{"$f":"IF(OR(График!#REF!>=$Q$3,$I66<=$R$3,График!#REF!=$P$2,График!#REF!=0),График!#REF!,\"ОШИБКА ДАТЫ ИЛИ №ОТДЕЛА\")","v":{"$error":"#REF!"}},{"$f":"IF(OR(График!#REF!>=$Q$3,$I66<=$R$3,График!#REF!=$P$2,График!#REF!=0),График!#REF!,\"ОШИБКА ДАТЫ ИЛИ №ОТДЕЛА\")","v":{"$error":"#REF!"}},{"$f":"IF(OR(График!#REF!>=$Q$3,$I66<=$R$3,График!#REF!=$P$2,График!#REF!=0),График!#REF!,\"ОШИБКА ДАТЫ ИЛИ №ОТДЕЛА\")","v":{"$error":"#REF!"}},{"$f":"IF(OR(График!#REF!>=$Q$3,$I66<=$R$3,График!#REF!=$P$2,График!#REF!=0),График!#REF!,\"ОШИБКА ДАТЫ ИЛИ №ОТДЕЛА\")","v":{"$error":"#REF!"}},{"$f":"IF(OR(График!#REF!>=$Q$3,$I66<=$R$3,График!#REF!=$P$2,График!#REF!=0),График!#REF!,\"ОШИБКА ДАТЫ ИЛИ №ОТДЕЛА\")","v":{"$error":"#REF!"}},{"$f":"IF(OR(График!#REF!>=$Q$3,$I66<=$R$3,График!#REF!=$P$2,График!#REF!=0),График!#REF!,\"ОШИБКА ДАТЫ ИЛИ №ОТДЕЛА\")","v":{"$error":"#REF!"}}]
["1.62",null,{"$f":"IF(OR(График!#REF!>=$Q$3,$I67<=$R$3,График!#REF!=$P$2,График!#REF!=0),График!#REF!,\"ОШИБКА ДАТЫ ИЛИ №ОТДЕЛА\")","v":{"$error":"#REF!"}},{"$f":"IF(OR(График!#REF!>=$Q$3,$I67<=$R$3,График!#REF!=$P$2,График!#REF!=0),График!#REF!,\"ОШИБКА ДАТЫ ИЛИ №ОТДЕЛА\")","v":{"$error":"#REF!"}},{"$f":"IF(OR(График!#REF!>=$Q$3,$I67<=$R$3,График!#REF!=$P$2,График!#REF!=0),График!#REF!,\"ОШИБКА ДАТЫ ИЛИ №ОТДЕЛА\")","v":{"$error":"#REF!"}},{"$f":"IF(OR(График!#REF!>=$Q$3,$I67<=$R$3,График!#REF!=$P$2,График!#REF!=0),График!#REF!,\"ОШИБКА ДАТЫ ИЛИ №ОТДЕЛА\")","v":{"$error":"#REF!"}},{"$f":"IF(OR(График!#REF!>=$Q$3,$I67<=$R$3,График!#REF!=$P$2,График!#REF!=0),График!#REF!,\"ОШИБКА ДАТЫ ИЛИ №ОТДЕЛА\")","v":{"$error":"#REF!"}},{"$f":"IF(OR(График!#REF!>=$Q$3,$I67<=$R$3,График!#REF!=$P$2,График!#REF!=0),График!#REF!,\"ОШИБКА ДАТЫ ИЛИ №ОТДЕЛА\")","v":{"$error":"#REF!"}},{"$f":"IF(OR(График!#REF!>=$Q$3,$I67<=$R$3,График!#REF!=$P$2,График!#REF!=0),График!#REF!,\"ОШИБКА ДАТЫ ИЛИ №ОТДЕЛА\")","v":{"$error":"#REF!"}},{"$f":"IF(OR(График!#REF!>=$Q$3,$I67<=$R$3,График!#REF!=$P$2,График!#REF!=0),График!#REF!,\"ОШИБКА ДАТЫ ИЛИ №ОТДЕЛА\")","v":{"$error":"#REF!"}},{"$f":"IF(OR(График!#REF!>=$Q$3,$I67<=$R$3,График!#REF!=$P$2,График!#REF!=0),График!#REF!,\"ОШИБКА ДАТЫ ИЛИ №ОТДЕЛА\")","v":{"$error":"#REF!"}}]
["1.63",null,{"$f":"IF(OR(График!#REF!>=$Q$3,$I68<=$R$3,График!#REF!=$P$2,График!#REF!=0),График!#REF!,\"ОШИБКА ДАТЫ ИЛИ №ОТДЕЛА\")","v":{"$error":"#REF!"}},{"$f":"IF(OR(График!#REF!>=$Q$3,$I68<=$R$3,График!#REF!=$P$2,График!#REF!=0),График!#REF!,\"ОШИБКА ДАТЫ ИЛИ №ОТДЕЛА\")","v":{"$error":"#REF!"}},{"$f":"IF(OR(График!#REF!>=$Q$3,$I68<=$R$3,График!#REF!=$P$2,График!#REF!=0),График!#REF!,\"ОШИБКА ДАТЫ ИЛИ №ОТДЕЛА\")","v":{"$error":"#REF!"}},{"$f":"IF(OR(График!#REF!>=$Q$3,$I68<=$R$3,График!#REF!=$P$2,График!#REF!=0),График!#REF!,\"ОШИБКА ДАТЫ ИЛИ №ОТДЕЛА\")","v":{"$error":"#REF!"}},{"$f":"IF(OR(График!#REF!>=$Q$3,$I68<=$R$3,График!#REF!=$P$2,График!#REF!=0),График!#REF!,\"ОШИБКА ДАТЫ ИЛИ №ОТДЕЛА\")","v":{"$error":"#REF!"}},{"$f":"IF(OR(График!#REF!>=$Q$3,$I68<=$R$3,График!#REF!=$P$2,График!#REF!=0),График!#REF!,\"ОШИБКА ДАТЫ ИЛИ №ОТДЕЛА\")","v":{"$error":"#REF!"}},{"$f":"IF(OR(График!#REF!>=$Q$3,$I68<=$R$3,График!#REF!=$P$2,График!#REF!=0),График!#REF!,\"ОШИБКА ДАТЫ ИЛИ №ОТДЕЛА\")","v":{"$error":"#REF!"}},{"$f":"IF(OR(График!#REF!>=$Q$3,$I68<=$R$3,График!#REF!=$P$2,График!#REF!=0),График!#REF!,\"ОШИБКА ДАТЫ ИЛИ №ОТДЕЛА\")","v":{"$error":"#REF!"}},{"$f":"IF(OR(График!#REF!>=$Q$3,$I68<=$R$3,График!#REF!=$P$2,График!#REF!=0),График!#REF!,\"ОШИБКА ДАТЫ ИЛИ №ОТДЕЛА\")","v":{"$error":"#REF!"}}]
["1.64",null,{"$f":"IF(OR(График!#REF!>=$Q$3,$I69<=$R$3,График!#REF!=$P$2,График!#REF!=0),График!#REF!,\"ОШИБКА ДАТЫ ИЛИ №ОТДЕЛА\")","v":{"$error":"#REF!"}},{"$f":"IF(OR(График!#REF!>=$Q$3,$I69<=$R$3,График!#REF!=$P$2,График!#REF!=0),График!#REF!,\"ОШИБКА ДАТЫ ИЛИ №ОТДЕЛА\")","v":{"$error":"#REF!"}},{"$f":"IF(OR(График!#REF!>=$Q$3,$I69<=$R$3,График!#REF!=$P$2,График!#REF!=0),График!#REF!,\"ОШИБКА ДАТЫ ИЛИ №ОТДЕЛА\")","v":{"$error":"#REF!"}},{"$f":"IF(OR(График!#REF!>=$Q$3,$I69<=$R$3,График!#REF!=$P$2,График!#REF!=0),График!#REF!,\"ОШИБКА ДАТЫ ИЛИ №ОТДЕЛА\")","v":{"$error":"#REF!"}},{"$f":"IF(OR(График!#REF!>=$Q$3,$I69<=$R$3,График!#REF!=$P$2,График!#REF!=0),График!#REF!,\"ОШИБКА ДАТЫ ИЛИ №ОТДЕЛА\")","v":{"$error":"#REF!"}},{"$f":"IF(OR(График!#REF!>=$Q$3,$I69<=$R$3,График!#REF!=$P$2,График!#REF!=0),График!#REF!,\"ОШИБКА ДАТЫ ИЛИ №ОТДЕЛА\")","v":{"$error":"#REF!"}},{"$f":"IF(OR(График!#REF!>=$Q$3,$I69<=$R$3,График!#REF!=$P$2,График!#REF!=0),График!#REF!,\"ОШИБКА ДАТЫ ИЛИ №ОТДЕЛА\")","v":{"$error":"#REF!"}},{"$f":"IF(OR(График!#REF!>=$Q$3,$I69<=$R$3,График!#REF!=$P$2,График!#REF!=0),График!#REF!,\"ОШИБКА ДАТЫ ИЛИ №ОТДЕЛА\")","v":{"$error":"#REF!"}},{"$f":"IF(OR(График!#REF!>=$Q$3,$I69<=$R$3,График!#REF!=$P$2,График!#REF!=0),График!#REF!,\"ОШИБКА ДАТЫ ИЛИ №ОТДЕЛА\")","v":{"$error":"#REF!"}}]
["1.65",null,{"$f":"IF(OR(График!#REF!>=$Q$3,$I70<=$R$3,График!#REF!=$P$2,График!#REF!=0),График!#REF!,\"ОШИБКА ДАТЫ ИЛИ №ОТДЕЛА\")","v":{"$error":"#REF!"}},{"$f":"IF(OR(График!#REF!>=$Q$3,$I70<=$R$3,График!#REF!=$P$2,График!#REF!=0),График!#REF!,\"ОШИБКА ДАТЫ ИЛИ №ОТДЕЛА\")","v":{"$error":"#REF!"}},{"$f":"IF(OR(График!#REF!>=$Q$3,$I70<=$R$3,График!#REF!=$P$2,График!#REF!=0),График!#REF!,\"ОШИБКА ДАТЫ ИЛИ №ОТДЕЛА\")","v":{"$error":"#REF!"}},{"$f":"IF(OR(График!#REF!>=$Q$3,$I70<=$R$3,График!#REF!=$P$2,График!#REF!=0),График!#REF!,\"ОШИБКА ДАТЫ ИЛИ №ОТДЕЛА\")","v":{"$error":"#REF!"}},{"$f":"IF(OR(График!#REF!>=$Q$3,$I70<=$R$3,График!#REF!=$P$2,График!#REF!=0),График!#REF!,\"ОШИБКА ДАТЫ ИЛИ №ОТДЕЛА\")","v":{"$error":"#REF!"}},{"$f":"IF(OR(График!#REF!>=$Q$3,$I70<=$R$3,График!#REF!=$P$2,График!#REF!=0),График!#REF!,\"ОШИБКА ДАТЫ ИЛИ №ОТДЕЛА\")","v":{"$error":"#REF!"}},{"$f":"IF(OR(График!#REF!>=$Q$3,$I70<=$R$3,График!#REF!=$P$2,График!#REF!=0),График!#REF!,\"ОШИБКА ДАТЫ ИЛИ №ОТДЕЛА\")","v":{"$error":"#REF!"}},{"$f":"IF(OR(График!#REF!>=$Q$3,$I70<=$R$3,График!#REF!=$P$2,График!#REF!=0),График!#REF!,\"ОШИБКА ДАТЫ ИЛИ №ОТДЕЛА\")","v":{"$error":"#REF!"}},{"$f":"IF(OR(График!#REF!>=$Q$3,$I70<=$R$3,График!#REF!=$P$2,График!#REF!=0),График!#REF!,\"ОШИБКА ДАТЫ ИЛИ №ОТДЕЛА\")","v":{"$error":"#REF!"}}]
["1.66",null,{"$f":"IF(OR(График!#REF!>=$Q$3,$I71<=$R$3,График!#REF!=$P$2,График!#REF!=0),График!#REF!,\"ОШИБКА ДАТЫ ИЛИ №ОТДЕЛА\")","v":{"$error":"#REF!"}},{"$f":"IF(OR(График!#REF!>=$Q$3,$I71<=$R$3,График!#REF!=$P$2,График!#REF!=0),График!#REF!,\"ОШИБКА ДАТЫ ИЛИ №ОТДЕЛА\")","v":{"$error":"#REF!"}},{"$f":"IF(OR(График!#REF!>=$Q$3,$I71<=$R$3,График!#REF!=$P$2,График!#REF!=0),График!#REF!,\"ОШИБКА ДАТЫ ИЛИ №ОТДЕЛА\")","v":{"$error":"#REF!"}},{"$f":"IF(OR(График!#REF!>=$Q$3,$I71<=$R$3,График!#REF!=$P$2,График!#REF!=0),График!#REF!,\"ОШИБКА ДАТЫ ИЛИ №ОТДЕЛА\")","v":{"$error":"#REF!"}},{"$f":"IF(OR(График!#REF!>=$Q$3,$I71<=$R$3,График!#REF!=$P$2,График!#REF!=0),График!#REF!,\"ОШИБКА ДАТЫ ИЛИ №ОТДЕЛА\")","v":{"$error":"#REF!"}},{"$f":"IF(OR(График!#REF!>=$Q$3,$I71<=$R$3,График!#REF!=$P$2,График!#REF!=0),График!#REF!,\"ОШИБКА ДАТЫ ИЛИ №ОТДЕЛА\")","v":{"$error":"#REF!"}},{"$f":"IF(OR(График!#REF!>=$Q$3,$I71<=$R$3,График!#REF!=$P$2,График!#REF!=0),График!#REF!,\"ОШИБКА ДАТЫ ИЛИ №ОТДЕЛА\")","v":{"$error":"#REF!"}},{"$f":"IF(OR(График!#REF!>=$Q$3,$I71<=$R$3,График!#REF!=$P$2,График!#REF!=0),График!#REF!,\"ОШИБКА ДАТЫ ИЛИ №ОТДЕЛА\")","v":{"$error":"#REF!"}},{"$f":"IF(OR(График!#REF!>=$Q$3,$I71<=$R$3,График!#REF!=$P$2,График!#REF!=0),График!#REF!,\"ОШИБКА ДАТЫ ИЛИ №ОТДЕЛА\")","v":{"$error":"#REF!"}}]
["1.67",null,{"$f":"IF(OR(График!#REF!>=$Q$3,$I72<=$R$3,График!#REF!=$P$2,График!#REF!=0),График!#REF!,\"ОШИБКА ДАТЫ ИЛИ №ОТДЕЛА\")","v":{"$error":"#REF!"}},{"$f":"IF(OR(График!#REF!>=$Q$3,$I72<=$R$3,График!#REF!=$P$2,График!#REF!=0),График!#REF!,\"ОШИБКА ДАТЫ ИЛИ №ОТДЕЛА\")","v":{"$error":"#REF!"}},{"$f":"IF(OR(График!#REF!>=$Q$3,$I72<=$R$3,График!#REF!=$P$2,График!#REF!=0),График!#REF!,\"ОШИБКА ДАТЫ ИЛИ №ОТДЕЛА\")","v":{"$error":"#REF!"}},{"$f":"IF(OR(График!#REF!>=$Q$3,$I72<=$R$3,График!#REF!=$P$2,График!#REF!=0),График!#REF!,\"ОШИБКА ДАТЫ ИЛИ №ОТДЕЛА\")","v":{"$error":"#REF!"}},{"$f":"IF(OR(График!#REF!>=$Q$3,$I72<=$R$3,График!#REF!=$P$2,График!#REF!=0),График!#REF!,\"ОШИБКА ДАТЫ ИЛИ №ОТДЕЛА\")","v":{"$error":"#REF!"}},{"$f":"IF(OR(График!#REF!>=$Q$3,$I72<=$R$3,График!#REF!=$P$2,График!#REF!=0),График!#REF!,\"ОШИБКА ДАТЫ ИЛИ №ОТДЕЛА\")","v":{"$error":"#REF!"}},{"$f":"IF(OR(График!#REF!>=$Q$3,$I72<=$R$3,График!#REF!=$P$2,График!#REF!=0),График!#REF!,\"ОШИБКА ДАТЫ ИЛИ №ОТДЕЛА\")","v":{"$error":"#REF!"}},{"$f":"IF(OR(График!#REF!>=$Q$3,$I72<=$R$3,График!#REF!=$P$2,График!#REF!=0),График!#REF!,\"ОШИБКА ДАТЫ ИЛИ №ОТДЕЛА\")","v":{"$error":"#REF!"}},{"$f":"IF(OR(График!#REF!>=$Q$3,$I72<=$R$3,График!#REF!=$P$2,График!#REF!=0),График!#REF!,\"ОШИБКА ДАТЫ ИЛИ №ОТДЕЛА\")","v":{"$error":"#REF!"}}]
["1.68",null,{"$f":"IF(OR(График!#REF!>=$Q$3,$I73<=$R$3,График!#REF!=$P$2,График!#REF!=0),График!#REF!,\"ОШИБКА ДАТЫ ИЛИ №ОТДЕЛА\")","v":{"$error":"#REF!"}},{"$f":"IF(OR(График!#REF!>=$Q$3,$I73<=$R$3,График!#REF!=$P$2,График!#REF!=0),График!#REF!,\"ОШИБКА ДАТЫ ИЛИ №ОТДЕЛА\")","v":{"$error":"#REF!"}},{"$f":"IF(OR(График!#REF!>=$Q$3,$I73<=$R$3,График!#REF!=$P$2,График!#REF!=0),График!#REF!,\"ОШИБКА ДАТЫ ИЛИ №ОТДЕЛА\")","v":{"$error":"#REF!"}},{"$f":"IF(OR(График!#REF!>=$Q$3,$I73<=$R$3,График!#REF!=$P$2,График!#REF!=0),График!#REF!,\"ОШИБКА ДАТЫ ИЛИ №ОТДЕЛА\")","v":{"$error":"#REF!"}},{"$f":"IF(OR(График!#REF!>=$Q$3,$I73<=$R$3,График!#REF!=$P$2,График!#REF!=0),График!#REF!,\"ОШИБКА ДАТЫ ИЛИ №ОТДЕЛА\")","v":{"$error":"#REF!"}},{"$f":"IF(OR(График!#REF!>=$Q$3,$I73<=$R$3,График!#REF!=$P$2,График!#REF!=0),График!#REF!,\"ОШИБКА ДАТЫ ИЛИ №ОТДЕЛА\")","v":{"$error":"#REF!"}},{"$f":"IF(OR(График!#REF!>=$Q$3,$I73<=$R$3,График!#REF!=$P$2,График!#REF!=0),График!#REF!,\"ОШИБКА ДАТЫ ИЛИ №ОТДЕЛА\")","v":{"$error":"#REF!"}},{"$f":"IF(OR(График!#REF!>=$Q$3,$I73<=$R$3,График!#REF!=$P$2,График!#REF!=0),График!#REF!,\"ОШИБКА ДАТЫ ИЛИ №ОТДЕЛА\")","v":{"$error":"#REF!"}},{"$f":"IF(OR(График!#REF!>=$Q$3,$I73<=$R$3,График!#REF!=$P$2,График!#REF!=0),График!#REF!,\"ОШИБКА ДАТЫ ИЛИ №ОТДЕЛА\")","v":{"$error":"#REF!"}}]
["1.69",null,{"$f":"IF(OR(График!#REF!>=$Q$3,$I74<=$R$3,График!#REF!=$P$2,График!#REF!=0),График!#REF!,\"ОШИБКА ДАТЫ ИЛИ №ОТДЕЛА\")","v":{"$error":"#REF!"}},{"$f":"IF(OR(График!#REF!>=$Q$3,$I74<=$R$3,График!#REF!=$P$2,График!#REF!=0),График!#REF!,\"ОШИБКА ДАТЫ ИЛИ №ОТДЕЛА\")","v":{"$error":"#REF!"}},{"$f":"IF(OR(График!#REF!>=$Q$3,$I74<=$R$3,График!#REF!=$P$2,График!#REF!=0),График!#REF!,\"ОШИБКА ДАТЫ ИЛИ №ОТДЕЛА\")","v":{"$error":"#REF!"}},{"$f":"IF(OR(График!#REF!>=$Q$3,$I74<=$R$3,График!#REF!=$P$2,График!#REF!=0),График!#REF!,\"ОШИБКА ДАТЫ ИЛИ №ОТДЕЛА\")","v":{"$error":"#REF!"}},{"$f":"IF(OR(График!#REF!>=$Q$3,$I74<=$R$3,График!#REF!=$P$2,График!#REF!=0),График!#REF!,\"ОШИБКА ДАТЫ ИЛИ №ОТДЕЛА\")","v":{"$error":"#REF!"}},{"$f":"IF(OR(График!#REF!>=$Q$3,$I74<=$R$3,График!#REF!=$P$2,График!#REF!=0),График!#REF!,\"ОШИБКА ДАТЫ ИЛИ №ОТДЕЛА\")","v":{"$error":"#REF!"}},{"$f":"IF(OR(График!#REF!>=$Q$3,$I74<=$R$3,График!#REF!=$P$2,График!#REF!=0),График!#REF!,\"ОШИБКА ДАТЫ ИЛИ №ОТДЕЛА\")","v":{"$error":"#REF!"}},{"$f":"IF(OR(График!#REF!>=$Q$3,$I74<=$R$3,График!#REF!=$P$2,График!#REF!=0),График!#REF!,\"ОШИБКА ДАТЫ ИЛИ №ОТДЕЛА\")","v":{"$error":"#REF!"}},{"$f":"IF(OR(График!#REF!>=$Q$3,$I74<=$R$3,График!#REF!=$P$2,График!#REF!=0),График!#REF!,\"ОШИБКА ДАТЫ ИЛИ №ОТДЕЛА\")","v":{"$error":"#REF!"}}]
["1.70",null,{"$f":"IF(OR(График!#REF!>=$Q$3,$I75<=$R$3,График!#REF!=$P$2,График!#REF!=0),График!#REF!,\"ОШИБКА ДАТЫ ИЛИ №ОТДЕЛА\")","v":{"$error":"#REF!"}},{"$f":"IF(OR(График!#REF!>=$Q$3,$I75<=$R$3,График!#REF!=$P$2,График!#REF!=0),График!#REF!,\"ОШИБКА ДАТЫ ИЛИ №ОТДЕЛА\")","v":{"$error":"#REF!"}},{"$f":"IF(OR(График!#REF!>=$Q$3,$I75<=$R$3,График!#REF!=$P$2,График!#REF!=0),График!#REF!,\"ОШИБКА ДАТЫ ИЛИ №ОТДЕЛА\")","v":{"$error":"#REF!"}},{"$f":"IF(OR(График!#REF!>=$Q$3,$I75<=$R$3,График!#REF!=$P$2,График!#REF!=0),График!#REF!,\"ОШИБКА ДАТЫ ИЛИ №ОТДЕЛА\")","v":{"$error":"#REF!"}},{"$f":"IF(OR(График!#REF!>=$Q$3,$I75<=$R$3,График!#REF!=$P$2,График!#REF!=0),График!#REF!,\"ОШИБКА ДАТЫ ИЛИ №ОТДЕЛА\")","v":{"$error":"#REF!"}},{"$f":"IF(OR(График!#REF!>=$Q$3,$I75<=$R$3,График!#REF!=$P$2,График!#REF!=0),График!#REF!,\"ОШИБКА ДАТЫ ИЛИ №ОТДЕЛА\")","v":{"$error":"#REF!"}},{"$f":"IF(OR(График!#REF!>=$Q$3,$I75<=$R$3,График!#REF!=$P$2,График!#REF!=0),График!#REF!,\"ОШИБКА ДАТЫ ИЛИ №ОТДЕЛА\")","v":{"$error":"#REF!"}},{"$f":"IF(OR(График!#REF!>=$Q$3,$I75<=$R$3,График!#REF!=$P$2,График!#REF!=0),График!#REF!,\"ОШИБКА ДАТЫ ИЛИ №ОТДЕЛА\")","v":{"$error":"#REF!"}},{"$f":"IF(OR(График!#REF!>=$Q$3,$I75<=$R$3,График!#REF!=$P$2,График!#REF!=0),График!#REF!,\"ОШИБКА ДАТЫ ИЛИ №ОТДЕЛА\")","v":{"$error":"#REF!"}}]
["1.71",null,{"$f":"IF(OR(График!#REF!>=$Q$3,$I76<=$R$3,График!#REF!=$P$2,График!#REF!=0),График!#REF!,\"ОШИБКА ДАТЫ ИЛИ №ОТДЕЛА\")","v":{"$error":"#REF!"}},{"$f":"IF(OR(График!#REF!>=$Q$3,$I76<=$R$3,График!#REF!=$P$2,График!#REF!=0),График!#REF!,\"ОШИБКА ДАТЫ ИЛИ №ОТДЕЛА\")","v":{"$error":"#REF!"}},{"$f":"IF(OR(График!#REF!>=$Q$3,$I76<=$R$3,График!#REF!=$P$2,График!#REF!=0),График!#REF!,\"ОШИБКА ДАТЫ ИЛИ №ОТДЕЛА\")","v":{"$error":"#REF!"}},{"$f":"IF(OR(График!#REF!>=$Q$3,$I76<=$R$3,График!#REF!=$P$2,График!#REF!=0),График!#REF!,\"ОШИБКА ДАТЫ ИЛИ №ОТДЕЛА\")","v":{"$error":"#REF!"}},{"$f":"IF(OR(График!#REF!>=$Q$3,$I76<=$R$3,График!#REF!=$P$2,График!#REF!=0),График!#REF!,\"ОШИБКА ДАТЫ ИЛИ №ОТДЕЛА\")","v":{"$error":"#REF!"}},{"$f":"IF(OR(График!#REF!>=$Q$3,$I76<=$R$3,График!#REF!=$P$2,График!#REF!=0),График!#REF!,\"ОШИБКА ДАТЫ ИЛИ №ОТДЕЛА\")","v":{"$error":"#REF!"}},{"$f":"IF(OR(График!#REF!>=$Q$3,$I76<=$R$3,График!#REF!=$P$2,График!#REF!=0),График!#REF!,\"ОШИБКА ДАТЫ ИЛИ №ОТДЕЛА\")","v":{"$error":"#REF!"}},{"$f":"IF(OR(График!#REF!>=$Q$3,$I76<=$R$3,График!#REF!=$P$2,График!#REF!=0),График!#REF!,\"ОШИБКА ДАТЫ ИЛИ №ОТДЕЛА\")","v":{"$error":"#REF!"}},{"$f":"IF(OR(График!#REF!>=$Q$3,$I76<=$R$3,График!#REF!=$P$2,График!#REF!=0),График!#REF!,\"ОШИБКА ДАТЫ ИЛИ №ОТДЕЛА\")","v":{"$error":"#REF!"}}]
["1.72",null,{"$f":"IF(OR(График!#REF!>=$Q$3,$I77<=$R$3,График!#REF!=$P$2,График!#REF!=0),График!#REF!,\"ОШИБКА ДАТЫ ИЛИ №ОТДЕЛА\")","v":{"$error":"#REF!"}},{"$f":"IF(OR(График!#REF!>=$Q$3,$I77<=$R$3,График!#REF!=$P$2,График!#REF!=0),График!#REF!,\"ОШИБКА ДАТЫ ИЛИ №ОТДЕЛА\")","v":{"$error":"#REF!"}},{"$f":"IF(OR(График!#REF!>=$Q$3,$I77<=$R$3,График!#REF!=$P$2,График!#REF!=0),График!#REF!,\"ОШИБКА ДАТЫ ИЛИ №ОТДЕЛА\")","v":{"$error":"#REF!"}},{"$f":"IF(OR(График!#REF!>=$Q$3,$I77<=$R$3,График!#REF!=$P$2,График!#REF!=0),График!#REF!,\"ОШИБКА ДАТЫ ИЛИ №ОТДЕЛА\")","v":{"$error":"#REF!"}},{"$f":"IF(OR(График!#REF!>=$Q$3,$I77<=$R$3,График!#REF!=$P$2,График!#REF!=0),График!#REF!,\"ОШИБКА ДАТЫ ИЛИ №ОТДЕЛА\")","v":{"$error":"#REF!"}},{"$f":"IF(OR(График!#REF!>=$Q$3,$I77<=$R$3,График!#REF!=$P$2,График!#REF!=0),График!#REF!,\"ОШИБКА ДАТЫ ИЛИ №ОТДЕЛА\")","v":{"$error":"#REF!"}},{"$f":"IF(OR(График!#REF!>=$Q$3,$I77<=$R$3,График!#REF!=$P$2,График!#REF!=0),График!#REF!,\"ОШИБКА ДАТЫ ИЛИ №ОТДЕЛА\")","v":{"$error":"#REF!"}},{"$f":"IF(OR(График!#REF!>=$Q$3,$I77<=$R$3,График!#REF!=$P$2,График!#REF!=0),График!#REF!,\"ОШИБКА ДАТЫ ИЛИ №ОТДЕЛА\")","v":{"$error":"#REF!"}},{"$f":"IF(OR(График!#REF!>=$Q$3,$I77<=$R$3,График!#REF!=$P$2,График!#REF!=0),График!#REF!,\"ОШИБКА ДАТЫ ИЛИ №ОТДЕЛА\")","v":{"$error":"#REF!"}}]
["1.73",null,{"$f":"IF(OR(График!#REF!>=$Q$3,$I78<=$R$3,График!#REF!=$P$2,График!#REF!=0),График!#REF!,\"ОШИБКА ДАТЫ ИЛИ №ОТДЕЛА\")","v":{"$error":"#REF!"}},{"$f":"IF(OR(График!#REF!>=$Q$3,$I78<=$R$3,График!#REF!=$P$2,График!#REF!=0),График!#REF!,\"ОШИБКА ДАТЫ ИЛИ №ОТДЕЛА\")","v":{"$error":"#REF!"}},{"$f":"IF(OR(График!#REF!>=$Q$3,$I78<=$R$3,График!#REF!=$P$2,График!#REF!=0),График!#REF!,\"ОШИБКА ДАТЫ ИЛИ №ОТДЕЛА\")","v":{"$error":"#REF!"}},{"$f":"IF(OR(График!#REF!>=$Q$3,$I78<=$R$3,График!#REF!=$P$2,График!#REF!=0),График!#REF!,\"ОШИБКА ДАТЫ ИЛИ №ОТДЕЛА\")","v":{"$error":"#REF!"}},{"$f":"IF(OR(График!#REF!>=$Q$3,$I78<=$R$3,График!#REF!=$P$2,График!#REF!=0),График!#REF!,\"ОШИБКА ДАТЫ ИЛИ №ОТДЕЛА\")","v":{"$error":"#REF!"}},{"$f":"IF(OR(График!#REF!>=$Q$3,$I78<=$R$3,График!#REF!=$P$2,График!#REF!=0),График!#REF!,\"ОШИБКА ДАТЫ ИЛИ №ОТДЕЛА\")","v":{"$error":"#REF!"}},{"$f":"IF(OR(График!#REF!>=$Q$3,$I78<=$R$3,График!#REF!=$P$2,График!#REF!=0),График!#REF!,\"ОШИБКА ДАТЫ ИЛИ №ОТДЕЛА\")","v":{"$error":"#REF!"}},{"$f":"IF(OR(График!#REF!>=$Q$3,$I78<=$R$3,График!#REF!=$P$2,График!#REF!=0),График!#REF!,\"ОШИБКА ДАТЫ ИЛИ №ОТДЕЛА\")","v":{"$error":"#REF!"}},{"$f":"IF(OR(График!#REF!>=$Q$3,$I78<=$R$3,График!#REF!=$P$2,График!#REF!=0),График!#REF!,\"ОШИБКА ДАТЫ ИЛИ №ОТДЕЛА\")","v":{"$error":"#REF!"}}]
["1.74",null,{"$f":"IF(OR(График!#REF!>=$Q$3,$I79<=$R$3,График!#REF!=$P$2,График!#REF!=0),График!#REF!,\"ОШИБКА ДАТЫ ИЛИ №ОТДЕЛА\")","v":{"$error":"#REF!"}},{"$f":"IF(OR(График!#REF!>=$Q$3,$I79<=$R$3,График!#REF!=$P$2,График!#REF!=0),График!#REF!,\"ОШИБКА ДАТЫ ИЛИ №ОТДЕЛА\")","v":{"$error":"#REF!"}},{"$f":"IF(OR(График!#REF!>=$Q$3,$I79<=$R$3,График!#REF!=$P$2,График!#REF!=0),График!#REF!,\"ОШИБКА ДАТЫ ИЛИ №ОТДЕЛА\")","v":{"$error":"#REF!"}},{"$f":"IF(OR(График!#REF!>=$Q$3,$I79<=$R$3,График!#REF!=$P$2,График!#REF!=0),График!#REF!,\"ОШИБКА ДАТЫ ИЛИ №ОТДЕЛА\")","v":{"$error":"#REF!"}},{"$f":"IF(OR(График!#REF!>=$Q$3,$I79<=$R$3,График!#REF!=$P$2,График!#REF!=0),График!#REF!,\"ОШИБКА ДАТЫ ИЛИ №ОТДЕЛА\")","v":{"$error":"#REF!"}},{"$f":"IF(OR(График!#REF!>=$Q$3,$I79<=$R$3,График!#REF!=$P$2,График!#REF!=0),График!#REF!,\"ОШИБКА ДАТЫ ИЛИ №ОТДЕЛА\")","v":{"$error":"#REF!"}},{"$f":"IF(OR(График!#REF!>=$Q$3,$I79<=$R$3,График!#REF!=$P$2,График!#REF!=0),График!#REF!,\"ОШИБКА ДАТЫ ИЛИ №ОТДЕЛА\")","v":{"$error":"#REF!"}},{"$f":"IF(OR(График!#REF!>=$Q$3,$I79<=$R$3,График!#REF!=$P$2,График!#REF!=0),График!#REF!,\"ОШИБКА ДАТЫ ИЛИ №ОТДЕЛА\")","v":{"$error":"#REF!"}},{"$f":"IF(OR(График!#REF!>=$Q$3,$I79<=$R$3,График!#REF!=$P$2,График!#REF!=0),График!#REF!,\"ОШИБКА ДАТЫ ИЛИ №ОТДЕЛА\")","v":{"$error":"#REF!"}}]
["1.75",null,{"$f":"IF(OR(График!#REF!>=$Q$3,$I80<=$R$3,График!#REF!=$P$2,График!#REF!=0),График!#REF!,\"ОШИБКА ДАТЫ ИЛИ №ОТДЕЛА\")","v":{"$error":"#REF!"}},{"$f":"IF(OR(График!#REF!>=$Q$3,$I80<=$R$3,График!#REF!=$P$2,График!#REF!=0),График!#REF!,\"ОШИБКА ДАТЫ ИЛИ №ОТДЕЛА\")","v":{"$error":"#REF!"}},{"$f":"IF(OR(График!#REF!>=$Q$3,$I80<=$R$3,График!#REF!=$P$2,График!#REF!=0),График!#REF!,\"ОШИБКА ДАТЫ ИЛИ №ОТДЕЛА\")","v":{"$error":"#REF!"}},{"$f":"IF(OR(График!#REF!>=$Q$3,$I80<=$R$3,График!#REF!=$P$2,График!#REF!=0),График!#REF!,\"ОШИБКА ДАТЫ ИЛИ №ОТДЕЛА\")","v":{"$error":"#REF!"}},{"$f":"IF(OR(График!#REF!>=$Q$3,$I80<=$R$3,График!#REF!=$P$2,График!#REF!=0),График!#REF!,\"ОШИБКА ДАТЫ ИЛИ №ОТДЕЛА\")","v":{"$error":"#REF!"}},{"$f":"IF(OR(График!#REF!>=$Q$3,$I80<=$R$3,График!#REF!=$P$2,График!#REF!=0),График!#REF!,\"ОШИБКА ДАТЫ ИЛИ №ОТДЕЛА\")","v":{"$error":"#REF!"}},{"$f":"IF(OR(График!#REF!>=$Q$3,$I80<=$R$3,График!#REF!=$P$2,График!#REF!=0),График!#REF!,\"ОШИБКА ДАТЫ ИЛИ №ОТДЕЛА\")","v":{"$error":"#REF!"}},{"$f":"IF(OR(График!#REF!>=$Q$3,$I80<=$R$3,График!#REF!=$P$2,График!#REF!=0),График!#REF!,\"ОШИБКА ДАТЫ ИЛИ №ОТДЕЛА\")","v":{"$error":"#REF!"}},{"$f":"IF(OR(График!#REF!>=$Q$3,$I80<=$R$3,График!#REF!=$P$2,График!#REF!=0),График!#REF!,\"ОШИБКА ДАТЫ ИЛИ №ОТДЕЛА\")","v":{"$error":"#REF!"}}]
["1.76",null,{"$f":"IF(OR(График!#REF!>=$Q$3,$I81<=$R$3,График!#REF!=$P$2,График!#REF!=0),График!#REF!,\"ОШИБКА ДАТЫ ИЛИ №ОТДЕЛА\")","v":{"$error":"#REF!"}},{"$f":"IF(OR(График!#REF!>=$Q$3,$I81<=$R$3,График!#REF!=$P$2,График!#REF!=0),График!#REF!,\"ОШИБКА ДАТЫ ИЛИ №ОТДЕЛА\")","v":{"$error":"#REF!"}},{"$f":"IF(OR(График!#REF!>=$Q$3,$I81<=$R$3,График!#REF!=$P$2,График!#REF!=0),График!#REF!,\"ОШИБКА ДАТЫ ИЛИ №ОТДЕЛА\")","v":{"$error":"#REF!"}},{"$f":"IF(OR(График!#REF!>=$Q$3,$I81<=$R$3,График!#REF!=$P$2,График!#REF!=0),График!#REF!,\"ОШИБКА ДАТЫ ИЛИ №ОТДЕЛА\")","v":{"$error":"#REF!"}},{"$f":"IF(OR(График!#REF!>=$Q$3,$I81<=$R$3,График!#REF!=$P$2,График!#REF!=0),График!#REF!,\"ОШИБКА ДАТЫ ИЛИ №ОТДЕЛА\")","v":{"$error":"#REF!"}},{"$f":"IF(OR(График!#REF!>=$Q$3,$I81<=$R$3,График!#REF!=$P$2,График!#REF!=0),График!#REF!,\"ОШИБКА ДАТЫ ИЛИ №ОТДЕЛА\")","v":{"$error":"#REF!"}},{"$f":"IF(OR(График!#REF!>=$Q$3,$I81<=$R$3,График!#REF!=$P$2,График!#REF!=0),График!#REF!,\"ОШИБКА ДАТЫ ИЛИ №ОТДЕЛА\")","v":{"$error":"#REF!"}},{"$f":"IF(OR(График!#REF!>=$Q$3,$I81<=$R$3,График!#REF!=$P$2,График!#REF!=0),График!#REF!,\"ОШИБКА ДАТЫ ИЛИ №ОТДЕЛА\")","v":{"$error":"#REF!"}},{"$f":"IF(OR(График!#REF!>=$Q$3,$I81<=$R$3,График!#REF!=$P$2,График!#REF!=0),График!#REF!,\"ОШИБКА ДАТЫ ИЛИ №ОТДЕЛА\")","v":{"$error":"#REF!"}}]
["1.77",null,{"$f":"IF(OR(График!#REF!>=$Q$3,$I82<=$R$3,График!#REF!=$P$2,График!#REF!=0),График!#REF!,\"ОШИБКА ДАТЫ ИЛИ №ОТДЕЛА\")","v":{"$error":"#REF!"}},{"$f":"IF(OR(График!#REF!>=$Q$3,$I82<=$R$3,График!#REF!=$P$2,График!#REF!=0),График!#REF!,\"ОШИБКА ДАТЫ ИЛИ №ОТДЕЛА\")","v":{"$error":"#REF!"}},{"$f":"IF(OR(График!#REF!>=$Q$3,$I82<=$R$3,График!#REF!=$P$2,График!#REF!=0),График!#REF!,\"ОШИБКА ДАТЫ ИЛИ №ОТДЕЛА\")","v":{"$error":"#REF!"}},{"$f":"IF(OR(График!#REF!>=$Q$3,$I82<=$R$3,График!#REF!=$P$2,График!#REF!=0),График!#REF!,\"ОШИБКА ДАТЫ ИЛИ №ОТДЕЛА\")","v":{"$error":"#REF!"}},{"$f":"IF(OR(График!#REF!>=$Q$3,$I82<=$R$3,График!#REF!=$P$2,График!#REF!=0),График!#REF!,\"ОШИБКА ДАТЫ ИЛИ №ОТДЕЛА\")","v":{"$error":"#REF!"}},{"$f":"IF(OR(График!#REF!>=$Q$3,$I82<=$R$3,График!#REF!=$P$2,График!#REF!=0),График!#REF!,\"ОШИБКА ДАТЫ ИЛИ №ОТДЕЛА\")","v":{"$error":"#REF!"}},{"$f":"IF(OR(График!#REF!>=$Q$3,$I82<=$R$3,График!#REF!=$P$2,График!#REF!=0),График!#REF!,\"ОШИБКА ДАТЫ ИЛИ №ОТДЕЛА\")","v":{"$error":"#REF!"}},{"$f":"IF(OR(График!#REF!>=$Q$3,$I82<=$R$3,График!#REF!=$P$2,График!#REF!=0),График!#REF!,\"ОШИБКА ДАТЫ ИЛИ №ОТДЕЛА\")","v":{"$error":"#REF!"}},{"$f":"IF(OR(График!#REF!>=$Q$3,$I82<=$R$3,График!#REF!=$P$2,График!#REF!=0),График!#REF!,\"ОШИБКА ДАТЫ ИЛИ №ОТДЕЛА\")","v":{"$error":"#REF!"}}]
["1.78",null,{"$f":"IF(OR(График!#REF!>=$Q$3,$I83<=$R$3,График!#REF!=$P$2,График!#REF!=0),График!#REF!,\"ОШИБКА ДАТЫ ИЛИ №ОТДЕЛА\")","v":{"$error":"#REF!"}},{"$f":"IF(OR(График!#REF!>=$Q$3,$I83<=$R$3,График!#REF!=$P$2,График!#REF!=0),График!#REF!,\"ОШИБКА ДАТЫ ИЛИ №ОТДЕЛА\")","v":{"$error":"#REF!"}},{"$f":"IF(OR(График!#REF!>=$Q$3,$I83<=$R$3,График!#REF!=$P$2,График!#REF!=0),График!#REF!,\"ОШИБКА ДАТЫ ИЛИ №ОТДЕЛА\")","v":{"$error":"#REF!"}},{"$f":"IF(OR(График!#REF!>=$Q$3,$I83<=$R$3,График!#REF!=$P$2,График!#REF!=0),График!#REF!,\"ОШИБКА ДАТЫ ИЛИ №ОТДЕЛА\")","v":{"$error":"#REF!"}},{"$f":"IF(OR(График!#REF!>=$Q$3,$I83<=$R$3,График!#REF!=$P$2,График!#REF!=0),График!#REF!,\"ОШИБКА ДАТЫ ИЛИ №ОТДЕЛА\")","v":{"$error":"#REF!"}},{"$f":"IF(OR(График!#REF!>=$Q$3,$I83<=$R$3,График!#REF!=$P$2,График!#REF!=0),График!#REF!,\"ОШИБКА ДАТЫ ИЛИ №ОТДЕЛА\")","v":{"$error":"#REF!"}},{"$f":"IF(OR(График!#REF!>=$Q$3,$I83<=$R$3,График!#REF!=$P$2,График!#REF!=0),График!#REF!,\"ОШИБКА ДАТЫ ИЛИ №ОТДЕЛА\")","v":{"$error":"#REF!"}},{"$f":"IF(OR(График!#REF!>=$Q$3,$I83<=$R$3,График!#REF!=$P$2,График!#REF!=0),График!#REF!,\"ОШИБКА ДАТЫ ИЛИ №ОТДЕЛА\")","v":{"$error":"#REF!"}},{"$f":"IF(OR(График!#REF!>=$Q$3,$I83<=$R$3,График!#REF!=$P$2,График!#REF!=0),График!#REF!,\"ОШИБКА ДАТЫ ИЛИ №ОТДЕЛА\")","v":{"$error":"#REF!"}}]
["1.79",null,{"$f":"IF(OR(График!#REF!>=$Q$3,$I84<=$R$3,График!#REF!=$P$2,График!#REF!=0),График!#REF!,\"ОШИБКА ДАТЫ ИЛИ №ОТДЕЛА\")","v":{"$error":"#REF!"}},{"$f":"IF(OR(График!#REF!>=$Q$3,$I84<=$R$3,График!#REF!=$P$2,График!#REF!=0),График!#REF!,\"ОШИБКА ДАТЫ ИЛИ №ОТДЕЛА\")","v":{"$error":"#REF!"}},{"$f":"IF(OR(График!#REF!>=$Q$3,$I84<=$R$3,График!#REF!=$P$2,График!#REF!=0),График!#REF!,\"ОШИБКА ДАТЫ ИЛИ №ОТДЕЛА\")","v":{"$error":"#REF!"}},{"$f":"IF(OR(График!#REF!>=$Q$3,$I84<=$R$3,График!#REF!=$P$2,График!#REF!=0),График!#REF!,\"ОШИБКА ДАТЫ ИЛИ №ОТДЕЛА\")","v":{"$error":"#REF!"}},{"$f":"IF(OR(График!#REF!>=$Q$3,$I84<=$R$3,График!#REF!=$P$2,График!#REF!=0),График!#REF!,\"ОШИБКА ДАТЫ ИЛИ №ОТДЕЛА\")","v":{"$error":"#REF!"}},{"$f":"IF(OR(График!#REF!>=$Q$3,$I84<=$R$3,График!#REF!=$P$2,График!#REF!=0),График!#REF!,\"ОШИБКА ДАТЫ ИЛИ №ОТДЕЛА\")","v":{"$error":"#REF!"}},{"$f":"IF(OR(График!#REF!>=$Q$3,$I84<=$R$3,График!#REF!=$P$2,График!#REF!=0),График!#REF!,\"ОШИБКА ДАТЫ ИЛИ №ОТДЕЛА\")","v":{"$error":"#REF!"}},{"$f":"IF(OR(График!#REF!>=$Q$3,$I84<=$R$3,График!#REF!=$P$2,График!#REF!=0),График!#REF!,\"ОШИБКА ДАТЫ ИЛИ №ОТДЕЛА\")","v":{"$error":"#REF!"}},{"$f":"IF(OR(График!#REF!>=$Q$3,$I84<=$R$3,График!#REF!=$P$2,График!#REF!=0),График!#REF!,\"ОШИБКА ДАТЫ ИЛИ №ОТДЕЛА\")","v":{"$error":"#REF!"}}]
["1.80",null,{"$f":"IF(OR(График!#REF!>=$Q$3,$I85<=$R$3,График!#REF!=$P$2,График!#REF!=0),График!#REF!,\"ОШИБКА ДАТЫ ИЛИ №ОТДЕЛА\")","v":{"$error":"#REF!"}},{"$f":"IF(OR(График!#REF!>=$Q$3,$I85<=$R$3,График!#REF!=$P$2,График!#REF!=0),График!#REF!,\"ОШИБКА ДАТЫ ИЛИ №ОТДЕЛА\")","v":{"$error":"#REF!"}},{"$f":"IF(OR(График!#REF!>=$Q$3,$I85<=$R$3,График!#REF!=$P$2,График!#REF!=0),График!#REF!,\"ОШИБКА ДАТЫ ИЛИ №ОТДЕЛА\")","v":{"$error":"#REF!"}},{"$f":"IF(OR(График!#REF!>=$Q$3,$I85<=$R$3,График!#REF!=$P$2,График!#REF!=0),График!#REF!,\"ОШИБКА ДАТЫ ИЛИ №ОТДЕЛА\")","v":{"$error":"#REF!"}},{"$f":"IF(OR(График!#REF!>=$Q$3,$I85<=$R$3,График!#REF!=$P$2,График!#REF!=0),График!#REF!,\"ОШИБКА ДАТЫ ИЛИ №ОТДЕЛА\")","v":{"$error":"#REF!"}},{"$f":"IF(OR(График!#REF!>=$Q$3,$I85<=$R$3,График!#REF!=$P$2,График!#REF!=0),График!#REF!,\"ОШИБКА ДАТЫ ИЛИ №ОТДЕЛА\")","v":{"$error":"#REF!"}},{"$f":"IF(OR(График!#REF!>=$Q$3,$I85<=$R$3,График!#REF!=$P$2,График!#REF!=0),График!#REF!,\"ОШИБКА ДАТЫ ИЛИ №ОТДЕЛА\")","v":{"$error":"#REF!"}},{"$f":"IF(OR(График!#REF!>=$Q$3,$I85<=$R$3,График!#REF!=$P$2,График!#REF!=0),График!#REF!,\"ОШИБКА ДАТЫ ИЛИ №ОТДЕЛА\")","v":{"$error":"#REF!"}},{"$f":"IF(OR(График!#REF!>=$Q$3,$I85<=$R$3,График!#REF!=$P$2,График!#REF!=0),График!#REF!,\"ОШИБКА ДАТЫ ИЛИ №ОТДЕЛА\")","v":{"$error":"#REF!"}}]
["1.81",null,{"$f":"IF(OR(График!#REF!>=$Q$3,$I86<=$R$3,График!#REF!=$P$2,График!#REF!=0),График!#REF!,\"ОШИБКА ДАТЫ ИЛИ №ОТДЕЛА\")","v":{"$error":"#REF!"}},{"$f":"IF(OR(График!#REF!>=$Q$3,$I86<=$R$3,График!#REF!=$P$2,График!#REF!=0),График!#REF!,\"ОШИБКА ДАТЫ ИЛИ №ОТДЕЛА\")","v":{"$error":"#REF!"}},{"$f":"IF(OR(График!#REF!>=$Q$3,$I86<=$R$3,График!#REF!=$P$2,График!#REF!=0),График!#REF!,\"ОШИБКА ДАТЫ ИЛИ №ОТДЕЛА\")","v":{"$error":"#REF!"}},{"$f":"IF(OR(График!#REF!>=$Q$3,$I86<=$R$3,График!#REF!=$P$2,График!#REF!=0),График!#REF!,\"ОШИБКА ДАТЫ ИЛИ №ОТДЕЛА\")","v":{"$error":"#REF!"}},{"$f":"IF(OR(График!#REF!>=$Q$3,$I86<=$R$3,График!#REF!=$P$2,График!#REF!=0),График!#REF!,\"ОШИБКА ДАТЫ ИЛИ №ОТДЕЛА\")","v":{"$error":"#REF!"}},{"$f":"IF(OR(График!#REF!>=$Q$3,$I86<=$R$3,График!#REF!=$P$2,График!#REF!=0),График!#REF!,\"ОШИБКА ДАТЫ ИЛИ №ОТДЕЛА\")","v":{"$error":"#REF!"}},{"$f":"IF(OR(График!#REF!>=$Q$3,$I86<=$R$3,График!#REF!=$P$2,График!#REF!=0),График!#REF!,\"ОШИБКА ДАТЫ ИЛИ №ОТДЕЛА\")","v":{"$error":"#REF!"}},{"$f":"IF(OR(График!#REF!>=$Q$3,$I86<=$R$3,График!#REF!=$P$2,График!#REF!=0),График!#REF!,\"ОШИБКА ДАТЫ ИЛИ №ОТДЕЛА\")","v":{"$error":"#REF!"}},{"$f":"IF(OR(График!#REF!>=$Q$3,$I86<=$R$3,График!#REF!=$P$2,График!#REF!=0),График!#REF!,\"ОШИБКА ДАТЫ ИЛИ №ОТДЕЛА\")","v":{"$error":"#REF!"}}]
["1.82",null,{"$f":"IF(OR(График!#REF!>=$Q$3,$I87<=$R$3,График!#REF!=$P$2,График!#REF!=0),График!#REF!,\"ОШИБКА ДАТЫ ИЛИ №ОТДЕЛА\")","v":{"$error":"#REF!"}},{"$f":"IF(OR(График!#REF!>=$Q$3,$I87<=$R$3,График!#REF!=$P$2,График!#REF!=0),График!#REF!,\"ОШИБКА ДАТЫ ИЛИ №ОТДЕЛА\")","v":{"$error":"#REF!"}},{"$f":"IF(OR(График!#REF!>=$Q$3,$I87<=$R$3,График!#REF!=$P$2,График!#REF!=0),График!#REF!,\"ОШИБКА ДАТЫ ИЛИ №ОТДЕЛА\")","v":{"$error":"#REF!"}},{"$f":"IF(OR(График!#REF!>=$Q$3,$I87<=$R$3,График!#REF!=$P$2,График!#REF!=0),График!#REF!,\"ОШИБКА ДАТЫ ИЛИ №ОТДЕЛА\")","v":{"$error":"#REF!"}},{"$f":"IF(OR(График!#REF!>=$Q$3,$I87<=$R$3,График!#REF!=$P$2,График!#REF!=0),График!#REF!,\"ОШИБКА ДАТЫ ИЛИ №ОТДЕЛА\")","v":{"$error":"#REF!"}},{"$f":"IF(OR(График!#REF!>=$Q$3,$I87<=$R$3,График!#REF!=$P$2,График!#REF!=0),График!#REF!,\"ОШИБКА ДАТЫ ИЛИ №ОТДЕЛА\")","v":{"$error":"#REF!"}},{"$f":"IF(OR(График!#REF!>=$Q$3,$I87<=$R$3,График!#REF!=$P$2,График!#REF!=0),График!#REF!,\"ОШИБКА ДАТЫ ИЛИ №ОТДЕЛА\")","v":{"$error":"#REF!"}},{"$f":"IF(OR(График!#REF!>=$Q$3,$I87<=$R$3,График!#REF!=$P$2,График!#REF!=0),График!#REF!,\"ОШИБКА ДАТЫ ИЛИ №ОТДЕЛА\")","v":{"$error":"#REF!"}},{"$f":"IF(OR(График!#REF!>=$Q$3,$I87<=$R$3,График!#REF!=$P$2,График!#REF!=0),График!#REF!,\"ОШИБКА ДАТЫ ИЛИ №ОТДЕЛА\")","v":{"$error":"#REF!"}}]
["1.83",null,{"$f":"IF(OR(График!#REF!>=$Q$3,$I88<=$R$3,График!#REF!=$P$2,График!#REF!=0),График!#REF!,\"ОШИБКА ДАТЫ ИЛИ №ОТДЕЛА\")","v":{"$error":"#REF!"}},{"$f":"IF(OR(График!#REF!>=$Q$3,$I88<=$R$3,График!#REF!=$P$2,График!#REF!=0),График!#REF!,\"ОШИБКА ДАТЫ ИЛИ №ОТДЕЛА\")","v":{"$error":"#REF!"}},{"$f":"IF(OR(График!#REF!>=$Q$3,$I88<=$R$3,График!#REF!=$P$2,График!#REF!=0),График!#REF!,\"ОШИБКА ДАТЫ ИЛИ №ОТДЕЛА\")","v":{"$error":"#REF!"}},{"$f":"IF(OR(График!#REF!>=$Q$3,$I88<=$R$3,График!#REF!=$P$2,График!#REF!=0),График!#REF!,\"ОШИБКА ДАТЫ ИЛИ №ОТДЕЛА\")","v":{"$error":"#REF!"}},{"$f":"IF(OR(График!#REF!>=$Q$3,$I88<=$R$3,График!#REF!=$P$2,График!#REF!=0),График!#REF!,\"ОШИБКА ДАТЫ ИЛИ №ОТДЕЛА\")","v":{"$error":"#REF!"}},{"$f":"IF(OR(График!#REF!>=$Q$3,$I88<=$R$3,График!#REF!=$P$2,График!#REF!=0),График!#REF!,\"ОШИБКА ДАТЫ ИЛИ №ОТДЕЛА\")","v":{"$error":"#REF!"}},{"$f":"IF(OR(График!#REF!>=$Q$3,$I88<=$R$3,График!#REF!=$P$2,График!#REF!=0),График!#REF!,\"ОШИБКА ДАТЫ ИЛИ №ОТДЕЛА\")","v":{"$error":"#REF!"}},{"$f":"IF(OR(График!#REF!>=$Q$3,$I88<=$R$3,График!#REF!=$P$2,График!#REF!=0),График!#REF!,\"ОШИБКА ДАТЫ ИЛИ №ОТДЕЛА\")","v":{"$error":"#REF!"}},{"$f":"IF(OR(График!#REF!>=$Q$3,$I88<=$R$3,График!#REF!=$P$2,График!#REF!=0),График!#REF!,\"ОШИБКА ДАТЫ ИЛИ №ОТДЕЛА\")","v":{"$error":"#REF!"}}]
["1.84",null,{"$f":"IF(OR(График!#REF!>=$Q$3,$I89<=$R$3,График!#REF!=$P$2,График!#REF!=0),График!#REF!,\"ОШИБКА ДАТЫ ИЛИ №ОТДЕЛА\")","v":{"$error":"#REF!"}},{"$f":"IF(OR(График!#REF!>=$Q$3,$I89<=$R$3,График!#REF!=$P$2,График!#REF!=0),График!#REF!,\"ОШИБКА ДАТЫ ИЛИ №ОТДЕЛА\")","v":{"$error":"#REF!"}},{"$f":"IF(OR(График!#REF!>=$Q$3,$I89<=$R$3,График!#REF!=$P$2,График!#REF!=0),График!#REF!,\"ОШИБКА ДАТЫ ИЛИ №ОТДЕЛА\")","v":{"$error":"#REF!"}},{"$f":"IF(OR(График!#REF!>=$Q$3,$I89<=$R$3,График!#REF!=$P$2,График!#REF!=0),График!#REF!,\"ОШИБКА ДАТЫ ИЛИ №ОТДЕЛА\")","v":{"$error":"#REF!"}},{"$f":"IF(OR(График!#REF!>=$Q$3,$I89<=$R$3,График!#REF!=$P$2,График!#REF!=0),График!#REF!,\"ОШИБКА ДАТЫ ИЛИ №ОТДЕЛА\")","v":{"$error":"#REF!"}},{"$f":"IF(OR(График!#REF!>=$Q$3,$I89<=$R$3,График!#REF!=$P$2,График!#REF!=0),График!#REF!,\"ОШИБКА ДАТЫ ИЛИ №ОТДЕЛА\")","v":{"$error":"#REF!"}},{"$f":"IF(OR(График!#REF!>=$Q$3,$I89<=$R$3,График!#REF!=$P$2,График!#REF!=0),График!#REF!,\"ОШИБКА ДАТЫ ИЛИ №ОТДЕЛА\")","v":{"$error":"#REF!"}},{"$f":"IF(OR(График!#REF!>=$Q$3,$I89<=$R$3,График!#REF!=$P$2,График!#REF!=0),График!#REF!,\"ОШИБКА ДАТЫ ИЛИ №ОТДЕЛА\")","v":{"$error":"#REF!"}},{"$f":"IF(OR(График!#REF!>=$Q$3,$I89<=$R$3,График!#REF!=$P$2,График!#REF!=0),График!#REF!,\"ОШИБКА ДАТЫ ИЛИ №ОТДЕЛА\")","v":{"$error":"#REF!"}}]
["1.85",null,{"$f":"IF(OR(График!#REF!>=$Q$3,$I90<=$R$3,График!#REF!=$P$2,График!#REF!=0),График!#REF!,\"ОШИБКА ДАТЫ ИЛИ №ОТДЕЛА\")","v":{"$error":"#REF!"}},{"$f":"IF(OR(График!#REF!>=$Q$3,$I90<=$R$3,График!#REF!=$P$2,График!#REF!=0),График!#REF!,\"ОШИБКА ДАТЫ ИЛИ №ОТДЕЛА\")","v":{"$error":"#REF!"}},{"$f":"IF(OR(График!#REF!>=$Q$3,$I90<=$R$3,График!#REF!=$P$2,График!#REF!=0),График!#REF!,\"ОШИБКА ДАТЫ ИЛИ №ОТДЕЛА\")","v":{"$error":"#REF!"}},{"$f":"IF(OR(График!#REF!>=$Q$3,$I90<=$R$3,График!#REF!=$P$2,График!#REF!=0),График!#REF!,\"ОШИБКА ДАТЫ ИЛИ №ОТДЕЛА\")","v":{"$error":"#REF!"}},{"$f":"IF(OR(График!#REF!>=$Q$3,$I90<=$R$3,График!#REF!=$P$2,График!#REF!=0),График!#REF!,\"ОШИБКА ДАТЫ ИЛИ №ОТДЕЛА\")","v":{"$error":"#REF!"}},{"$f":"IF(OR(График!#REF!>=$Q$3,$I90<=$R$3,График!#REF!=$P$2,График!#REF!=0),График!#REF!,\"ОШИБКА ДАТЫ ИЛИ №ОТДЕЛА\")","v":{"$error":"#REF!"}},{"$f":"IF(OR(График!#REF!>=$Q$3,$I90<=$R$3,График!#REF!=$P$2,График!#REF!=0),График!#REF!,\"ОШИБКА ДАТЫ ИЛИ №ОТДЕЛА\")","v":{"$error":"#REF!"}},{"$f":"IF(OR(График!#REF!>=$Q$3,$I90<=$R$3,График!#REF!=$P$2,График!#REF!=0),График!#REF!,\"ОШИБКА ДАТЫ ИЛИ №ОТДЕЛА\")","v":{"$error":"#REF!"}},{"$f":"IF(OR(График!#REF!>=$Q$3,$I90<=$R$3,График!#REF!=$P$2,График!#REF!=0),График!#REF!,\"ОШИБКА ДАТЫ ИЛИ №ОТДЕЛА\")","v":{"$error":"#REF!"}}]
["1.86",null,{"$f":"IF(OR(График!#REF!>=$Q$3,$I91<=$R$3,График!#REF!=$P$2,График!#REF!=0),График!#REF!,\"ОШИБКА ДАТЫ ИЛИ №ОТДЕЛА\")","v":{"$error":"#REF!"}},{"$f":"IF(OR(График!#REF!>=$Q$3,$I91<=$R$3,График!#REF!=$P$2,График!#REF!=0),График!#REF!,\"ОШИБКА ДАТЫ ИЛИ №ОТДЕЛА\")","v":{"$error":"#REF!"}},{"$f":"IF(OR(График!#REF!>=$Q$3,$I91<=$R$3,График!#REF!=$P$2,График!#REF!=0),График!#REF!,\"ОШИБКА ДАТЫ ИЛИ №ОТДЕЛА\")","v":{"$error":"#REF!"}},{"$f":"IF(OR(График!#REF!>=$Q$3,$I91<=$R$3,График!#REF!=$P$2,График!#REF!=0),График!#REF!,\"ОШИБКА ДАТЫ ИЛИ №ОТДЕЛА\")","v":{"$error":"#REF!"}},{"$f":"IF(OR(График!#REF!>=$Q$3,$I91<=$R$3,График!#REF!=$P$2,График!#REF!=0),График!#REF!,\"ОШИБКА ДАТЫ ИЛИ №ОТДЕЛА\")","v":{"$error":"#REF!"}},{"$f":"IF(OR(График!#REF!>=$Q$3,$I91<=$R$3,График!#REF!=$P$2,График!#REF!=0),График!#REF!,\"ОШИБКА ДАТЫ ИЛИ №ОТДЕЛА\")","v":{"$error":"#REF!"}},{"$f":"IF(OR(График!#REF!>=$Q$3,$I91<=$R$3,График!#REF!=$P$2,График!#REF!=0),График!#REF!,\"ОШИБКА ДАТЫ ИЛИ №ОТДЕЛА\")","v":{"$error":"#REF!"}},{"$f":"IF(OR(График!#REF!>=$Q$3,$I91<=$R$3,График!#REF!=$P$2,График!#REF!=0),График!#REF!,\"ОШИБКА ДАТЫ ИЛИ №ОТДЕЛА\")","v":{"$error":"#REF!"}},{"$f":"IF(OR(График!#REF!>=$Q$3,$I91<=$R$3,График!#REF!=$P$2,График!#REF!=0),График!#REF!,\"ОШИБКА ДАТЫ ИЛИ №ОТДЕЛА\")","v":{"$error":"#REF!"}}]
["1.87",null,{"$f":"IF(OR(График!#REF!>=$Q$3,$I92<=$R$3,График!#REF!=$P$2,График!#REF!=0),График!#REF!,\"ОШИБКА ДАТЫ ИЛИ №ОТДЕЛА\")","v":{"$error":"#REF!"}},{"$f":"IF(OR(График!#REF!>=$Q$3,$I92<=$R$3,График!#REF!=$P$2,График!#REF!=0),График!#REF!,\"ОШИБКА ДАТЫ ИЛИ №ОТДЕЛА\")","v":{"$error":"#REF!"}},{"$f":"IF(OR(График!#REF!>=$Q$3,$I92<=$R$3,График!#REF!=$P$2,График!#REF!=0),График!#REF!,\"ОШИБКА ДАТЫ ИЛИ №ОТДЕЛА\")","v":{"$error":"#REF!"}},{"$f":"IF(OR(График!#REF!>=$Q$3,$I92<=$R$3,График!#REF!=$P$2,График!#REF!=0),График!#REF!,\"ОШИБКА ДАТЫ ИЛИ №ОТДЕЛА\")","v":{"$error":"#REF!"}},{"$f":"IF(OR(График!#REF!>=$Q$3,$I92<=$R$3,График!#REF!=$P$2,График!#REF!=0),График!#REF!,\"ОШИБКА ДАТЫ ИЛИ №ОТДЕЛА\")","v":{"$error":"#REF!"}},{"$f":"IF(OR(График!#REF!>=$Q$3,$I92<=$R$3,График!#REF!=$P$2,График!#REF!=0),График!#REF!,\"ОШИБКА ДАТЫ ИЛИ №ОТДЕЛА\")","v":{"$error":"#REF!"}},{"$f":"IF(OR(График!#REF!>=$Q$3,$I92<=$R$3,График!#REF!=$P$2,График!#REF!=0),График!#REF!,\"ОШИБКА ДАТЫ ИЛИ №ОТДЕЛА\")","v":{"$error":"#REF!"}},{"$f":"IF(OR(График!#REF!>=$Q$3,$I92<=$R$3,График!#REF!=$P$2,График!#REF!=0),График!#REF!,\"ОШИБКА ДАТЫ ИЛИ №ОТДЕЛА\")","v":{"$error":"#REF!"}},{"$f":"IF(OR(График!#REF!>=$Q$3,$I92<=$R$3,График!#REF!=$P$2,График!#REF!=0),График!#REF!,\"ОШИБКА ДАТЫ ИЛИ №ОТДЕЛА\")","v":{"$error":"#REF!"}}]
["1.88",null,{"$f":"IF(OR(График!#REF!>=$Q$3,$I93<=$R$3,График!#REF!=$P$2,График!#REF!=0),График!#REF!,\"ОШИБКА ДАТЫ ИЛИ №ОТДЕЛА\")","v":{"$error":"#REF!"}},{"$f":"IF(OR(График!#REF!>=$Q$3,$I93<=$R$3,График!#REF!=$P$2,График!#REF!=0),График!#REF!,\"ОШИБКА ДАТЫ ИЛИ №ОТДЕЛА\")","v":{"$error":"#REF!"}},{"$f":"IF(OR(График!#REF!>=$Q$3,$I93<=$R$3,График!#REF!=$P$2,График!#REF!=0),График!#REF!,\"ОШИБКА ДАТЫ ИЛИ №ОТДЕЛА\")","v":{"$error":"#REF!"}},{"$f":"IF(OR(График!#REF!>=$Q$3,$I93<=$R$3,График!#REF!=$P$2,График!#REF!=0),График!#REF!,\"ОШИБКА ДАТЫ ИЛИ №ОТДЕЛА\")","v":{"$error":"#REF!"}},{"$f":"IF(OR(График!#REF!>=$Q$3,$I93<=$R$3,График!#REF!=$P$2,График!#REF!=0),График!#REF!,\"ОШИБКА ДАТЫ ИЛИ №ОТДЕЛА\")","v":{"$error":"#REF!"}},{"$f":"IF(OR(График!#REF!>=$Q$3,$I93<=$R$3,График!#REF!=$P$2,График!#REF!=0),График!#REF!,\"ОШИБКА ДАТЫ ИЛИ №ОТДЕЛА\")","v":{"$error":"#REF!"}},{"$f":"IF(OR(График!#REF!>=$Q$3,$I93<=$R$3,График!#REF!=$P$2,График!#REF!=0),График!#REF!,\"ОШИБКА ДАТЫ ИЛИ №ОТДЕЛА\")","v":{"$error":"#REF!"}},{"$f":"IF(OR(График!#REF!>=$Q$3,$I93<=$R$3,График!#REF!=$P$2,График!#REF!=0),График!#REF!,\"ОШИБКА ДАТЫ ИЛИ №ОТДЕЛА\")","v":{"$error":"#REF!"}},{"$f":"IF(OR(График!#REF!>=$Q$3,$I93<=$R$3,График!#REF!=$P$2,График!#REF!=0),График!#REF!,\"ОШИБКА ДАТЫ ИЛИ №ОТДЕЛА\")","v":{"$error":"#REF!"}}]
["1.89",null,{"$f":"IF(OR(График!#REF!>=$Q$3,$I94<=$R$3,График!#REF!=$P$2,График!#REF!=0),График!#REF!,\"ОШИБКА ДАТЫ ИЛИ №ОТДЕЛА\")","v":{"$error":"#REF!"}},{"$f":"IF(OR(График!#REF!>=$Q$3,$I94<=$R$3,График!#REF!=$P$2,График!#REF!=0),График!#REF!,\"ОШИБКА ДАТЫ ИЛИ №ОТДЕЛА\")","v":{"$error":"#REF!"}},{"$f":"IF(OR(График!#REF!>=$Q$3,$I94<=$R$3,График!#REF!=$P$2,График!#REF!=0),График!#REF!,\"ОШИБКА ДАТЫ ИЛИ №ОТДЕЛА\")","v":{"$error":"#REF!"}},{"$f":"IF(OR(График!#REF!>=$Q$3,$I94<=$R$3,График!#REF!=$P$2,График!#REF!=0),График!#REF!,\"ОШИБКА ДАТЫ ИЛИ №ОТДЕЛА\")","v":{"$error":"#REF!"}},{"$f":"IF(OR(График!#REF!>=$Q$3,$I94<=$R$3,График!#REF!=$P$2,График!#REF!=0),График!#REF!,\"ОШИБКА ДАТЫ ИЛИ №ОТДЕЛА\")","v":{"$error":"#REF!"}},{"$f":"IF(OR(График!#REF!>=$Q$3,$I94<=$R$3,График!#REF!=$P$2,График!#REF!=0),График!#REF!,\"ОШИБКА ДАТЫ ИЛИ №ОТДЕЛА\")","v":{"$error":"#REF!"}},{"$f":"IF(OR(График!#REF!>=$Q$3,$I94<=$R$3,График!#REF!=$P$2,График!#REF!=0),График!#REF!,\"ОШИБКА ДАТЫ ИЛИ №ОТДЕЛА\")","v":{"$error":"#REF!"}},{"$f":"IF(OR(График!#REF!>=$Q$3,$I94<=$R$3,График!#REF!=$P$2,График!#REF!=0),График!#REF!,\"ОШИБКА ДАТЫ ИЛИ №ОТДЕЛА\")","v":{"$error":"#REF!"}},{"$f":"IF(OR(График!#REF!>=$Q$3,$I94<=$R$3,График!#REF!=$P$2,График!#REF!=0),График!#REF!,\"ОШИБКА ДАТЫ ИЛИ №ОТДЕЛА\")","v":{"$error":"#REF!"}}]
["1.90",null,{"$f":"IF(OR(График!#REF!>=$Q$3,$I95<=$R$3,График!#REF!=$P$2,График!#REF!=0),График!#REF!,\"ОШИБКА ДАТЫ ИЛИ №ОТДЕЛА\")","v":{"$error":"#REF!"}},{"$f":"IF(OR(График!#REF!>=$Q$3,$I95<=$R$3,График!#REF!=$P$2,График!#REF!=0),График!#REF!,\"ОШИБКА ДАТЫ ИЛИ №ОТДЕЛА\")","v":{"$error":"#REF!"}},{"$f":"IF(OR(График!#REF!>=$Q$3,$I95<=$R$3,График!#REF!=$P$2,График!#REF!=0),График!#REF!,\"ОШИБКА ДАТЫ ИЛИ №ОТДЕЛА\")","v":{"$error":"#REF!"}},{"$f":"IF(OR(График!#REF!>=$Q$3,$I95<=$R$3,График!#REF!=$P$2,График!#REF!=0),График!#REF!,\"ОШИБКА ДАТЫ ИЛИ №ОТДЕЛА\")","v":{"$error":"#REF!"}},{"$f":"IF(OR(График!#REF!>=$Q$3,$I95<=$R$3,График!#REF!=$P$2,График!#REF!=0),График!#REF!,\"ОШИБКА ДАТЫ ИЛИ №ОТДЕЛА\")","v":{"$error":"#REF!"}},{"$f":"IF(OR(График!#REF!>=$Q$3,$I95<=$R$3,График!#REF!=$P$2,График!#REF!=0),График!#REF!,\"ОШИБКА ДАТЫ ИЛИ №ОТДЕЛА\")","v":{"$error":"#REF!"}},{"$f":"IF(OR(График!#REF!>=$Q$3,$I95<=$R$3,График!#REF!=$P$2,График!#REF!=0),График!#REF!,\"ОШИБКА ДАТЫ ИЛИ №ОТДЕЛА\")","v":{"$error":"#REF!"}},{"$f":"IF(OR(График!#REF!>=$Q$3,$I95<=$R$3,График!#REF!=$P$2,График!#REF!=0),График!#REF!,\"ОШИБКА ДАТЫ ИЛИ №ОТДЕЛА\")","v":{"$error":"#REF!"}},{"$f":"IF(OR(График!#REF!>=$Q$3,$I95<=$R$3,График!#REF!=$P$2,График!#REF!=0),График!#REF!,\"ОШИБКА ДАТЫ ИЛИ №ОТДЕЛА\")","v":{"$error":"#REF!"}}]
["1.91",null,{"$f":"IF(OR(График!#REF!>=$Q$3,$I96<=$R$3,График!#REF!=$P$2,График!#REF!=0),График!#REF!,\"ОШИБКА ДАТЫ ИЛИ №ОТДЕЛА\")","v":{"$error":"#REF!"}},{"$f":"IF(OR(График!#REF!>=$Q$3,$I96<=$R$3,График!#REF!=$P$2,График!#REF!=0),График!#REF!,\"ОШИБКА ДАТЫ ИЛИ №ОТДЕЛА\")","v":{"$error":"#REF!"}},{"$f":"IF(OR(График!#REF!>=$Q$3,$I96<=$R$3,График!#REF!=$P$2,График!#REF!=0),График!#REF!,\"ОШИБКА ДАТЫ ИЛИ №ОТДЕЛА\")","v":{"$error":"#REF!"}},{"$f":"IF(OR(График!#REF!>=$Q$3,$I96<=$R$3,График!#REF!=$P$2,График!#REF!=0),График!#REF!,\"ОШИБКА ДАТЫ ИЛИ №ОТДЕЛА\")","v":{"$error":"#REF!"}},{"$f":"IF(OR(График!#REF!>=$Q$3,$I96<=$R$3,График!#REF!=$P$2,График!#REF!=0),График!#REF!,\"ОШИБКА ДАТЫ ИЛИ №ОТДЕЛА\")","v":{"$error":"#REF!"}},{"$f":"IF(OR(График!#REF!>=$Q$3,$I96<=$R$3,График!#REF!=$P$2,График!#REF!=0),График!#REF!,\"ОШИБКА ДАТЫ ИЛИ №ОТДЕЛА\")","v":{"$error":"#REF!"}},{"$f":"IF(OR(График!#REF!>=$Q$3,$I96<=$R$3,График!#REF!=$P$2,График!#REF!=0),График!#REF!,\"ОШИБКА ДАТЫ ИЛИ №ОТДЕЛА\")","v":{"$error":"#REF!"}},{"$f":"IF(OR(График!#REF!>=$Q$3,$I96<=$R$3,График!#REF!=$P$2,График!#REF!=0),График!#REF!,\"ОШИБКА ДАТЫ ИЛИ №ОТДЕЛА\")","v":{"$error":"#REF!"}},{"$f":"IF(OR(График!#REF!>=$Q$3,$I96<=$R$3,График!#REF!=$P$2,График!#REF!=0),График!#REF!,\"ОШИБКА ДАТЫ ИЛИ №ОТДЕЛА\")","v":{"$error":"#REF!"}}]
["1.92",null,{"$f":"IF(OR(График!#REF!>=$Q$3,$I97<=$R$3,График!#REF!=$P$2,График!#REF!=0),График!#REF!,\"ОШИБКА ДАТЫ ИЛИ №ОТДЕЛА\")","v":{"$error":"#REF!"}},{"$f":"IF(OR(График!#REF!>=$Q$3,$I97<=$R$3,График!#REF!=$P$2,График!#REF!=0),График!#REF!,\"ОШИБКА ДАТЫ ИЛИ №ОТДЕЛА\")","v":{"$error":"#REF!"}},{"$f":"IF(OR(График!#REF!>=$Q$3,$I97<=$R$3,График!#REF!=$P$2,График!#REF!=0),График!#REF!,\"ОШИБКА ДАТЫ ИЛИ №ОТДЕЛА\")","v":{"$error":"#REF!"}},{"$f":"IF(OR(График!#REF!>=$Q$3,$I97<=$R$3,График!#REF!=$P$2,График!#REF!=0),График!#REF!,\"ОШИБКА ДАТЫ ИЛИ №ОТДЕЛА\")","v":{"$error":"#REF!"}},{"$f":"IF(OR(График!#REF!>=$Q$3,$I97<=$R$3,График!#REF!=$P$2,График!#REF!=0),График!#REF!,\"ОШИБКА ДАТЫ ИЛИ №ОТДЕЛА\")","v":{"$error":"#REF!"}},{"$f":"IF(OR(График!#REF!>=$Q$3,$I97<=$R$3,График!#REF!=$P$2,График!#REF!=0),График!#REF!,\"ОШИБКА ДАТЫ ИЛИ №ОТДЕЛА\")","v":{"$error":"#REF!"}},{"$f":"IF(OR(График!#REF!>=$Q$3,$I97<=$R$3,График!#REF!=$P$2,График!#REF!=0),График!#REF!,\"ОШИБКА ДАТЫ ИЛИ №ОТДЕЛА\")","v":{"$error":"#REF!"}},{"$f":"IF(OR(График!#REF!>=$Q$3,$I97<=$R$3,График!#REF!=$P$2,График!#REF!=0),График!#REF!,\"ОШИБКА ДАТЫ ИЛИ №ОТДЕЛА\")","v":{"$error":"#REF!"}},{"$f":"IF(OR(График!#REF!>=$Q$3,$I97<=$R$3,График!#REF!=$P$2,График!#REF!=0),График!#REF!,\"ОШИБКА ДАТЫ ИЛИ №ОТДЕЛА\")","v":{"$error":"#REF!"}}]
["1.93",null,{"$f":"IF(OR(График!#REF!>=$Q$3,$I98<=$R$3,График!#REF!=$P$2,График!#REF!=0),График!#REF!,\"ОШИБКА ДАТЫ ИЛИ №ОТДЕЛА\")","v":{"$error":"#REF!"}},{"$f":"IF(OR(График!#REF!>=$Q$3,$I98<=$R$3,График!#REF!=$P$2,График!#REF!=0),График!#REF!,\"ОШИБКА ДАТЫ ИЛИ №ОТДЕЛА\")","v":{"$error":"#REF!"}},{"$f":"IF(OR(График!#REF!>=$Q$3,$I98<=$R$3,График!#REF!=$P$2,График!#REF!=0),График!#REF!,\"ОШИБКА ДАТЫ ИЛИ №ОТДЕЛА\")","v":{"$error":"#REF!"}},{"$f":"IF(OR(График!#REF!>=$Q$3,$I98<=$R$3,График!#REF!=$P$2,График!#REF!=0),График!#REF!,\"ОШИБКА ДАТЫ ИЛИ №ОТДЕЛА\")","v":{"$error":"#REF!"}},{"$f":"IF(OR(График!#REF!>=$Q$3,$I98<=$R$3,График!#REF!=$P$2,График!#REF!=0),График!#REF!,\"ОШИБКА ДАТЫ ИЛИ №ОТДЕЛА\")","v":{"$error":"#REF!"}},{"$f":"IF(OR(График!#REF!>=$Q$3,$I98<=$R$3,График!#REF!=$P$2,График!#REF!=0),График!#REF!,\"ОШИБКА ДАТЫ ИЛИ №ОТДЕЛА\")","v":{"$error":"#REF!"}},{"$f":"IF(OR(График!#REF!>=$Q$3,$I98<=$R$3,График!#REF!=$P$2,График!#REF!=0),График!#REF!,\"ОШИБКА ДАТЫ ИЛИ №ОТДЕЛА\")","v":{"$error":"#REF!"}},{"$f":"IF(OR(График!#REF!>=$Q$3,$I98<=$R$3,График!#REF!=$P$2,График!#REF!=0),График!#REF!,\"ОШИБКА ДАТЫ ИЛИ №ОТДЕЛА\")","v":{"$error":"#REF!"}},{"$f":"IF(OR(График!#REF!>=$Q$3,$I98<=$R$3,График!#REF!=$P$2,График!#REF!=0),График!#REF!,\"ОШИБКА ДАТЫ ИЛИ №ОТДЕЛА\")","v":{"$error":"#REF!"}}]
["1.94",null,{"$f":"IF(OR(График!#REF!>=$Q$3,$I99<=$R$3,График!#REF!=$P$2,График!#REF!=0),График!#REF!,\"ОШИБКА ДАТЫ ИЛИ №ОТДЕЛА\")","v":{"$error":"#REF!"}},{"$f":"IF(OR(График!#REF!>=$Q$3,$I99<=$R$3,График!#REF!=$P$2,График!#REF!=0),График!#REF!,\"ОШИБКА ДАТЫ ИЛИ №ОТДЕЛА\")","v":{"$error":"#REF!"}},{"$f":"IF(OR(График!#REF!>=$Q$3,$I99<=$R$3,График!#REF!=$P$2,График!#REF!=0),График!#REF!,\"ОШИБКА ДАТЫ ИЛИ №ОТДЕЛА\")","v":{"$error":"#REF!"}},{"$f":"IF(OR(График!#REF!>=$Q$3,$I99<=$R$3,График!#REF!=$P$2,График!#REF!=0),График!#REF!,\"ОШИБКА ДАТЫ ИЛИ №ОТДЕЛА\")","v":{"$error":"#REF!"}},{"$f":"IF(OR(График!#REF!>=$Q$3,$I99<=$R$3,График!#REF!=$P$2,График!#REF!=0),График!#REF!,\"ОШИБКА ДАТЫ ИЛИ №ОТДЕЛА\")","v":{"$error":"#REF!"}},{"$f":"IF(OR(График!#REF!>=$Q$3,$I99<=$R$3,График!#REF!=$P$2,График!#REF!=0),График!#REF!,\"ОШИБКА ДАТЫ ИЛИ №ОТДЕЛА\")","v":{"$error":"#REF!"}},{"$f":"IF(OR(График!#REF!>=$Q$3,$I99<=$R$3,График!#REF!=$P$2,График!#REF!=0),График!#REF!,\"ОШИБКА ДАТЫ ИЛИ №ОТДЕЛА\")","v":{"$error":"#REF!"}},{"$f":"IF(OR(График!#REF!>=$Q$3,$I99<=$R$3,График!#REF!=$P$2,График!#REF!=0),График!#REF!,\"ОШИБКА ДАТЫ ИЛИ №ОТДЕЛА\")","v":{"$error":"#REF!"}},{"$f":"IF(OR(График!#REF!>=$Q$3,$I99<=$R$3,График!#REF!=$P$2,График!#REF!=0),График!#REF!,\"ОШИБКА ДАТЫ ИЛИ №ОТДЕЛА\")","v":{"$error":"#REF!"}}]
["1.95",null,{"$f":"IF(OR(График!#REF!>=$Q$3,$I100<=$R$3,График!#REF!=$P$2,График!#REF!=0),График!#REF!,\"ОШИБКА ДАТЫ ИЛИ №ОТДЕЛА\")","v":{"$error":"#REF!"}},{"$f":"IF(OR(График!#REF!>=$Q$3,$I100<=$R$3,График!#REF!=$P$2,График!#REF!=0),График!#REF!,\"ОШИБКА ДАТЫ ИЛИ №ОТДЕЛА\")","v":{"$error":"#REF!"}},{"$f":"IF(OR(График!#REF!>=$Q$3,$I100<=$R$3,График!#REF!=$P$2,График!#REF!=0),График!#REF!,\"ОШИБКА ДАТЫ ИЛИ №ОТДЕЛА\")","v":{"$error":"#REF!"}},{"$f":"IF(OR(График!#REF!>=$Q$3,$I100<=$R$3,График!#REF!=$P$2,График!#REF!=0),График!#REF!,\"ОШИБКА ДАТЫ ИЛИ №ОТДЕЛА\")","v":{"$error":"#REF!"}},{"$f":"IF(OR(График!#REF!>=$Q$3,$I100<=$R$3,График!#REF!=$P$2,График!#REF!=0),График!#REF!,\"ОШИБКА ДАТЫ ИЛИ №ОТДЕЛА\")","v":{"$error":"#REF!"}},{"$f":"IF(OR(График!#REF!>=$Q$3,$I100<=$R$3,График!#REF!=$P$2,График!#REF!=0),График!#REF!,\"ОШИБКА ДАТЫ ИЛИ №ОТДЕЛА\")","v":{"$error":"#REF!"}},{"$f":"IF(OR(График!#REF!>=$Q$3,$I100<=$R$3,График!#REF!=$P$2,График!#REF!=0),График!#REF!,\"ОШИБКА ДАТЫ ИЛИ №ОТДЕЛА\")","v":{"$error":"#REF!"}},{"$f":"IF(OR(График!#REF!>=$Q$3,$I100<=$R$3,График!#REF!=$P$2,График!#REF!=0),График!#REF!,\"ОШИБКА ДАТЫ ИЛИ №ОТДЕЛА\")","v":{"$error":"#REF!"}},{"$f":"IF(OR(График!#REF!>=$Q$3,$I100<=$R$3,График!#REF!=$P$2,График!#REF!=0),График!#REF!,\"ОШИБКА ДАТЫ ИЛИ №ОТДЕЛА\")","v":{"$error":"#REF!"}}]
["1.96",null,{"$f":"IF(OR(График!#REF!>=$Q$3,$I101<=$R$3,График!#REF!=$P$2,График!#REF!=0),График!#REF!,\"ОШИБКА ДАТЫ ИЛИ №ОТДЕЛА\")","v":{"$error":"#REF!"}},{"$f":"IF(OR(График!#REF!>=$Q$3,$I101<=$R$3,График!#REF!=$P$2,График!#REF!=0),График!#REF!,\"ОШИБКА ДАТЫ ИЛИ №ОТДЕЛА\")","v":{"$error":"#REF!"}},{"$f":"IF(OR(График!#REF!>=$Q$3,$I101<=$R$3,График!#REF!=$P$2,График!#REF!=0),График!#REF!,\"ОШИБКА ДАТЫ ИЛИ №ОТДЕЛА\")","v":{"$error":"#REF!"}},{"$f":"IF(OR(График!#REF!>=$Q$3,$I101<=$R$3,График!#REF!=$P$2,График!#REF!=0),График!#REF!,\"ОШИБКА ДАТЫ ИЛИ №ОТДЕЛА\")","v":{"$error":"#REF!"}},{"$f":"IF(OR(График!#REF!>=$Q$3,$I101<=$R$3,График!#REF!=$P$2,График!#REF!=0),График!#REF!,\"ОШИБКА ДАТЫ ИЛИ №ОТДЕЛА\")","v":{"$error":"#REF!"}},{"$f":"IF(OR(График!#REF!>=$Q$3,$I101<=$R$3,График!#REF!=$P$2,График!#REF!=0),График!#REF!,\"ОШИБКА ДАТЫ ИЛИ №ОТДЕЛА\")","v":{"$error":"#REF!"}},{"$f":"IF(OR(График!#REF!>=$Q$3,$I101<=$R$3,График!#REF!=$P$2,График!#REF!=0),График!#REF!,\"ОШИБКА ДАТЫ ИЛИ №ОТДЕЛА\")","v":{"$error":"#REF!"}},{"$f":"IF(OR(График!#REF!>=$Q$3,$I101<=$R$3,График!#REF!=$P$2,График!#REF!=0),График!#REF!,\"ОШИБКА ДАТЫ ИЛИ №ОТДЕЛА\")","v":{"$error":"#REF!"}},{"$f":"IF(OR(График!#REF!>=$Q$3,$I101<=$R$3,График!#REF!=$P$2,График!#REF!=0),График!#REF!,\"ОШИБКА ДАТЫ ИЛИ №ОТДЕЛА\")","v":{"$error":"#REF!"}}]
["1.97",null,{"$f":"IF(OR(График!#REF!>=$Q$3,$I102<=$R$3,График!#REF!=$P$2,График!#REF!=0),График!#REF!,\"ОШИБКА ДАТЫ ИЛИ №ОТДЕЛА\")","v":{"$error":"#REF!"}},{"$f":"IF(OR(График!#REF!>=$Q$3,$I102<=$R$3,График!#REF!=$P$2,График!#REF!=0),График!#REF!,\"ОШИБКА ДАТЫ ИЛИ №ОТДЕЛА\")","v":{"$error":"#REF!"}},{"$f":"IF(OR(График!#REF!>=$Q$3,$I102<=$R$3,График!#REF!=$P$2,График!#REF!=0),График!#REF!,\"ОШИБКА ДАТЫ ИЛИ №ОТДЕЛА\")","v":{"$error":"#REF!"}},{"$f":"IF(OR(График!#REF!>=$Q$3,$I102<=$R$3,График!#REF!=$P$2,График!#REF!=0),График!#REF!,\"ОШИБКА ДАТЫ ИЛИ №ОТДЕЛА\")","v":{"$error":"#REF!"}},{"$f":"IF(OR(График!#REF!>=$Q$3,$I102<=$R$3,График!#REF!=$P$2,График!#REF!=0),График!#REF!,\"ОШИБКА ДАТЫ ИЛИ №ОТДЕЛА\")","v":{"$error":"#REF!"}},{"$f":"IF(OR(График!#REF!>=$Q$3,$I102<=$R$3,График!#REF!=$P$2,График!#REF!=0),График!#REF!,\"ОШИБКА ДАТЫ ИЛИ №ОТДЕЛА\")","v":{"$error":"#REF!"}},{"$f":"IF(OR(График!#REF!>=$Q$3,$I102<=$R$3,График!#REF!=$P$2,График!#REF!=0),График!#REF!,\"ОШИБКА ДАТЫ ИЛИ №ОТДЕЛА\")","v":{"$error":"#REF!"}},{"$f":"IF(OR(График!#REF!>=$Q$3,$I102<=$R$3,График!#REF!=$P$2,График!#REF!=0),График!#REF!,\"ОШИБКА ДАТЫ ИЛИ №ОТДЕЛА\")","v":{"$error":"#REF!"}},{"$f":"IF(OR(График!#REF!>=$Q$3,$I102<=$R$3,График!#REF!=$P$2,График!#REF!=0),График!#REF!,\"ОШИБКА ДАТЫ ИЛИ №ОТДЕЛА\")","v":{"$error":"#REF!"}}]
["1.98",null,{"$f":"IF(OR(График!#REF!>=$Q$3,$I103<=$R$3,График!#REF!=$P$2,График!#REF!=0),График!#REF!,\"ОШИБКА ДАТЫ ИЛИ №ОТДЕЛА\")","v":{"$error":"#REF!"}},{"$f":"IF(OR(График!#REF!>=$Q$3,$I103<=$R$3,График!#REF!=$P$2,График!#REF!=0),График!#REF!,\"ОШИБКА ДАТЫ ИЛИ №ОТДЕЛА\")","v":{"$error":"#REF!"}},{"$f":"IF(OR(График!#REF!>=$Q$3,$I103<=$R$3,График!#REF!=$P$2,График!#REF!=0),График!#REF!,\"ОШИБКА ДАТЫ ИЛИ №ОТДЕЛА\")","v":{"$error":"#REF!"}},{"$f":"IF(OR(График!#REF!>=$Q$3,$I103<=$R$3,График!#REF!=$P$2,График!#REF!=0),График!#REF!,\"ОШИБКА ДАТЫ ИЛИ №ОТДЕЛА\")","v":{"$error":"#REF!"}},{"$f":"IF(OR(График!#REF!>=$Q$3,$I103<=$R$3,График!#REF!=$P$2,График!#REF!=0),График!#REF!,\"ОШИБКА ДАТЫ ИЛИ №ОТДЕЛА\")","v":{"$error":"#REF!"}},{"$f":"IF(OR(График!#REF!>=$Q$3,$I103<=$R$3,График!#REF!=$P$2,График!#REF!=0),График!#REF!,\"ОШИБКА ДАТЫ ИЛИ №ОТДЕЛА\")","v":{"$error":"#REF!"}},{"$f":"IF(OR(График!#REF!>=$Q$3,$I103<=$R$3,График!#REF!=$P$2,График!#REF!=0),График!#REF!,\"ОШИБКА ДАТЫ ИЛИ №ОТДЕЛА\")","v":{"$error":"#REF!"}},{"$f":"IF(OR(График!#REF!>=$Q$3,$I103<=$R$3,График!#REF!=$P$2,График!#REF!=0),График!#REF!,\"ОШИБКА ДАТЫ ИЛИ №ОТДЕЛА\")","v":{"$error":"#REF!"}},{"$f":"IF(OR(График!#REF!>=$Q$3,$I103<=$R$3,График!#REF!=$P$2,График!#REF!=0),График!#REF!,\"ОШИБКА ДАТЫ ИЛИ №ОТДЕЛА\")","v":{"$error":"#REF!"}}]
["1.99",null,{"$f":"IF(OR(График!#REF!>=$Q$3,$I104<=$R$3,График!#REF!=$P$2,График!#REF!=0),График!#REF!,\"ОШИБКА ДАТЫ ИЛИ №ОТДЕЛА\")","v":{"$error":"#REF!"}},{"$f":"IF(OR(График!#REF!>=$Q$3,$I104<=$R$3,График!#REF!=$P$2,График!#REF!=0),График!#REF!,\"ОШИБКА ДАТЫ ИЛИ №ОТДЕЛА\")","v":{"$error":"#REF!"}},{"$f":"IF(OR(График!#REF!>=$Q$3,$I104<=$R$3,График!#REF!=$P$2,График!#REF!=0),График!#REF!,\"ОШИБКА ДАТЫ ИЛИ №ОТДЕЛА\")","v":{"$error":"#REF!"}},{"$f":"IF(OR(График!#REF!>=$Q$3,$I104<=$R$3,График!#REF!=$P$2,График!#REF!=0),График!#REF!,\"ОШИБКА ДАТЫ ИЛИ №ОТДЕЛА\")","v":{"$error":"#REF!"}},{"$f":"IF(OR(График!#REF!>=$Q$3,$I104<=$R$3,График!#REF!=$P$2,График!#REF!=0),График!#REF!,\"ОШИБКА ДАТЫ ИЛИ №ОТДЕЛА\")","v":{"$error":"#REF!"}},{"$f":"IF(OR(График!#REF!>=$Q$3,$I104<=$R$3,График!#REF!=$P$2,График!#REF!=0),График!#REF!,\"ОШИБКА ДАТЫ ИЛИ №ОТДЕЛА\")","v":{"$error":"#REF!"}},{"$f":"IF(OR(График!#REF!>=$Q$3,$I104<=$R$3,График!#REF!=$P$2,График!#REF!=0),График!#REF!,\"ОШИБКА ДАТЫ ИЛИ №ОТДЕЛА\")","v":{"$error":"#REF!"}},{"$f":"IF(OR(График!#REF!>=$Q$3,$I104<=$R$3,График!#REF!=$P$2,График!#REF!=0),График!#REF!,\"ОШИБКА ДАТЫ ИЛИ №ОТДЕЛА\")","v":{"$error":"#REF!"}},{"$f":"IF(OR(График!#REF!>=$Q$3,$I104<=$R$3,График!#REF!=$P$2,График!#REF!=0),График!#REF!,\"ОШИБКА ДАТЫ ИЛИ №ОТДЕЛА\")","v":{"$error":"#REF!"}}]
["1.100",null,{"$f":"IF(OR(График!#REF!>=$Q$3,$I105<=$R$3,График!#REF!=$P$2,График!#REF!=0),График!#REF!,\"ОШИБКА ДАТЫ ИЛИ №ОТДЕЛА\")","v":{"$error":"#REF!"}},{"$f":"IF(OR(График!#REF!>=$Q$3,$I105<=$R$3,График!#REF!=$P$2,График!#REF!=0),График!#REF!,\"ОШИБКА ДАТЫ ИЛИ №ОТДЕЛА\")","v":{"$error":"#REF!"}},{"$f":"IF(OR(График!#REF!>=$Q$3,$I105<=$R$3,График!#REF!=$P$2,График!#REF!=0),График!#REF!,\"ОШИБКА ДАТЫ ИЛИ №ОТДЕЛА\")","v":{"$error":"#REF!"}},{"$f":"IF(OR(График!#REF!>=$Q$3,$I105<=$R$3,График!#REF!=$P$2,График!#REF!=0),График!#REF!,\"ОШИБКА ДАТЫ ИЛИ №ОТДЕЛА\")","v":{"$error":"#REF!"}},{"$f":"IF(OR(График!#REF!>=$Q$3,$I105<=$R$3,График!#REF!=$P$2,График!#REF!=0),График!#REF!,\"ОШИБКА ДАТЫ ИЛИ №ОТДЕЛА\")","v":{"$error":"#REF!"}},{"$f":"IF(OR(График!#REF!>=$Q$3,$I105<=$R$3,График!#REF!=$P$2,График!#REF!=0),График!#REF!,\"ОШИБКА ДАТЫ ИЛИ №ОТДЕЛА\")","v":{"$error":"#REF!"}},{"$f":"IF(OR(График!#REF!>=$Q$3,$I105<=$R$3,График!#REF!=$P$2,График!#REF!=0),График!#REF!,\"ОШИБКА ДАТЫ ИЛИ №ОТДЕЛА\")","v":{"$error":"#REF!"}},{"$f":"IF(OR(График!#REF!>=$Q$3,$I105<=$R$3,График!#REF!=$P$2,График!#REF!=0),График!#REF!,\"ОШИБКА ДАТЫ ИЛИ №ОТДЕЛА\")","v":{"$error":"#REF!"}},{"$f":"IF(OR(График!#REF!>=$Q$3,$I105<=$R$3,График!#REF!=$P$2,График!#REF!=0),График!#REF!,\"ОШИБКА ДАТЫ ИЛИ №ОТДЕЛА\")","v":{"$error":"#REF!"}}]
["1.101",null,{"$f":"IF(OR(График!#REF!>=$Q$3,$I106<=$R$3,График!#REF!=$P$2,График!#REF!=0),График!#REF!,\"ОШИБКА ДАТЫ ИЛИ №ОТДЕЛА\")","v":{"$error":"#REF!"}},{"$f":"IF(OR(График!#REF!>=$Q$3,$I106<=$R$3,График!#REF!=$P$2,График!#REF!=0),График!#REF!,\"ОШИБКА ДАТЫ ИЛИ №ОТДЕЛА\")","v":{"$error":"#REF!"}},{"$f":"IF(OR(График!#REF!>=$Q$3,$I106<=$R$3,График!#REF!=$P$2,График!#REF!=0),График!#REF!,\"ОШИБКА ДАТЫ ИЛИ №ОТДЕЛА\")","v":{"$error":"#REF!"}},{"$f":"IF(OR(График!#REF!>=$Q$3,$I106<=$R$3,График!#REF!=$P$2,График!#REF!=0),График!#REF!,\"ОШИБКА ДАТЫ ИЛИ №ОТДЕЛА\")","v":{"$error":"#REF!"}},{"$f":"IF(OR(График!#REF!>=$Q$3,$I106<=$R$3,График!#REF!=$P$2,График!#REF!=0),График!#REF!,\"ОШИБКА ДАТЫ ИЛИ №ОТДЕЛА\")","v":{"$error":"#REF!"}},{"$f":"IF(OR(График!#REF!>=$Q$3,$I106<=$R$3,График!#REF!=$P$2,График!#REF!=0),График!#REF!,\"ОШИБКА ДАТЫ ИЛИ №ОТДЕЛА\")","v":{"$error":"#REF!"}},{"$f":"IF(OR(График!#REF!>=$Q$3,$I106<=$R$3,График!#REF!=$P$2,График!#REF!=0),График!#REF!,\"ОШИБКА ДАТЫ ИЛИ №ОТДЕЛА\")","v":{"$error":"#REF!"}},{"$f":"IF(OR(График!#REF!>=$Q$3,$I106<=$R$3,График!#REF!=$P$2,График!#REF!=0),График!#REF!,\"ОШИБКА ДАТЫ ИЛИ №ОТДЕЛА\")","v":{"$error":"#REF!"}},{"$f":"IF(OR(График!#REF!>=$Q$3,$I106<=$R$3,График!#REF!=$P$2,График!#REF!=0),График!#REF!,\"ОШИБКА ДАТЫ ИЛИ №ОТДЕЛА\")","v":{"$error":"#REF!"}}]
["1.102",null,{"$f":"IF(OR(График!#REF!>=$Q$3,$I107<=$R$3,График!#REF!=$P$2,График!#REF!=0),График!#REF!,\"ОШИБКА ДАТЫ ИЛИ №ОТДЕЛА\")","v":{"$error":"#REF!"}},{"$f":"IF(OR(График!#REF!>=$Q$3,$I107<=$R$3,График!#REF!=$P$2,График!#REF!=0),График!#REF!,\"ОШИБКА ДАТЫ ИЛИ №ОТДЕЛА\")","v":{"$error":"#REF!"}},{"$f":"IF(OR(График!#REF!>=$Q$3,$I107<=$R$3,График!#REF!=$P$2,График!#REF!=0),График!#REF!,\"ОШИБКА ДАТЫ ИЛИ №ОТДЕЛА\")","v":{"$error":"#REF!"}},{"$f":"IF(OR(График!#REF!>=$Q$3,$I107<=$R$3,График!#REF!=$P$2,График!#REF!=0),График!#REF!,\"ОШИБКА ДАТЫ ИЛИ №ОТДЕЛА\")","v":{"$error":"#REF!"}},{"$f":"IF(OR(График!#REF!>=$Q$3,$I107<=$R$3,График!#REF!=$P$2,График!#REF!=0),График!#REF!,\"ОШИБКА ДАТЫ ИЛИ №ОТДЕЛА\")","v":{"$error":"#REF!"}},{"$f":"IF(OR(График!#REF!>=$Q$3,$I107<=$R$3,График!#REF!=$P$2,График!#REF!=0),График!#REF!,\"ОШИБКА ДАТЫ ИЛИ №ОТДЕЛА\")","v":{"$error":"#REF!"}},{"$f":"IF(OR(График!#REF!>=$Q$3,$I107<=$R$3,График!#REF!=$P$2,График!#REF!=0),График!#REF!,\"ОШИБКА ДАТЫ ИЛИ №ОТДЕЛА\")","v":{"$error":"#REF!"}},{"$f":"IF(OR(График!#REF!>=$Q$3,$I107<=$R$3,График!#REF!=$P$2,График!#REF!=0),График!#REF!,\"ОШИБКА ДАТЫ ИЛИ №ОТДЕЛА\")","v":{"$error":"#REF!"}},{"$f":"IF(OR(График!#REF!>=$Q$3,$I107<=$R$3,График!#REF!=$P$2,График!#REF!=0),График!#REF!,\"ОШИБКА ДАТЫ ИЛИ №ОТДЕЛА\")","v":{"$error":"#REF!"}}]
["1.103",null,{"$f":"IF(OR(График!#REF!>=$Q$3,$I108<=$R$3,График!#REF!=$P$2,График!$N46=0),График!#REF!,\"ОШИБКА ДАТЫ ИЛИ №ОТДЕЛА\")","v":{"$error":"#REF!"}},{"$f":"IF(OR(График!#REF!>=$Q$3,$I108<=$R$3,График!#REF!=$P$2,График!$N46=0),График!#REF!,\"ОШИБКА ДАТЫ ИЛИ №ОТДЕЛА\")","v":{"$error":"#REF!"}},{"$f":"IF(OR(График!#REF!>=$Q$3,$I108<=$R$3,График!#REF!=$P$2,График!$N46=0),График!#REF!,\"ОШИБКА ДАТЫ ИЛИ №ОТДЕЛА\")","v":{"$error":"#REF!"}},{"$f":"IF(OR(График!#REF!>=$Q$3,$I108<=$R$3,График!#REF!=$P$2,График!$N46=0),График!#REF!,\"ОШИБКА ДАТЫ ИЛИ №ОТДЕЛА\")","v":{"$error":"#REF!"}},{"$f":"IF(OR(График!#REF!>=$Q$3,$I108<=$R$3,График!#REF!=$P$2,График!$N46=0),График!#REF!,\"ОШИБКА ДАТЫ ИЛИ №ОТДЕЛА\")","v":{"$error":"#REF!"}},{"$f":"IF(OR(График!#REF!>=$Q$3,$I108<=$R$3,График!#REF!=$P$2,График!$N46=0),График!#REF!,\"ОШИБКА ДАТЫ ИЛИ №ОТДЕЛА\")","v":{"$error":"#REF!"}},{"$f":"IF(OR(График!#REF!>=$Q$3,$I108<=$R$3,График!#REF!=$P$2,График!$N46=0),График!#REF!,\"ОШИБКА ДАТЫ ИЛИ №ОТДЕЛА\")","v":{"$error":"#REF!"}},{"$f":"IF(OR(График!#REF!>=$Q$3,$I108<=$R$3,График!#REF!=$P$2,График!$N46=0),График!#REF!,\"ОШИБКА ДАТЫ ИЛИ №ОТДЕЛА\")","v":{"$error":"#REF!"}},{"$f":"IF(OR(График!#REF!>=$Q$3,$I108<=$R$3,График!#REF!=$P$2,График!$N46=0),График!#REF!,\"ОШИБКА ДАТЫ ИЛИ №ОТДЕЛА\")","v":{"$error":"#REF!"}}]
["1.104",null,{"$f":"IF(OR(График!K46>=$Q$3,$I109<=$R$3,График!$I46=$P$2,График!$N47=0),График!C46,\"ОШИБКА ДАТЫ ИЛИ №ОТДЕЛА\")","v":{"$error":"#REF!"}},{"$f":"IF(OR(График!L46>=$Q$3,$I109<=$R$3,График!$I46=$P$2,График!$N47=0),График!D46,\"ОШИБКА ДАТЫ ИЛИ №ОТДЕЛА\")","v":{"$error":"#REF!"}},{"$f":"IF(OR(График!M46>=$Q$3,$I109<=$R$3,График!$I46=$P$2,График!$N47=0),График!E46,\"ОШИБКА ДАТЫ ИЛИ №ОТДЕЛА\")","v":{"$error":"#REF!"}},{"$f":"IF(OR(График!N46>=$Q$3,$I109<=$R$3,График!$I46=$P$2,График!$N47=0),График!F46,\"ОШИБКА ДАТЫ ИЛИ №ОТДЕЛА\")","v":{"$error":"#REF!"}},{"$f":"IF(OR(График!O46>=$Q$3,$I109<=$R$3,График!$I46=$P$2,График!$N47=0),График!G46,\"ОШИБКА ДАТЫ ИЛИ №ОТДЕЛА\")","v":{"$error":"#REF!"}},{"$f":"IF(OR(График!P46>=$Q$3,$I109<=$R$3,График!$I46=$P$2,График!$N47=0),График!H46,\"ОШИБКА ДАТЫ ИЛИ №ОТДЕЛА\")","v":{"$error":"#REF!"}},{"$f":"IF(OR(График!Q46>=$Q$3,$I109<=$R$3,График!$I46=$P$2,График!$N47=0),График!J46,\"ОШИБКА ДАТЫ ИЛИ №ОТДЕЛА\")","v":{"$error":"#REF!"}},{"$f":"IF(OR(График!R46>=$Q$3,$I109<=$R$3,График!$I46=$P$2,График!$N47=0),График!K46,\"ОШИБКА ДАТЫ ИЛИ №ОТДЕЛА\")","v":{"$error":"#REF!"}},{"$f":"IF(OR(График!S46>=$Q$3,$I109<=$R$3,График!$I46=$P$2,График!$N47=0),График!L46,\"ОШИБКА ДАТЫ ИЛИ №ОТДЕЛА\")","v":{"$error":"#REF!"}}]
["1.105",null,{"$f":"IF(OR(График!K47>=$Q$3,$I110<=$R$3,График!$I47=$P$2,График!$N48=0),График!C47,\"ОШИБКА ДАТЫ ИЛИ №ОТДЕЛА\")","v":{"$error":"#REF!"}},{"$f":"IF(OR(График!L47>=$Q$3,$I110<=$R$3,График!$I47=$P$2,График!$N48=0),График!D47,\"ОШИБКА ДАТЫ ИЛИ №ОТДЕЛА\")","v":{"$error":"#REF!"}},{"$f":"IF(OR(График!M47>=$Q$3,$I110<=$R$3,График!$I47=$P$2,График!$N48=0),График!E47,\"ОШИБКА ДАТЫ ИЛИ №ОТДЕЛА\")","v":{"$error":"#REF!"}},{"$f":"IF(OR(График!N47>=$Q$3,$I110<=$R$3,График!$I47=$P$2,График!$N48=0),График!F47,\"ОШИБКА ДАТЫ ИЛИ №ОТДЕЛА\")","v":{"$error":"#REF!"}},{"$f":"IF(OR(График!O47>=$Q$3,$I110<=$R$3,График!$I47=$P$2,График!$N48=0),График!G47,\"ОШИБКА ДАТЫ ИЛИ №ОТДЕЛА\")","v":{"$error":"#REF!"}},{"$f":"IF(OR(График!P47>=$Q$3,$I110<=$R$3,График!$I47=$P$2,График!$N48=0),График!H47,\"ОШИБКА ДАТЫ ИЛИ №ОТДЕЛА\")","v":{"$error":"#REF!"}},{"$f":"IF(OR(График!Q47>=$Q$3,$I110<=$R$3,График!$I47=$P$2,График!$N48=0),График!J47,\"ОШИБКА ДАТЫ ИЛИ №ОТДЕЛА\")","v":{"$error":"#REF!"}},{"$f":"IF(OR(График!R47>=$Q$3,$I110<=$R$3,График!$I47=$P$2,График!$N48=0),График!K47,\"ОШИБКА ДАТЫ ИЛИ №ОТДЕЛА\")","v":{"$error":"#REF!"}},{"$f":"IF(OR(График!S47>=$Q$3,$I110<=$R$3,График!$I47=$P$2,График!$N48=0),График!L47,\"ОШИБКА ДАТЫ ИЛИ №ОТДЕЛА\")","v":{"$error":"#REF!"}}]
["1.106",null,{"$f":"IF(OR(График!K48>=$Q$3,$I111<=$R$3,График!$I48=$P$2,График!$N49=0),График!C48,\"ОШИБКА ДАТЫ ИЛИ №ОТДЕЛА\")","v":{"$error":"#REF!"}},{"$f":"IF(OR(График!L48>=$Q$3,$I111<=$R$3,График!$I48=$P$2,График!$N49=0),График!D48,\"ОШИБКА ДАТЫ ИЛИ №ОТДЕЛА\")","v":{"$error":"#REF!"}},{"$f":"IF(OR(График!M48>=$Q$3,$I111<=$R$3,График!$I48=$P$2,График!$N49=0),График!E48,\"ОШИБКА ДАТЫ ИЛИ №ОТДЕЛА\")","v":{"$error":"#REF!"}},{"$f":"IF(OR(График!N48>=$Q$3,$I111<=$R$3,График!$I48=$P$2,График!$N49=0),График!F48,\"ОШИБКА ДАТЫ ИЛИ №ОТДЕЛА\")","v":{"$error":"#REF!"}},{"$f":"IF(OR(График!O48>=$Q$3,$I111<=$R$3,График!$I48=$P$2,График!$N49=0),График!G48,\"ОШИБКА ДАТЫ ИЛИ №ОТДЕЛА\")","v":{"$error":"#REF!"}},{"$f":"IF(OR(График!P48>=$Q$3,$I111<=$R$3,График!$I48=$P$2,График!$N49=0),График!H48,\"ОШИБКА ДАТЫ ИЛИ №ОТДЕЛА\")","v":{"$error":"#REF!"}},{"$f":"IF(OR(График!Q48>=$Q$3,$I111<=$R$3,График!$I48=$P$2,График!$N49=0),График!J48,\"ОШИБКА ДАТЫ ИЛИ №ОТДЕЛА\")","v":{"$error":"#REF!"}},{"$f":"IF(OR(График!R48>=$Q$3,$I111<=$R$3,График!$I48=$P$2,График!$N49=0),График!K48,\"ОШИБКА ДАТЫ ИЛИ №ОТДЕЛА\")","v":{"$error":"#REF!"}},{"$f":"IF(OR(График!S48>=$Q$3,$I111<=$R$3,График!$I48=$P$2,График!$N49=0),График!L48,\"ОШИБКА ДАТЫ ИЛИ №ОТДЕЛА\")","v":{"$error":"#REF!"}}]
["1.107",null,{"$f":"IF(OR(График!K49>=$Q$3,$I112<=$R$3,График!$I49=$P$2,График!$N50=0),График!C49,\"ОШИБКА ДАТЫ ИЛИ №ОТДЕЛА\")","v":{"$error":"#REF!"}},{"$f":"IF(OR(График!L49>=$Q$3,$I112<=$R$3,График!$I49=$P$2,График!$N50=0),График!D49,\"ОШИБКА ДАТЫ ИЛИ №ОТДЕЛА\")","v":{"$error":"#REF!"}},{"$f":"IF(OR(График!M49>=$Q$3,$I112<=$R$3,График!$I49=$P$2,График!$N50=0),График!E49,\"ОШИБКА ДАТЫ ИЛИ №ОТДЕЛА\")","v":{"$error":"#REF!"}},{"$f":"IF(OR(График!N49>=$Q$3,$I112<=$R$3,График!$I49=$P$2,График!$N50=0),График!F49,\"ОШИБКА ДАТЫ ИЛИ №ОТДЕЛА\")","v":{"$error":"#REF!"}},{"$f":"IF(OR(График!O49>=$Q$3,$I112<=$R$3,График!$I49=$P$2,График!$N50=0),График!G49,\"ОШИБКА ДАТЫ ИЛИ №ОТДЕЛА\")","v":{"$error":"#REF!"}},{"$f":"IF(OR(График!P49>=$Q$3,$I112<=$R$3,График!$I49=$P$2,График!$N50=0),График!H49,\"ОШИБКА ДАТЫ ИЛИ №ОТДЕЛА\")","v":{"$error":"#REF!"}},{"$f":"IF(OR(График!Q49>=$Q$3,$I112<=$R$3,График!$I49=$P$2,График!$N50=0),График!J49,\"ОШИБКА ДАТЫ ИЛИ №ОТДЕЛА\")","v":{"$error":"#REF!"}},{"$f":"IF(OR(График!R49>=$Q$3,$I112<=$R$3,График!$I49=$P$2,График!$N50=0),График!K49,\"ОШИБКА ДАТЫ ИЛИ №ОТДЕЛА\")","v":{"$error":"#REF!"}},{"$f":"IF(OR(График!S49>=$Q$3,$I112<=$R$3,График!$I49=$P$2,График!$N50=0),График!L49,\"ОШИБКА ДАТЫ ИЛИ №ОТДЕЛА\")","v":{"$error":"#REF!"}}]
["1.108",null,{"$f":"IF(OR(График!K50>=$Q$3,$I113<=$R$3,График!$I50=$P$2,График!$N51=0),График!C50,\"ОШИБКА ДАТЫ ИЛИ №ОТДЕЛА\")","v":{"$error":"#REF!"}},{"$f":"IF(OR(График!L50>=$Q$3,$I113<=$R$3,График!$I50=$P$2,График!$N51=0),График!D50,\"ОШИБКА ДАТЫ ИЛИ №ОТДЕЛА\")","v":{"$error":"#REF!"}},{"$f":"IF(OR(График!M50>=$Q$3,$I113<=$R$3,График!$I50=$P$2,График!$N51=0),График!E50,\"ОШИБКА ДАТЫ ИЛИ №ОТДЕЛА\")","v":{"$error":"#REF!"}},{"$f":"IF(OR(График!N50>=$Q$3,$I113<=$R$3,График!$I50=$P$2,График!$N51=0),График!F50,\"ОШИБКА ДАТЫ ИЛИ №ОТДЕЛА\")","v":{"$error":"#REF!"}},{"$f":"IF(OR(График!O50>=$Q$3,$I113<=$R$3,График!$I50=$P$2,График!$N51=0),График!G50,\"ОШИБКА ДАТЫ ИЛИ №ОТДЕЛА\")","v":{"$error":"#REF!"}},{"$f":"IF(OR(График!P50>=$Q$3,$I113<=$R$3,График!$I50=$P$2,График!$N51=0),График!H50,\"ОШИБКА ДАТЫ ИЛИ №ОТДЕЛА\")","v":{"$error":"#REF!"}},{"$f":"IF(OR(График!Q50>=$Q$3,$I113<=$R$3,График!$I50=$P$2,График!$N51=0),График!J50,\"ОШИБКА ДАТЫ ИЛИ №ОТДЕЛА\")","v":{"$error":"#REF!"}},{"$f":"IF(OR(График!R50>=$Q$3,$I113<=$R$3,График!$I50=$P$2,График!$N51=0),График!K50,\"ОШИБКА ДАТЫ ИЛИ №ОТДЕЛА\")","v":{"$error":"#REF!"}},{"$f":"IF(OR(График!S50>=$Q$3,$I113<=$R$3,График!$I50=$P$2,График!$N51=0),График!L50,\"ОШИБКА ДАТЫ ИЛИ №ОТДЕЛА\")","v":{"$error":"#REF!"}}]
["1.109",null,{"$f":"IF(OR(График!K51>=$Q$3,$I114<=$R$3,График!$I51=$P$2,График!$N52=0),График!C51,\"ОШИБКА ДАТЫ ИЛИ №ОТДЕЛА\")","v":{"$error":"#REF!"}},{"$f":"IF(OR(График!L51>=$Q$3,$I114<=$R$3,График!$I51=$P$2,График!$N52=0),График!D51,\"ОШИБКА ДАТЫ ИЛИ №ОТДЕЛА\")","v":{"$error":"#REF!"}},{"$f":"IF(OR(График!M51>=$Q$3,$I114<=$R$3,График!$I51=$P$2,График!$N52=0),График!E51,\"ОШИБКА ДАТЫ ИЛИ №ОТДЕЛА\")","v":{"$error":"#REF!"}},{"$f":"IF(OR(График!N51>=$Q$3,$I114<=$R$3,График!$I51=$P$2,График!$N52=0),График!F51,\"ОШИБКА ДАТЫ ИЛИ №ОТДЕЛА\")","v":{"$error":"#REF!"}},{"$f":"IF(OR(График!O51>=$Q$3,$I114<=$R$3,График!$I51=$P$2,График!$N52=0),График!G51,\"ОШИБКА ДАТЫ ИЛИ №ОТДЕЛА\")","v":{"$error":"#REF!"}},{"$f":"IF(OR(График!P51>=$Q$3,$I114<=$R$3,График!$I51=$P$2,График!$N52=0),График!H51,\"ОШИБКА ДАТЫ ИЛИ №ОТДЕЛА\")","v":{"$error":"#REF!"}},{"$f":"IF(OR(График!Q51>=$Q$3,$I114<=$R$3,График!$I51=$P$2,График!$N52=0),График!J51,\"ОШИБКА ДАТЫ ИЛИ №ОТДЕЛА\")","v":{"$error":"#REF!"}},{"$f":"IF(OR(График!R51>=$Q$3,$I114<=$R$3,График!$I51=$P$2,График!$N52=0),График!K51,\"ОШИБКА ДАТЫ ИЛИ №ОТДЕЛА\")","v":{"$error":"#REF!"}},{"$f":"IF(OR(График!S51>=$Q$3,$I114<=$R$3,График!$I51=$P$2,График!$N52=0),График!L51,\"ОШИБКА ДАТЫ ИЛИ №ОТДЕЛА\")","v":{"$error":"#REF!"}}]
["1.110",null,{"$f":"IF(OR(График!K52>=$Q$3,$I115<=$R$3,График!$I52=$P$2,График!$N53=0),График!C52,\"ОШИБКА ДАТЫ ИЛИ №ОТДЕЛА\")","v":{"$error":"#REF!"}},{"$f":"IF(OR(График!L52>=$Q$3,$I115<=$R$3,График!$I52=$P$2,График!$N53=0),График!D52,\"ОШИБКА ДАТЫ ИЛИ №ОТДЕЛА\")","v":{"$error":"#REF!"}},{"$f":"IF(OR(График!M52>=$Q$3,$I115<=$R$3,График!$I52=$P$2,График!$N53=0),График!E52,\"ОШИБКА ДАТЫ ИЛИ №ОТДЕЛА\")","v":{"$error":"#REF!"}},{"$f":"IF(OR(График!N52>=$Q$3,$I115<=$R$3,График!$I52=$P$2,График!$N53=0),График!F52,\"ОШИБКА ДАТЫ ИЛИ №ОТДЕЛА\")","v":{"$error":"#REF!"}},{"$f":"IF(OR(График!O52>=$Q$3,$I115<=$R$3,График!$I52=$P$2,График!$N53=0),График!G52,\"ОШИБКА ДАТЫ ИЛИ №ОТДЕЛА\")","v":{"$error":"#REF!"}},{"$f":"IF(OR(График!P52>=$Q$3,$I115<=$R$3,График!$I52=$P$2,График!$N53=0),График!H52,\"ОШИБКА ДАТЫ ИЛИ №ОТДЕЛА\")","v":{"$error":"#REF!"}},{"$f":"IF(OR(График!Q52>=$Q$3,$I115<=$R$3,График!$I52=$P$2,График!$N53=0),График!J52,\"ОШИБКА ДАТЫ ИЛИ №ОТДЕЛА\")","v":{"$error":"#REF!"}},{"$f":"IF(OR(График!R52>=$Q$3,$I115<=$R$3,График!$I52=$P$2,График!$N53=0),График!K52,\"ОШИБКА ДАТЫ ИЛИ №ОТДЕЛА\")","v":{"$error":"#REF!"}},{"$f":"IF(OR(График!S52>=$Q$3,$I115<=$R$3,График!$I52=$P$2,График!$N53=0),График!L52,\"ОШИБКА ДАТЫ ИЛИ №ОТДЕЛА\")","v":{"$error":"#REF!"}}]
["1.111",null,{"$f":"IF(OR(График!K53>=$Q$3,$I116<=$R$3,График!$I53=$P$2,График!$N54=0),График!C53,\"ОШИБКА ДАТЫ ИЛИ №ОТДЕЛА\")","v":{"$error":"#REF!"}},{"$f":"IF(OR(График!L53>=$Q$3,$I116<=$R$3,График!$I53=$P$2,График!$N54=0),График!D53,\"ОШИБКА ДАТЫ ИЛИ №ОТДЕЛА\")","v":{"$error":"#REF!"}},{"$f":"IF(OR(График!M53>=$Q$3,$I116<=$R$3,График!$I53=$P$2,График!$N54=0),График!E53,\"ОШИБКА ДАТЫ ИЛИ №ОТДЕЛА\")","v":{"$error":"#REF!"}},{"$f":"IF(OR(График!N53>=$Q$3,$I116<=$R$3,График!$I53=$P$2,График!$N54=0),График!F53,\"ОШИБКА ДАТЫ ИЛИ №ОТДЕЛА\")","v":{"$error":"#REF!"}},{"$f":"IF(OR(График!O53>=$Q$3,$I116<=$R$3,График!$I53=$P$2,График!$N54=0),График!G53,\"ОШИБКА ДАТЫ ИЛИ №ОТДЕЛА\")","v":{"$error":"#REF!"}},{"$f":"IF(OR(График!P53>=$Q$3,$I116<=$R$3,График!$I53=$P$2,График!$N54=0),График!H53,\"ОШИБКА ДАТЫ ИЛИ №ОТДЕЛА\")","v":{"$error":"#REF!"}},{"$f":"IF(OR(График!Q53>=$Q$3,$I116<=$R$3,График!$I53=$P$2,График!$N54=0),График!J53,\"ОШИБКА ДАТЫ ИЛИ №ОТДЕЛА\")","v":{"$error":"#REF!"}},{"$f":"IF(OR(График!R53>=$Q$3,$I116<=$R$3,График!$I53=$P$2,График!$N54=0),График!K53,\"ОШИБКА ДАТЫ ИЛИ №ОТДЕЛА\")","v":{"$error":"#REF!"}},{"$f":"IF(OR(График!S53>=$Q$3,$I116<=$R$3,График!$I53=$P$2,График!$N54=0),График!L53,\"ОШИБКА ДАТЫ ИЛИ №ОТДЕЛА\")","v":{"$error":"#REF!"}}]
["1.112",null,{"$f":"IF(OR(График!K54>=$Q$3,$I117<=$R$3,График!$I54=$P$2,График!$N55=0),График!C54,\"ОШИБКА ДАТЫ ИЛИ №ОТДЕЛА\")","v":{"$error":"#REF!"}},{"$f":"IF(OR(График!L54>=$Q$3,$I117<=$R$3,График!$I54=$P$2,График!$N55=0),График!D54,\"ОШИБКА ДАТЫ ИЛИ №ОТДЕЛА\")","v":{"$error":"#REF!"}},{"$f":"IF(OR(График!M54>=$Q$3,$I117<=$R$3,График!$I54=$P$2,График!$N55=0),График!E54,\"ОШИБКА ДАТЫ ИЛИ №ОТДЕЛА\")","v":{"$error":"#REF!"}},{"$f":"IF(OR(График!N54>=$Q$3,$I117<=$R$3,График!$I54=$P$2,График!$N55=0),График!F54,\"ОШИБКА ДАТЫ ИЛИ №ОТДЕЛА\")","v":{"$error":"#REF!"}},{"$f":"IF(OR(График!O54>=$Q$3,$I117<=$R$3,График!$I54=$P$2,График!$N55=0),График!G54,\"ОШИБКА ДАТЫ ИЛИ №ОТДЕЛА\")","v":{"$error":"#REF!"}},{"$f":"IF(OR(График!P54>=$Q$3,$I117<=$R$3,График!$I54=$P$2,График!$N55=0),График!H54,\"ОШИБКА ДАТЫ ИЛИ №ОТДЕЛА\")","v":{"$error":"#REF!"}},{"$f":"IF(OR(График!Q54>=$Q$3,$I117<=$R$3,График!$I54=$P$2,График!$N55=0),График!J54,\"ОШИБКА ДАТЫ ИЛИ №ОТДЕЛА\")","v":{"$error":"#REF!"}},{"$f":"IF(OR(График!R54>=$Q$3,$I117<=$R$3,График!$I54=$P$2,График!$N55=0),График!K54,\"ОШИБКА ДАТЫ ИЛИ №ОТДЕЛА\")","v":{"$error":"#REF!"}},{"$f":"IF(OR(График!S54>=$Q$3,$I117<=$R$3,График!$I54=$P$2,График!$N55=0),График!L54,\"ОШИБКА ДАТЫ ИЛИ №ОТДЕЛА\")","v":{"$error":"#REF!"}}]
["1.113",null,{"$f":"IF(OR(График!K55>=$Q$3,$I118<=$R$3,График!$I55=$P$2,График!$N56=0),График!C55,\"ОШИБКА ДАТЫ ИЛИ №ОТДЕЛА\")","v":{"$error":"#REF!"}},{"$f":"IF(OR(График!L55>=$Q$3,$I118<=$R$3,График!$I55=$P$2,График!$N56=0),График!D55,\"ОШИБКА ДАТЫ ИЛИ №ОТДЕЛА\")","v":{"$error":"#REF!"}},{"$f":"IF(OR(График!M55>=$Q$3,$I118<=$R$3,График!$I55=$P$2,График!$N56=0),График!E55,\"ОШИБКА ДАТЫ ИЛИ №ОТДЕЛА\")","v":{"$error":"#REF!"}},{"$f":"IF(OR(График!N55>=$Q$3,$I118<=$R$3,График!$I55=$P$2,График!$N56=0),График!F55,\"ОШИБКА ДАТЫ ИЛИ №ОТДЕЛА\")","v":{"$error":"#REF!"}},{"$f":"IF(OR(График!O55>=$Q$3,$I118<=$R$3,График!$I55=$P$2,График!$N56=0),График!G55,\"ОШИБКА ДАТЫ ИЛИ №ОТДЕЛА\")","v":{"$error":"#REF!"}},{"$f":"IF(OR(График!P55>=$Q$3,$I118<=$R$3,График!$I55=$P$2,График!$N56=0),График!H55,\"ОШИБКА ДАТЫ ИЛИ №ОТДЕЛА\")","v":{"$error":"#REF!"}},{"$f":"IF(OR(График!Q55>=$Q$3,$I118<=$R$3,График!$I55=$P$2,График!$N56=0),График!J55,\"ОШИБКА ДАТЫ ИЛИ №ОТДЕЛА\")","v":{"$error":"#REF!"}},{"$f":"IF(OR(График!R55>=$Q$3,$I118<=$R$3,График!$I55=$P$2,График!$N56=0),График!K55,\"ОШИБКА ДАТЫ ИЛИ №ОТДЕЛА\")","v":{"$error":"#REF!"}},{"$f":"IF(OR(График!S55>=$Q$3,$I118<=$R$3,График!$I55=$P$2,График!$N56=0),График!L55,\"ОШИБКА ДАТЫ ИЛИ №ОТДЕЛА\")","v":{"$error":"#REF!"}}]
["1.114",null,{"$f":"IF(OR(График!K56>=$Q$3,$I119<=$R$3,График!$I56=$P$2,График!$N57=0),График!C56,\"ОШИБКА ДАТЫ ИЛИ №ОТДЕЛА\")","v":{"$error":"#REF!"}},{"$f":"IF(OR(График!L56>=$Q$3,$I119<=$R$3,График!$I56=$P$2,График!$N57=0),График!D56,\"ОШИБКА ДАТЫ ИЛИ №ОТДЕЛА\")","v":{"$error":"#REF!"}},{"$f":"IF(OR(График!M56>=$Q$3,$I119<=$R$3,График!$I56=$P$2,График!$N57=0),График!E56,\"ОШИБКА ДАТЫ ИЛИ №ОТДЕЛА\")","v":{"$error":"#REF!"}},{"$f":"IF(OR(График!N56>=$Q$3,$I119<=$R$3,График!$I56=$P$2,График!$N57=0),График!F56,\"ОШИБКА ДАТЫ ИЛИ №ОТДЕЛА\")","v":{"$error":"#REF!"}},{"$f":"IF(OR(График!O56>=$Q$3,$I119<=$R$3,График!$I56=$P$2,График!$N57=0),График!G56,\"ОШИБКА ДАТЫ ИЛИ №ОТДЕЛА\")","v":{"$error":"#REF!"}},{"$f":"IF(OR(График!P56>=$Q$3,$I119<=$R$3,График!$I56=$P$2,График!$N57=0),График!H56,\"ОШИБКА ДАТЫ ИЛИ №ОТДЕЛА\")","v":{"$error":"#REF!"}},{"$f":"IF(OR(График!Q56>=$Q$3,$I119<=$R$3,График!$I56=$P$2,График!$N57=0),График!J56,\"ОШИБКА ДАТЫ ИЛИ №ОТДЕЛА\")","v":{"$error":"#REF!"}},{"$f":"IF(OR(График!R56>=$Q$3,$I119<=$R$3,График!$I56=$P$2,График!$N57=0),График!K56,\"ОШИБКА ДАТЫ ИЛИ №ОТДЕЛА\")","v":{"$error":"#REF!"}},{"$f":"IF(OR(График!S56>=$Q$3,$I119<=$R$3,График!$I56=$P$2,График!$N57=0),График!L56,\"ОШИБКА ДАТЫ ИЛИ №ОТДЕЛА\")","v":{"$error":"#REF!"}}]

{"sheet":"ФИО","index":2,"n_rows":13,"n_cols":16,"rows_kept":13,"cut":false,"hidden":false,"merged":[]}
["Фамилия","Имя","Отчество","Пароль","Залогинился",null,null,"Имя файла","Реестр.xlsx",null,null,null,"Месяц","мес.год","Даты нач","Даты окон"]
["1Крючков С.В.","Сергей","Викторович",123,null,null,null,"Путь до файла","\\\\Spp-i\\common_w\\64 отдел\\Журналы регистрации выдачи заданий\\",null,null,null,"январь","2015-01-01","2015-01-01","2015-01-31"]
["1Крючков С.В.",null,null,123,null,null,null,null,null,null,null,null,"февраль","2015-02-01","2015-02-01","2015-02-28"]
[null,null,null,null,null,null,null,null,null,null,null,null,"март","2015-03-01","2015-03-01","2015-03-31"]
[null,null,null,null,null,null,null,null,null,null,null,null,"апрель","2015-04-01","2015-04-01","2015-04-30"]
[null,null,null,null,null,null,null,null,null,null,null,null,"май","2015-05-01","2015-05-01","2015-05-31"]
[null,null,null,null,null,null,null,null,null,null,null,null,"июнь","2015-06-01","2015-06-01","2015-06-30"]
[null,null,null,null,null,null,null,null,null,null,null,null,"июль","2015-07-01","2015-07-01","2015-07-31"]
[null,null,null,null,null,null,null,null,null,null,null,null,"август","2015-08-01","2015-08-01","2015-08-31"]
[null,null,null,null,null,null,null,null,null,null,null,null,"сентябрь","2015-09-01","2015-09-01","2015-09-30"]
[null,null,null,null,null,null,null,null,null,null,null,null,"октябрь","2015-10-01","2015-10-01","2015-10-31"]
[null,null,null,null,null,null,null,null,null,null,null,null,"ноябрь","2015-11-01","2015-11-01","2015-11-30"]
[null,null,null,null,null,null,null,null,null,null,null,null,"декабрь","2015-12-01","2015-12-01","2015-12-31"]